Workbook

Sheet Behavior-EPHYS
A1: ACQ | B1: WS RR s1 | C1: WS RR s2 | D1: WS RR s3 | E1: WS RR s4 | F1: WS RR s5 | G1: WS RR s6 | H1: WS RR s7 | I1: WS RR s8 | J1: WS RR s9 | K1: WS RR s10 | L1: WT PE s1 | M1: WT PE s2 | N1: WT PE s3 | O1: WT PE s4 | P1: WT PE s5 | Q1: WT PE s6 | R1: WT PE s7 | S1: WT PE s8 | T1: WT PE s9 | U1: WT PE s10 | V1: WT PE s11 | W1: WT PE s12 | X1: WT PE s13 | Y1: CV WSRR s1 | Z1: CV WSRR s2 | AA1: CV WSRR s3 | AB1: CV WSRR s4 | AC1: CV WSRR s5 | AD1: CV WSRR s6 | AE1: CV WSRR s7 | AF1: CV WSRR s8 | AG1: CV WSRR s9 | AH1: CV WSRR s10 | AI1: LP val | AJ1: LP deval | AK1: PE val | AL1: PE deval | AM1: WSPE s1 | AN1: WSPE s2 | AO1: WSPE s3 | AP1: WSPE s4 | AQ1: WSPE s5 | AR1: WSPE s6 | AS1: WSPE s7 | AT1: WSPE s8 | AU1: WSPE s9 | AV1: WSPE s10 | AW1: WSPE session 1 | AX1: Session 1 trial 1 | AY1: Session 1 trial 2 | AZ1: Session 1 trial 3 | BA1: Session 1 trial 4 | BB1: Session 1 trial 5 | BC1: Session 1 trial 6 | BD1: Session 1 trial 7 | BE1: Session 1 trial 8 | BF1: Session 1 trial 9 | BG1: Session 1 trial 10 | BH1: Session 1 trial 11 | BI1: Session 1 trial 12 | BJ1: Session 1 trial 13 | BK1: Session 1 trial 14 | BL1: Session 1 trial 15 | BM1: Session 1 trial 16 | BN1: Session 1 trial 17 | BO1: Session 1 trial 18 | BP1: Session 1 trial 19 | BQ1: Session 1 trial 20 | BR1: Session 1 trial 21 | BS1: Session 1 trial 22 | BT1: Session 1 trial 23 | BU1: Session 1 trial 24 | BV1: Session 1 trial 25 | BW1: Session 1 trial 26 | BX1: Session 1 trial 27 | BY1: Session 1 trial 28 | BZ1: Session 1 trial 29 | CA1: Session 1 trial 30
A2: YVG04 | B2: 0.9357272433 | C2: 1.175493135 | D2: 2.226649274 | E2: 3.62797096 | F2: 3.906548943 | G2: 4.145525587 | H2: 3.979857884 | I2: 3.558945599 | J2: 2.704213203 | K2: 4.597784382 | L2: 77 | M2: 22 | N2: 14 | O2: 29 | P2: 6 | Q2: 9 | R2: 2 | S2: 0 | T2: 1 | U2: 2 | W2: 2 | X2: 0 | Y2: 0.3713497338 | Z2: 0.6592793908 | AA2: 0.5257119988 | AB2: 0.375622981 | AC2: 0.3361270762 | AD2: 0.3537414336 | AE2: 0.3564948891 | AF2: 0.353647322 | AG2: 0.496988342 | AH2: 0.3103393302 | AI2: 36 | AJ2: 45 | AK2: 13 | AL2: 18 | AM2: 21 | AN2: 3 | AO2: 5 | AP2: 0 | AQ2: 0 | AR2: 0 | AS2: 0 | AT2: 0 | AU2: 0 | AV2: 0 | AX2: 0 | AY2: 1 | AZ2: 1 | BA2: 1 | BB2: 0 | BC2: 0 | BD2: 0 | BE2: 1 | BF2: 2 | BG2: 1 | BH2: 1 | BI2: 2 | BJ2: 1 | BK2: 1 | BL2: 0 | BM2: 0 | BN2: 1 | BO2: 0 | BP2: 1 | BQ2: 1 | BR2: 1 | BS2: 0 | BT2: 0 | BU2: 1 | BV2: 2 | BW2: 1 | BX2: 1 | BY2: 0 | BZ2: 0 | CA2: 0
A3: YVG05 | B3: 0.7835155857 | C3: 0.920109411 | D3: 1.466121265 | E3: 1.928695519 | F3: 1.682994205 | G3: 2.601305936 | H3: 2.645799685 | I3: 3.83012745 | J3: 4.29429617 | K3: 4.07767612 | L3: 30 | M3: 10 | N3: 8 | O3: 35 | P3: 6 | Q3: 4 | R3: 1 | S3: 2 | T3: 1 | U3: 1 | V3: 0 | W3: 1 | X3: 1 | Y3: 0.7241391447 | Z3: 0.5806952242 | AA3: 0.5403702977 | AB3: 0.6300370354 | AC3: 0.5753404227 | AD3: 0.5196343905 | AE3: 0.5268328805 | AF3: 0.421590557 | AG3: 0.4602026383 | AH3: 0.4743183969 | AI3: 45 | AJ3: 41 | AK3: 0 | AL3: 1 | AM3: 31 | AN3: 2 | AO3: 3 | AP3: 0 | AQ3: 1 | AR3: 0 | AS3: 0 | AT3: 0 | AU3: 0 | AV3: 0 | AX3: 0 | AY3: 0 | AZ3: 0 | BA3: 3 | BB3: 1 | BC3: 3 | BD3: 1 | BE3: 1 | BF3: 2 | BG3: 1 | BH3: 3 | BI3: 1 | BJ3: 0 | BK3: 5 | BL3: 0 | BM3: 1 | BN3: 3 | BO3: 0 | BP3: 1 | BQ3: 0 | BR3: 1 | BS3: 0 | BT3: 0 | BU3: 0 | BV3: 0 | BW3: 0 | BX3: 0 | BY3: 2 | BZ3: 2 | CA3: 0
A4: YVG08 | B4: 0.3649921524 | C4: 0.6819402083 | D4: 1.220252906 | E4: 1.814051123 | F4: 1.271684133 | G4: 1.789621582 | H4: 1.821184699 | I4: 1.703717609 | J4: 1.799616108 | K4: 2.161383012 | L4: 51 | M4: 43 | N4: 44 | O4: 87 | P4: 58 | Q4: 37 | R4: 25 | S4: 25 | T4: 27 | U4: 20 | V4: 19 | W4: 22 | X4: 28 | Y4: 0.9721062283 | Z4: 0.6592104334 | AA4: 0.3344591358 | AB4: 1.119055531 | AC4: 0.3575212182 | AD4: 0.2636811862 | AE4: 0.2665697867 | AF4: 0.2957288925 | AG4: 0.2145425964 | AH4: 0.3429845242 | AI4: 15 | AJ4: 15 | AK4: 13 | AL4: 11 | AM4: 66 | AN4: 23 | AO4: 1 | AP4: 0 | AQ4: 0 | AR4: 0 | AS4: 0 | AT4: 0 | AU4: 0 | AV4: 0 | AX4: 3 | AY4: 4 | AZ4: 4 | BA4: 9 | BB4: 4 | BC4: 1 | BD4: 0 | BE4: 2 | BF4: 4 | BG4: 5 | BH4: 2 | BI4: 3 | BJ4: 5 | BK4: 0 | BL4: 3 | BM4: 7 | BN4: 3 | BO4: 7 | BP4: 0 | BQ4: 0 | BR4: 0 | BS4: 0 | BT4: 0 | BU4: 0 | BV4: 0 | BW4: 0 | BX4: 0 | BY4: 0 | BZ4: 0 | CA4: 0
A5: YVG10 | B5: 0.4071242212 | C5: 1.68268216 | D5: 1.638651009 | E5: 1.547018728 | F5: 2.211630453 | G5: 2.20313505 | H5: 2.433309784 | I5: 2.555560179 | J5: 2.365638921 | K5: 2.385951799 | L5: 64 | M5: 32 | N5: 10 | O5: 76 | P5: 14 | Q5: 5 | R5: 0 | S5: 1 | T5: 7 | U5: 0 | V5: 14 | W5: 6 | X5: 0 | Y5: 0.5185445577 | Z5: 0.6274692049 | AA5: 0.5124607548 | AB5: 0.3160720802 | AC5: 0.4323790417 | AD5: 0.4592581023 | AE5: 0.4088837488 | AF5: 0.4293083998 | AG5: 0.4508358005 | AH5: 0.3121981986 | AI5: 50 | AJ5: 35 | AK5: 38 | AL5: 19 | AM5: 59 | AN5: 5 | AO5: 0 | AP5: 0 | AQ5: 0 | AR5: 1 | AS5: 0 | AT5: 0 | AU5: 0 | AV5: 0 | AX5: 2 | AY5: 6 | AZ5: 1 | BA5: 2 | BB5: 3 | BC5: 3 | BD5: 2 | BE5: 2 | BF5: 2 | BG5: 2 | BH5: 4 | BI5: 1 | BJ5: 6 | BK5: 5 | BL5: 5 | BM5: 4 | BN5: 3 | BO5: 0 | BP5: 2 | BQ5: 2 | BR5: 0 | BS5: 1 | BT5: 1 | BU5: 0 | BV5: 0 | BW5: 0 | BX5: 0 | BY5: 0 | BZ5: 0 | CA5: 0
A6: YVG11 | B6: 1.286947334 | C6: 1.404365429 | D6: 1.813237159 | E6: 1.725242527 | F6: 1.789397313 | G6: 2.222684815 | H6: 1.905010083 | I6: 2.455002984 | J6: 2.033708249 | K6: 2.38921356 | L6: 46 | M6: 23 | N6: 2 | O6: 9 | P6: 14 | Q6: 8 | R6: 6 | S6: 2 | T6: 14 | U6: 6 | V6: 17 | W6: 13 | X6: 7 | Y6: 0.4986083146 | Z6: 0.3379693205 | AA6: 0.4809166487 | AB6: 0.3637977649 | AC6: 0.3121177515 | AD6: 0.3479903623 | AE6: 0.3762967818 | AF6: 0.3402387636 | AG6: 0.3819541473 | AH6: 0.3078721612 | AI6: 46 | AJ6: 35 | AK6: 50 | AL6: 19 | AM6: 1 | AN6: 0 | AO6: 0 | AP6: 0 | AQ6: 0 | AR6: 0 | AS6: 0 | AT6: 0 | AU6: 0 | AV6: 0 | AX6: 0 | AY6: 0 | AZ6: 0 | BA6: 0 | BB6: 0 | BC6: 0 | BD6: 0 | BE6: 0 | BF6: 0 | BG6: 0 | BH6: 0 | BI6: 1 | BJ6: 0 | BK6: 0 | BL6: 0 | BM6: 0 | BN6: 0 | BO6: 0 | BP6: 0 | BQ6: 0 | BR6: 0 | BS6: 0 | BT6: 0 | BU6: 0 | BV6: 0 | BW6: 0 | BX6: 0 | BY6: 0 | BZ6: 0 | CA6: 0
A7: YVG12 | B7: 1.146019354 | C7: 1.302428875 | D7: 1.618826198 | E7: 1.657505866 | F7: 1.615296558 | G7: 1.759155158 | H7: 1.920731163 | I7: 1.847693839 | J7: 2.139094751 | K7: 2.052777052 | L7: 47 | M7: 16 | N7: 10 | O7: 44 | P7: 9 | Q7: 12 | R7: 8 | S7: 13 | T7: 6 | U7: 4 | V7: 14 | W7: 6 | X7: 3 | Y7: 0.5855150914 | Z7: 0.5196787253 | AA7: 0.4998840058 | AB7: 0.372623103 | AC7: 0.3603539234 | AD7: 0.4984081037 | AE7: 0.3942623854 | AF7: 0.2848991685 | AG7: 0.3461494259 | AH7: 0.4442338118 | AI7: 50 | AJ7: 35 | AK7: 17 | AL7: 14 | AM7: 16 | AN7: 1 | AO7: 0 | AP7: 0 | AQ7: 0 | AR7: 0 | AS7: 0 | AT7: 0 | AU7: 0 | AV7: 0 | AX7: 0 | AY7: 0 | AZ7: 2 | BA7: 1 | BB7: 2 | BC7: 2 | BD7: 1 | BE7: 1 | BF7: 0 | BG7: 2 | BH7: 0 | BI7: 0 | BJ7: 0 | BK7: 1 | BL7: 0 | BM7: 0 | BN7: 3 | BO7: 0 | BP7: 0 | BQ7: 0 | BR7: 0 | BS7: 0 | BT7: 0 | BU7: 0 | BV7: 0 | BW7: 1 | BX7: 0 | BY7: 0 | BZ7: 0 | CA7: 0
A8: YVJ01 | B8: 0.6749284444 | C8: 0.8030519816 | D8: 1.04661922 | E8: 1.481411654 | F8: 2.069097535 | G8: 2.238622075 | H8: 2.289602875 | I8: 2.644219145 | J8: 2.852502172 | K8: 2.940923636 | L8: 22 | M8: 5 | N8: 2 | O8: 30 | P8: 13 | Q8: 10 | R8: 17 | S8: 5 | T8: 0 | U8: 3 | V8: 7 | W8: 1 | X8: 5 | Y8: 0.3630962626 | Z8: 0.4412796286 | AA8: 0.3937393908 | AB8: 0.6747915392 | AC8: 0.4846987646 | AD8: 0.4402346308 | AE8: 0.4026363412 | AF8: 0.3130754425 | AG8: 0.3130755031 | AH8: 0.3360363995 | AI8: 40 | AJ8: 30 | AK8: 2 | AL8: 0 | AM8: 1 | AN8: 4 | AO8: 0 | AP8: 2 | AQ8: 0 | AR8: 0 | AS8: 0 | AT8: 0 | AU8: 0 | AV8: 0 | AX8: 0 | AY8: 1 | AZ8: 0 | BA8: 0 | BB8: 0 | BC8: 0 | BD8: 0 | BE8: 0 | BF8: 0 | BG8: 0 | BH8: 0 | BI8: 0 | BJ8: 0 | BK8: 0 | BL8: 0 | BM8: 0 | BN8: 0 | BO8: 0 | BP8: 0 | BQ8: 0 | BR8: 0 | BS8: 0 | BT8: 0 | BU8: 0 | BV8: 0 | BW8: 0 | BX8: 0 | BY8: 0 | BZ8: 0 | CA8: 0
A9: YVJ11 | B9: 1.16107441 | C9: 1.359178352 | D9: 1.409192398 | E9: 1.706745191 | F9: 2.329001487 | G9: 2.623962385 | H9: 2.997347717 | I9: 3.367763183 | J9: 3.090916712 | K9: 3.093548508 | L9: 6 | M9: 4 | N9: 0 | O9: 0 | P9: 0 | Q9: 0 | R9: 0 | S9: 0 | T9: 0 | U9: 0 | V9: 1 | W9: 0 | X9: 0 | Y9: 0.4071680461 | Z9: 0.4637909673 | AA9: 0.5508643195 | AB9: 0.3431433976 | AC9: 0.4021538687 | AD9: 0.351268048 | AE9: 0.3420163501 | AF9: 0.3076325837 | AG9: 0.5201441581 | AH9: 0.3742434381 | AI9: 30 | AJ9: 25 | AK9: na | AL9: na | AM9: 0 | AN9: 0 | AO9: 0 | AP9: 0 | AQ9: 0 | AR9: 0 | AS9: 0 | AT9: 0 | AU9: 0 | AV9: 0 | AX9: 0 | AY9: 0 | AZ9: 0 | BA9: 0 | BB9: 0 | BC9: 0 | BD9: 0 | BE9: 0 | BF9: 0 | BG9: 0 | BH9: 0 | BI9: 0 | BJ9: 0 | BK9: 0 | BL9: 0 | BM9: 0 | BN9: 0 | BO9: 0 | BP9: 0 | BQ9: 0 | BR9: 0 | BS9: 0 | BT9: 0 | BU9: 0 | BV9: 0 | BW9: 0 | BX9: 0 | BY9: 0 | BZ9: 0 | CA9: 0
A10: YVJ15 | B10: 1.031170216 | C10: 1.095434816 | D10: 1.694617657 | E10: 2.079550457 | F10: 2.568766765 | G10: 2.928158901 | H10: 2.724701817 | I10: 3.259930498 | J10: 3.069932846 | K10: 3.703142888 | L10: 20 | M10: 1 | N10: 0 | O10: 0 | P10: 0 | Q10: 0 | R10: 0 | S10: 0 | T10: 0 | U10: 0 | V10: 0 | W10: 0 | X10: 0 | Y10: 0.3586980325 | Z10: 0.2764345831 | AA10: 0.4434865404 | AB10: 0.5503417499 | AC10: 0.2706909996 | AD10: 0.2429364976 | AE10: 0.2664016234 | AF10: 0.255461842 | AG10: 0.4988763489 | AH10: 0.3472329487 | AI10: 51 | AJ10: 50 | AK10: 0 | AL10: 7 | AM10: 0 | AN10: 0 | AO10: 0 | AP10: 0 | AQ10: 0 | AR10: 0 | AS10: 0 | AT10: 0 | AU10: 0 | AV10: 0 | AX10: 0 | AY10: 0 | AZ10: 0 | BA10: 0 | BB10: 0 | BC10: 0 | BD10: 0 | BE10: 0 | BF10: 0 | BG10: 0 | BH10: 0 | BI10: 0 | BJ10: 0 | BK10: 0 | BL10: 0 | BM10: 0 | BN10: 0 | BO10: 0 | BP10: 0 | BQ10: 0 | BR10: 0 | BS10: 0 | BT10: 0 | BU10: 0 | BV10: 0 | BW10: 0 | BX10: 0 | BY10: 0 | BZ10: 0 | CA10: 0
A12: OT | C12: CV WSRR s1 | D12: CV WSRR s2 | E12: CV WSRR s3 | F12: WSRR s1 | G12: WSRR s2 | H12: WSRR s3 | I12: WT PE | J12: WT PE | K12: WT PE | L12: LP val | M12: LP deval | N12: PE val | O12: PE deval | P12: WSPE | Q12: WSPE | R12: WSPE | T12: devaluation ratio | AI12: =AVERAGE(AI2:AI10) -> 40.33333333 | AJ12: =AVERAGE(AJ2:AJ10) -> 34.55555556 | AK12: 16.625 | AL12: 11.125 | AM12: 21.66666667 | AN12: 4.222222222 | AO12: 1 | AP12: 0.2222222222 | AQ12: 0.1111111111 | AR12: 0.1111111111 | AS12: 0 | AT12: 0 | AU12: 0 | AV12: 0 | AX12: =AVERAGE(AX2:AX10) -> 0.5555555556 | AY12: =AVERAGE(AY2:AY10) -> 1.333333333 | AZ12: 0.8888888889 | BA12: 1.777777778 | BB12: 1.111111111 | BC12: 1 | BD12: 0.4444444444 | BE12: 0.7777777778 | BF12: 1.111111111 | BG12: 1.222222222 | BH12: 1.111111111 | BI12: 0.8888888889 | BJ12: 1.333333333 | BK12: 1.333333333 | BL12: 0.8888888889 | BM12: 1.333333333 | BN12: 1.444444444 | BO12: 0.7777777778 | BP12: 0.4444444444 | BQ12: 0.3333333333 | BR12: 0.2222222222 | BS12: 0.1111111111 | BT12: 0.1111111111 | BU12: 0.1111111111 | BV12: 0.2222222222 | BW12: 0.2222222222 | BX12: 0.1111111111 | BY12: 0.2222222222 | BZ12: 0.2222222222 | CA12: 0
A13: YV-D | B13: 7 | C13: 0.1836854063 | D13: 0.2811288961 | E13: 0.3222377471 | F13: 6.010951926 | G13: 5.556932213 | H13: 5.230136854 | I13: 1 | J13: 2 | K13: 0 | L13: 25 | M13: 30 | N13: 9 | O13: 8 | P13: 0 | Q13: 0 | R13: 0 | T13: =M13/(L13+M13) -> 0.5454545455 | AI13: =STDEV(AI2:AI10)/SQRT(COUNT(AI2:AI10)) -> 3.947573094 | AJ13: =STDEV(AJ2:AJ10)/SQRT(COUNT(AJ2:AJ10)) -> 3.504406397 | AK13: 6.497080388 | AL13: 2.74797003 | AM13: 8.556998435 | AN13: 2.425431106 | AO13: 0.6009252126 | AP13: 0.2222222222 | AQ13: 0.1111111111 | AR13: 0.1111111111 | AS13: 0 | AT13: 0 | AU13: 0 | AV13: 0 | AX13: =STDEV(AX2:AX10)/SQRT(COUNT(AX2:AX10)) -> 0.3767961102 | AY13: =STDEV(AY2:AY10)/SQRT(COUNT(AY2:AY10)) -> 0.7264831573 | AZ13: 0.4547418207 | BA13: 0.9686442097 | BB13: 0.5121969143 | BC13: 0.4409585518 | BD13: 0.2421610524 | BE13: 0.2777777778 | BF13: 0.4843221048 | BG13: 0.5471587668 | BH13: 0.5121969143 | BI13: 0.3513641845 | BJ13: 0.7993052539 | BK13: 0.7071067812 | BL13: 0.6111111111 | BM13: 0.8333333333 | BN13: 0.5030769521 | BO13: 0.7777777778 | BP13: 0.2421610524 | BQ13: 0.2357022604 | BR13: 0.1469861839 | BS13: 0.1111111111 | BT13: 0.1111111111 | BU13: 0.1111111111 | BV13: 0.2222222222 | BW13: 0.1469861839 | BX13: 0.1111111111 | BY13: 0.2222222222 | BZ13: 0.2222222222 | CA13: 0
A14: YV-D | B14: 10 | C14: 0.2883607831 | D14: 0.237648876 | E14: 0.2564385347 | F14: 3.845310772 | G14: 4.360831887 | H14: 4.160064038 | I14: 7 | J14: 7 | K14: 3 | L14: 19 | M14: 16 | N14: 13 | O14: 22 | P14: 0 | Q14: 0 | R14: 0 | T14: =M14/(L14+M14) -> 0.4571428571
A15: YV-D | B15: 11 | C15: 0.3217637558 | D15: 0.2824933172 | E15: 0.6120612943 | F15: 2.876174042 | G15: 3.249475849 | H15: 3.593221154 | I15: 4 | J15: 1 | K15: 2 | L15: 20 | M15: 15 | N15: 43 | O15: 56 | P15: 1 | Q15: 0 | R15: 0 | T15: =M15/(L15+M15) -> 0.4285714286 | AI15: =AVERAGE(AI2:AI4,AI9:AI10) -> 35.4 | AJ15: =AVERAGE(AJ2:AJ4,AJ9:AJ10) -> 35.2 | AK15: =AJ2/(AI2+AJ2) -> 0.5555555556 | AL15: YVG04 | AX15: Session 1 trial 1 | AY15: Session 1 trial 2 | AZ15: Session 1 trial 3 | BA15: Session 1 trial 4 | BB15: Session 1 trial 5 | BC15: Session 1 trial 6 | BD15: Session 1 trial 7 | BE15: Session 1 trial 8 | BF15: Session 1 trial 9 | BG15: Session 1 trial 10 | BH15: Session 1 trial 11 | BI15: Session 1 trial 12 | BJ15: Session 1 trial 13 | BK15: Session 1 trial 14 | BL15: Session 1 trial 15 | BM15: Session 1 trial 16 | BN15: Session 1 trial 17 | BO15: Session 1 trial 18 | BP15: Session 1 trial 19 | BQ15: Session 1 trial 20 | BR15: Session 1 trial 21 | BS15: Session 1 trial 22 | BT15: Session 1 trial 23 | BU15: Session 1 trial 24 | BV15: Session 1 trial 25 | BW15: Session 1 trial 26 | BX15: Session 1 trial 27 | BY15: Session 1 trial 28 | BZ15: Session 1 trial 29 | CA15: Session 1 trial 30
A16: YVH | B16: 1 | C16: 0.3142153235 | D16: 0.3362861291 | E16: 0.3883735779 | F16: 2.842871383 | G16: 2.570901458 | H16: 3.012220125 | I16: 1 | J16: 2 | K16: 0 | L16: 10 | M16: 5 | N16: 0 | O16: 0 | P16: 0 | Q16: 0 | R16: 0 | T16: =M16/(L16+M16) -> 0.3333333333 | AI16: =STDEV(AI2:AI4,AI9:AI10)/SQRT(COUNT(AI2:AI4,AI9:AI10)) -> 6.249799997 | AJ16: =STDEV(AJ2:AJ4,AJ9:AJ10)/SQRT(COUNT(AJ2:AJ4,AJ9:AJ10)) -> 6.560487787 | AK16: =AJ3/(AI3+AJ3) -> 0.476744186 | AL16: YVG05 | AX16: =IF(AX2=0,0,100) -> 0 | AY16: 100 | AZ16: 100 | BA16: 100 | BB16: 0 | BC16: 0 | BD16: 0 | BE16: 100 | BF16: 100 | BG16: 100 | BH16: 100 | BI16: 100 | BJ16: 100 | BK16: 100 | BL16: 0 | BM16: 0 | BN16: 100 | BO16: 0 | BP16: 100 | BQ16: 100 | BR16: 100 | BS16: 0 | BT16: 0 | BU16: 100 | BV16: 100 | BW16: 100 | BX16: 100 | BY16: 0 | BZ16: 0 | CA16: 0
A17: YVH | B17: 11 | C17: 0.3377370061 | D17: 0.2979921397 | E17: 0.3718939117 | F17: 3.935504932 | G17: 3.420011681 | H17: 3.569893462 | I17: 1 | J17: 1 | K17: 2 | L17: 26 | M17: 10 | N17: 8 | O17: 4 | P17: 0 | Q17: 0 | R17: 0 | T17: 0.2777777778 | AI17: =AVERAGE(AI5:AI8) -> 46.5 | AJ17: =AVERAGE(AJ5:AJ8) -> 33.75 | AK17: 0.5 | AL17: YVG08 | AX17: 0 | AY17: 0 | AZ17: 0 | BA17: 100 | BB17: 100 | BC17: 100 | BD17: 100 | BE17: 100 | BF17: 100 | BG17: 100 | BH17: 100 | BI17: 100 | BJ17: 0 | BK17: 100 | BL17: 0 | BM17: 100 | BN17: 100 | BO17: 0 | BP17: 100 | BQ17: 0 | BR17: 100 | BS17: 0 | BT17: 0 | BU17: 0 | BV17: 0 | BW17: 0 | BX17: 0 | BY17: 100 | BZ17: 100 | CA17: 0
A18: YVH | B18: 12 | C18: 0.3945111874 | D18: 0.3539831114 | E18: 0.4494021585 | F18: 3.121205433 | G18: 3.186245668 | H18: 2.727114583 | I18: 0 | J18: 1 | K18: 1 | L18: 25 | M18: 11 | N18: 1 | O18: 0 | P18: 0 | Q18: 0 | R18: 0 | T18: 0.3055555556 | AI18: =STDEV(AI5:AI8)/SQRT(COUNT(AI5:AI8)) -> 2.362907813 | AJ18: =STDEV(AJ5:AJ8)/SQRT(COUNT(AJ5:AJ8)) -> 1.25 | AK18: 0.4117647059 | AL18: YVG10 | AX18: 100 | AY18: 100 | AZ18: 100 | BA18: 100 | BB18: 100 | BC18: 100 | BD18: 0 | BE18: 100 | BF18: 100 | BG18: 100 | BH18: 100 | BI18: 100 | BJ18: 100 | BK18: 0 | BL18: 100 | BM18: 100 | BN18: 100 | BO18: 100 | BP18: 0 | BQ18: 0 | BR18: 0 | BS18: 0 | BT18: 0 | BU18: 0 | BV18: 0 | BW18: 0 | BX18: 0 | BY18: 0 | BZ18: 0 | CA18: 0
A19: YVK | B19: 1 | C19: 0.3218924286 | D19: 0.2537001398 | E19: 0.2750210697 | F19: 4.650624275 | G19: 5.001068712 | H19: 5.18493196 | I19: 0 | J19: 0 | K19: 0 | L19: 37 | M19: 10 | N19: 6 | O19: 4 | P19: 0 | Q19: 0 | R19: 0 | T19: 0.2127659574 | AK19: 0.4320987654 | AL19: YVG11 | AX19: 100 | AY19: 100 | AZ19: 100 | BA19: 100 | BB19: 100 | BC19: 100 | BD19: 100 | BE19: 100 | BF19: 100 | BG19: 100 | BH19: 100 | BI19: 100 | BJ19: 100 | BK19: 100 | BL19: 100 | BM19: 100 | BN19: 100 | BO19: 0 | BP19: 100 | BQ19: 100 | BR19: 0 | BS19: 100 | BT19: 100 | BU19: 0 | BV19: 0 | BW19: 0 | BX19: 0 | BY19: 0 | BZ19: 0 | CA19: 0
A20: YVK | B20: 3 | C20: 0.301018817 | D20: 0.2510299261 | E20: 0.3584659379 | F20: 2.967609785 | G20: 3.360290644 | H20: 3.911505858 | I20: 0 | J20: 0 | K20: 0 | L20: 10 | M20: 15 | N20: 3 | O20: 4 | P20: 0 | Q20: 0 | R20: 0 | T20: =M20/(L20+M20) -> 0.6 | AK20: 0.4117647059 | AL20: YVG12 | AX20: 0 | AY20: 0 | AZ20: 0 | BA20: 0 | BB20: 0 | BC20: 0 | BD20: 0 | BE20: 0 | BF20: 0 | BG20: 0 | BH20: 0 | BI20: 100 | BJ20: 0 | BK20: 0 | BL20: 0 | BM20: 0 | BN20: 0 | BO20: 0 | BP20: 0 | BQ20: 0 | BR20: 0 | BS20: 0 | BT20: 0 | BU20: 0 | BV20: 0 | BW20: 0 | BX20: 0 | BY20: 0 | BZ20: 0 | CA20: 0
AK21: 0.4285714286 | AL21: YVJ01 | AX21: 0 | AY21: 0 | AZ21: 100 | BA21: 100 | BB21: 100 | BC21: 100 | BD21: 100 | BE21: 100 | BF21: 0 | BG21: 100 | BH21: 0 | BI21: 0 | BJ21: 0 | BK21: 100 | BL21: 0 | BM21: 0 | BN21: 100 | BO21: 0 | BP21: 0 | BQ21: 0 | BR21: 0 | BS21: 0 | BT21: 0 | BU21: 0 | BV21: 0 | BW21: 100 | BX21: 0 | BY21: 0 | BZ21: 0 | CA21: 0
F22: =AVERAGE(F13:F20) -> 3.781281569 | G22: =AVERAGE(G13:G20) -> 3.838219764 | H22: 3.923636004 | L22: =AVERAGE(L13:L14,L20) -> 18 | M22: =AVERAGE(M13:M14,M20) -> 20.33333333 | AK22: 0.4545454545 | AL22: YVJ11 | AX22: 0 | AY22: 100 | AZ22: 0 | BA22: 0 | BB22: 0 | BC22: 0 | BD22: 0 | BE22: 0 | BF22: 0 | BG22: 0 | BH22: 0 | BI22: 0 | BJ22: 0 | BK22: 0 | BL22: 0 | BM22: 0 | BN22: 0 | BO22: 0 | BP22: 0 | BQ22: 0 | BR22: 0 | BS22: 0 | BT22: 0 | BU22: 0 | BV22: 0 | BW22: 0 | BX22: 0 | BY22: 0 | BZ22: 0 | CA22: 0
B23: Repeated Measures ANOVA | F23: =STDEV(F13:F20)/SQRT(COUNT(F13:F20)) -> 0.3908019871 | G23: =STDEV(G13:G20)/SQRT(COUNT(G13:G20)) -> 0.3625409618 | H23: 0.3232233717 | L23: =STDEV(L13:L14,L20)/SQRT(COUNT(L13:L14,L20)) -> 4.358898944 | M23: =STDEV(M13:M14,M20)/SQRT(COUNT(M13:M14,M20)) -> 4.841946349 | AK23: 0.495049505 | AL23: YVJ15 | AX23: 0 | AY23: 0 | AZ23: 0 | BA23: 0 | BB23: 0 | BC23: 0 | BD23: 0 | BE23: 0 | BF23: 0 | BG23: 0 | BH23: 0 | BI23: 0 | BJ23: 0 | BK23: 0 | BL23: 0 | BM23: 0 | BN23: 0 | BO23: 0 | BP23: 0 | BQ23: 0 | BR23: 0 | BS23: 0 | BT23: 0 | BU23: 0 | BV23: 0 | BW23: 0 | BX23: 0 | BY23: 0 | BZ23: 0 | CA23: 0
B24: Acquisition Lever press | L24: =AVERAGE(L15:L19) -> 23.6 | M24: =AVERAGE(M15:M19) -> 10.2 | AX24: 0 | AY24: 0 | AZ24: 0 | BA24: 0 | BB24: 0 | BC24: 0 | BD24: 0 | BE24: 0 | BF24: 0 | BG24: 0 | BH24: 0 | BI24: 0 | BJ24: 0 | BK24: 0 | BL24: 0 | BM24: =IF(BM10=0,0,100) -> 0 | BN24: 0 | BO24: 0 | BP24: 0 | BQ24: 0 | BR24: 0 | BS24: 0 | BT24: 0 | BU24: 0 | BV24: 0 | BW24: 0 | BX24: 0 | BY24: 0 | BZ24: 0 | CA24: 0
L25: =STDEV(L15:L19)/SQRT(COUNT(L15:L19)) -> 4.388621651 | M25: =STDEV(M15:M19)/SQRT(COUNT(M15:M19)) -> 1.593737745
B27: Within Subjects Effects
D28: Sum of Squares | F28: df | H28: Mean Square | J28: F | L28: p | N28: η² | AX28: =AVERAGE(AX16:AX24) -> 22.22222222 | AY28: =AVERAGE(AY16:AY24) -> 44.44444444 | AZ28: 44.44444444 | BA28: 55.55555556 | BB28: 44.44444444 | BC28: 44.44444444 | BD28: 33.33333333 | BE28: 55.55555556 | BF28: 44.44444444 | BG28: 55.55555556 | BH28: 44.44444444 | BI28: 55.55555556 | BJ28: 33.33333333 | BK28: 44.44444444 | BL28: 22.22222222 | BM28: 33.33333333 | BN28: 55.55555556 | BO28: 11.11111111 | BP28: 33.33333333 | BQ28: 22.22222222 | BR28: 22.22222222 | BS28: 11.11111111 | BT28: 11.11111111 | BU28: 11.11111111 | BV28: 11.11111111 | BW28: 22.22222222 | BX28: 11.11111111 | BY28: 11.11111111 | BZ28: 11.11111111 | CA28: 0
B29: deval | D29: 150.2 | F29: 1 | H29: 150.22 | J29: 4.87 | L29: 0.058 | N29: 0.378 | AX29: =STDEV(AX16:AX24)/SQRT(COUNT(AX16:AX24)) -> 14.69861839 | AY29: =STDEV(AY16:AY24)/SQRT(COUNT(AY16:AY24)) -> 17.56820922 | AZ29: 17.56820922 | BA29: 17.56820922 | BB29: 17.56820922 | BC29: 17.56820922 | BD29: 16.66666667 | BE29: 17.56820922 | BF29: 17.56820922 | BG29: 17.56820922 | BH29: 17.56820922 | BI29: 17.56820922 | BJ29: 16.66666667 | BK29: 17.56820922 | BL29: 14.69861839 | BM29: 16.66666667 | BN29: 17.56820922 | BO29: 11.11111111 | BP29: 16.66666667 | BQ29: 14.69861839 | BR29: 14.69861839 | BS29: 11.11111111 | BT29: 11.11111111 | BU29: 11.11111111 | BV29: 11.11111111 | BW29: 14.69861839 | BX29: 11.11111111 | BY29: 11.11111111 | BZ29: 11.11111111 | CA29: 0
B30: Residual | D30: 246.8 | F30: 8 | H30: 30.85
B32: Note. Type III Sum of Squares
B33: Between Subjects Effects
D34: Sum of Squares | F34: df | H34: Mean Square | J34: F | L34: p | N34: η²
B35: Residual | D35: 1759 | F35: 8 | H35: 219.9
B37: Note. Type III Sum of Squares
B39: Repeated Measures ANOVA
B40: Overtraining Lever press
B41: Within Subjects Effects
D42: Sum of Squares | F42: df | H42: Mean Square | J42: F | L42: p | N42: η²
B43: deval | D43: 225 | F43: 1 | H43: 225 | J43: 3.75 | L43: 0.094 | N43: 0.349
B44: Residual | D44: 420 | F44: 7 | H44: 60
B46: Note. Type III Sum of Squares
B47: Between Subjects Effects
D48: Sum of Squares | F48: df | H48: Mean Square | J48: F | L48: p | N48: η²
B49: Residual | D49: 522 | F49: 7 | H49: 74.57
B51: Note. Type III Sum of Squares

Sheet Behavior inact DLS
D1: prior training
AX2: DT5 training | BI2: inactivation
D3: response rate (nb LP/min) | J3: response rate (nb LP/min) | AI3: response rate (nb LP/min) | AX3: response rate (resp/s) | BI3: saline
D4: s02-CRF | E4: s03-CRF | F4: s04-CRF | G4: s05-CRF | H4: s06-CRF | J4: s07-LR | K4: s08-LR | L4: s09-LR | M4: s10-LR | N4: s11-LR | O4: s12-LR | P4: s13-LR | Q4: s14-LR | R4: s15-LR | S4: s16-LR | T4: s17-LR | U4: s18-LR | V4: s19-LR | X4: s20-LR | Y4: s21-LR | AA4: s22-LR | AB4: s23-LR | AC4: s24-LR | AD4: s25-LR | AF4: s26-LR | AG4: s27-LR | AI4: s29-LR | AJ4: s30-LR | AK4: s31-LR | AL4: s32-LR | AM4: s33-LR | AN4: s34-LR | AO4: s35-LR | AP4: s36-LR | AQ4: s37-LR | AR4: s38-LR | AX4: s43-DT5 | AY4: s44-DT5 | AZ4: s45-DT5 | BA4: s46-DT5 | BB4: s47-DT5 | BC4: s48-DT5 | BD4: s49-DT5 | BE4: s50-DT5 | BF4: s51-DT5 | BG4: s52-DT5 | BI4: s53-DT5 | BJ4: s54-DT5
A5: Code Exp | B5: sex | C5: Rat | D5: s2 | E5: s3 | F5: s4 | G5: s5 | H5: s6 | J5: s7 | K5: s8 | L5: s9 | M5: s10 | N5: s11 | O5: s12 | P5: s13 | Q5: s14 | R5: s15 | S5: s16 | T5: s17 | U5: s18 | V5: s19 | X5: s20 | Y5: s21 | AA5: s22 | AB5: s23 | AC5: s24 | AD5: s25 | AF5: s26 | AG5: s27 | AI5: s29 | AJ5: s30 | AK5: s31 | AL5: s32 | AM5: s33 | AN5: s34 | AO5: s35 | AP5: s36 | AQ5: s37 | AR5: s38 | AT5: Code Exp | AU5: group | AV5: Rat | AW5: box | AX5: s43 | AY5: s44 | AZ5: s45 | BA5: s46 | BB5: s47 | BC5: s48 | BD5: s49 | BE5: s50 | BF5: s51 | BG5: s52 | BI5: s53 | BJ5: s54 | BL5: saline | BM5: inactivation
A6: YVAB | B6: M | C6: 3 | D6: 0.6333298148 | E6: 0.7402650402 | F6: 2.089500261 | G6: 3.192362652 | H6: 4.188156823 | J6: 2.533305185 | K6: 9.305013726 | L6: 17.694741 | M6: 20.97620008 | N6: 19.0618576 | O6: 18.25999257 | P6: 18.30070343 | Q6: 28.28884975 | R6: 25.43822676 | S6: 23.55835186 | T6: 32.60408117 | U6: 31.46554181 | V6: *** | X6: 27.66798419 | Y6: *** | AA6: 32.70149815 | AB6: 32.60060126 | AC6: 41.33099825 | AD6: *** | AF6: 39.08672367 | AG6: *** | AI6: 34.87216551 | AJ6: 36.78779722 | AK6: 31.84582088 | AL6: 32.6060107 | AM6: 36.68820819 | AN6: 35.68498769 | AO6: 42.69202088 | AP6: 31.83592676 | AQ6: 29.49526814 | AR6: 31.49784087 | AT6: YVAB | AU6: U | AV6: 3 | AW6: 3 | AX6: 1.159 | AY6: 1.02 | AZ6: 0.827 | BA6: 1.211 | BB6: 1.482 | BC6: 1.532 | BD6: 1.301 | BE6: 1.392 | BF6: 1.485 | BG6: 1.406 | BH6: =AVERAGE(BE6:BG6) -> 1.427666667 | BI6: 0.795 | BJ6: 1.56 | BL6: =BJ6 -> 1.56 | BM6: =BI6 -> 0.795
A7: YVAB | B7: M | C7: 4 | D7: 0.1833323148 | E7: 1.109105539 | F7: 3.782162709 | G7: 2.925259617 | H7: 4.570136858 | J7: 1.399984445 | K7: 7.560176567 | L7: 8.702560881 | M7: 5.629627859 | N7: 6.66455794 | O7: 10.28249927 | P7: 10.46546069 | Q7: 13.78778669 | R7: 14.33367164 | S7: 16.59927644 | T7: 12.88810779 | U7: 19.47415694 | V7: *** | X7: 17.77119585 | Y7: *** | AA7: 21.24579649 | AB7: 9.528688525 | AC7: 72.64573991 | AD7: *** | AF7: 22.00342275 | AG7: *** | AI7: 6.044495285 | AJ7: 24.31971528 | AK7: 23.80549171 | AL7: 24.39085218 | AM7: 22.43528284 | AN7: 11.93149015 | AO7: 6.411902267 | AP7: 24.25624546 | AQ7: 20.72027627 | AR7: 29.90434325 | AT7: YVAB | AU7: U | AV7: 4 | AW7: 4 | AX7: 0.93 | AY7: 1.268 | AZ7: 1.677 | BA7: 1.59 | BB7: 1.69 | BC7: 1.804 | BD7: 1.826 | BE7: 1.792 | BF7: 1.739 | BG7: 2.272 | BH7: =AVERAGE(BE7:BG7) -> 1.934333333 | BI7: 1.308 | BJ7: 1.14 | BL7: OUT | BM7: OUT
A8: YVAB | B8: M | C8: 8 | D8: 0.632121045 | E8: 0.9368549973 | F8: 1.345564892 | G8: 1.76720726 | H8: 3.828076817 | J8: 2.299974445 | K8: 5.716669884 | L8: 3.433295186 | M8: 1.966644815 | N8: 3.233297408 | O8: 3.03329963 | P8: 4.566615926 | Q8: 8.97215737 | R8: 5.066610371 | S8: 3.399962223 | T8: 4.399951112 | U8: 4.333285186 | V8: *** | X8: 3.899956667 | Y8: *** | AA8: 3.433295186 | AB8: 2.199975556 | AC8: 9.520682863 | AD8: *** | AF8: 3.399962223 | AG8: *** | AI8: 4.399951112 | AJ8: 8.352692901 | AK8: 7.147719537 | AL8: 6.938371362 | AM8: 9.510661144 | AN8: 4.866612593 | AO8: 6.623093682 | AP8: 5.203990845 | AQ8: 6.884381604 | AR8: 4.83327963 | AT8: YVAB | AU8: U | AV8: 8 | AW8: 8 | AX8: 0.182 | AY8: 0.207 | AZ8: 0.151 | BA8: 0.219 | BB8: 0.277 | BC8: 0.273 | BD8: 0.294 | BE8: 0.225 | BF8: 0.183 | BG8: 0.233 | BH8: 0.2136666667 | BI8: 0.214 | BJ8: 0.277 | BL8: =BI8 -> 0.214 | BM8: =BJ8 -> 0.277
A9: YVAB | B9: M | C9: 10 | D9: 0.7451221113 | E9: 1.216231158 | F9: 2.55877179 | G9: 4.245754246 | H9: 6.561540904 | J9: 6.399649934 | K9: 9.696511774 | L9: 11.08950817 | M9: 13.93448498 | N9: 19.89246169 | O9: 19.80364538 | P9: 21.10673435 | Q9: 15.31715521 | R9: 21.59312033 | S9: 16.82082963 | T9: 20.2128292 | U9: 21.41449529 | V9: *** | X9: 25.72759309 | Y9: *** | AA9: 7.234894452 | AB9: 20.30610045 | AC9: 23.08743169 | AD9: *** | AF9: 30.9854851 | AG9: *** | AI9: 14.47888852 | AJ9: 29.99057439 | AK9: 28.83818574 | AL9: 22.94253379 | AM9: 27.08185414 | AN9: 24.50591092 | AO9: 28.08087291 | AP9: 30.13552569 | AQ9: 25.3243037 | AR9: 23.37251667 | AT9: YVAB | AU9: U | AV9: 10 | AW9: 10 | AX9: 0.873 | AY9: 0.925 | AZ9: 1.17 | BA9: 0.865 | BB9: 0.892 | BC9: 1.188 | BD9: 1.154 | BE9: 1.2 | BF9: 1.608 | BG9: 1.731 | BH9: 1.513 | BI9: 1.142 | BJ9: 1.553 | BL9: 1.142 | BM9: =BJ9 -> 1.553
A10: YVAB | B10: M | C10: 11 | D10: 0.1333325926 | E10: 0.6180276801 | F10: 2.271360812 | G10: 1.433975663 | H10: 3.680840459 | J10: 2.333307408 | K10: 5.708098365 | L10: 9.269383947 | M10: 7.787683164 | N10: 6.897899071 | O10: 8.748022642 | P10: 9.950570219 | Q10: 13.76786598 | R10: 17.41103815 | S10: 10.15475493 | T10: 15.85553843 | U10: 19.81771051 | V10: *** | X10: 17.48466258 | Y10: *** | AA10: 19.09675272 | AB10: 16.60163178 | AC10: 23.87596899 | AD10: *** | AF10: 21.82516987 | AG10: *** | AI10: 20.65336549 | AJ10: 23.6385398 | AK10: 28.57142857 | AL10: 23.65189266 | AM10: 27.19007072 | AN10: 20.22640253 | AO10: 31.66176282 | AP10: 22.63540825 | AQ10: 29.48586358 | AR10: 25.85492514 | AT10: YVAB | AU10: U | AV10: 11 | AW10: 11 | AX10: 0.428 | AY10: 0.578 | AZ10: 0.787 | BA10: 0.636 | BB10: 0.767 | BC10: 0.86 | BD10: 1.121 | BE10: 0.651 | BF10: 0.935 | BG10: 1.15 | BH10: 0.912 | BI10: 0.587 | BJ10: 0.996 | BL10: =BJ10 -> 0.996 | BM10: =BI10 -> 0.587
A11: YVAB | B11: M | C11: 12 | D11: 0.8115749791 | E11: 2.136948529 | F11: 3.580257438 | G11: 3.146157524 | H11: 6.111993289 | J11: 4.433284075 | K11: 10.41000291 | L11: 10.00019608 | M11: 2.833301852 | N11: 17.91346884 | O11: 18.56592931 | P11: 20.05309295 | Q11: 24.01993143 | R11: 24.85037731 | S11: 21.60506108 | T11: 18.69959073 | U11: 21.35481852 | V11: *** | X11: 6.36121075 | Y11: *** | AA11: 22.71884454 | AB11: 17.93094678 | AC11: 7.920085623 | AD11: *** | AF11: 34.41326926 | AG11: *** | AI11: 4.866612593 | AJ11: 26.4894985 | AK11: 30.6263787 | AL11: 32.23394534 | AM11: 34.66367977 | AN11: 27.16277394 | AO11: 38.39676659 | AP11: 24.37495647 | AQ11: 32.57678588 | AR11: 26.99082615 | AT11: YVAB | AU11: U | AV11: 12 | AW11: 12 | AX11: 0.423 | AY11: 0.631 | AZ11: 0.817 | BA11: 0.48 | BB11: 0.656 | BC11: 0.773 | BD11: 1.01 | BE11: 0.294 | BF11: 0.562 | BG11: 1.291 | BH11: 0.7156666667 | BI11: 0.707 | BJ11: 0.644 | BL11: =BI11 -> 0.707 | BM11: =BJ11 -> 0.644
A12: YVAB | B12: M | C12: 15 | D12: 0.8990939899 | E12: 3.279640606 | F12: 4.15904496 | G12: 5.71734858 | H12: 5.494505495 | J12: 8.397980094 | K12: 11.23718487 | L12: 13.22823753 | M12: 11.89771059 | N12: 15.84130899 | O12: 16.77628108 | P12: 16.57314594 | Q12: 19.92734821 | R12: 19.87486198 | S12: 20.64935065 | T12: *** | U12: 16.90554943 | V12: 19.41626735 | X12: *** | Y12: 20.07683728 | AA12: *** | AB12: 22.78481013 | AC12: 25.76 | AD12: 31.30929791 | AF12: *** | AG12: 26.59225213 | AI12: 28.02372561 | AJ12: 27.60657786 | AK12: 26.74857966 | AL12: 32.2954941 | AM12: 26.46640051 | AN12: 26.20019234 | AO12: 31.40320657 | AP12: 21.0657821 | AQ12: 34.61038311 | AR12: 33.81060391 | AT12: YVAB | AU12: U | AV12: 15 | AW12: 1 | AX12: 0.756 | AY12: 0.971 | AZ12: 0.859 | BA12: 1.056 | BB12: 1.043 | BC12: 0.926 | BD12: 0.977 | BE12: 1.011 | BF12: 1.037 | BG12: 0.969 | BH12: 1.005666667 | BI12: 0.838 | BJ12: 1.16 | BL12: =BJ12 -> 1.16 | BM12: =BI12 -> 0.838
A13: YVAB | B13: M | C13: 16 | D13: 0 | E13: 0 | F13: 0.03333314815 | G13: 0.09999944445 | H13: 0.1833323148 | J13: 4.299952223 | K13: 8.655795183 | L13: 9.049524072 | M13: 9.595132226 | N13: 13.73778863 | O13: 13.07679494 | P13: 13.11130781 | Q13: 13.50723904 | R13: 15.80689246 | S13: 13.34730255 | T13: *** | U13: 15.31650887 | V13: 16.9073992 | X13: *** | Y13: 19.30555281 | AA13: *** | AB13: 15.40102674 | AC13: 32.14285714 | AD13: 16.19280091 | AF13: *** | AG13: 22.28044196 | AI13: 28.0137256 | AJ13: 22.05987001 | AK13: 27.37542259 | AL13: 25.54414347 | AM13: 22.83511984 | AN13: 21.26151665 | AO13: 24.69261254 | AP13: 17.90487349 | AQ13: 22.325325 | AR13: 21.38019565 | AT13: YVAB | AU13: U | AV13: 16 | AW13: 2 | AX13: 0.473 | AY13: 0.544 | AZ13: 0.79 | BA13: 0.891 | BB13: 0.876 | BC13: 0.885 | BD13: 1.042 | BE13: 0.895 | BF13: 1.006 | BG13: 1.289 | BH13: 1.063333333 | BI13: 1.069 | BJ13: 0.792 | BL13: =BI13 -> 1.069 | BM13: =BJ13 -> 0.792
A14: YVAB | B14: M | C14: 18 | D14: 1.370580435 | E14: 2.459217969 | F14: 4.108369662 | G14: 4.882146044 | H14: 6.067884457 | J14: 9.521944785 | K14: 12.16597287 | L14: 14.29581578 | M14: 13.64690492 | N14: 16.27599638 | O14: 16.44576684 | P14: 15.63319516 | Q14: 13.61681796 | R14: 21.5949476 | S14: 29.315668 | T14: *** | U14: 20.21459227 | V14: 22.08120031 | X14: *** | Y14: 23.30827068 | AA14: *** | AB14: 27.47141993 | AC14: 15.43086172 | AD14: 23.52402047 | AF14: *** | AG14: 27.42215247 | AI14: 28.89447236 | AJ14: 20.97256419 | AK14: 22.65253928 | AL14: 26.51971758 | AM14: 23.7022872 | AN14: 23.48365139 | AO14: 26.90431202 | AP14: 22.10769338 | AQ14: 22.27139696 | AR14: 29.62289868 | AT14: YVAB | AU14: U | AV14: 18 | AW14: 6 | AX14: 1.11 | AY14: 1.202 | AZ14: 1.312 | BA14: 1.308 | BB14: 1.426 | BC14: 1.603 | BD14: 1.513 | BE14: 1.445 | BF14: 1.399 | BG14: 0.892 | BH14: 1.245333333 | BI14: 0.587 | BJ14: 0.674 | BL14: =BI14 -> 0.587 | BM14: =BJ14 -> 0.674
A15: YVAB | B15: M | C15: 19 | D15: 0.9630490717 | E15: 1.792014336 | F15: 3.743057233 | G15: 3.425035908 | H15: 5.863438623 | J15: 7.712473573 | K15: 10.50487481 | L15: 10.59683743 | M15: 9.56958149 | N15: 10.66685258 | O15: 13.44101869 | P15: 12.87444592 | Q15: 13.52016833 | R15: 11.40411606 | S15: 13.10635076 | T15: *** | U15: 14.94679535 | V15: 11.73012934 | X15: *** | Y15: 20.03798049 | AA15: *** | AB15: 20.67605251 | AC15: 7.405614714 | AD15: 25.47099137 | AF15: *** | AG15: 21.98865994 | AI15: 22.62745847 | AJ15: 22.83316664 | AK15: 26.08984656 | AL15: 22.1261803 | AM15: 20.22427353 | AN15: 7.939033582 | AO15: 24.52208306 | AP15: 24.18104785 | AQ15: 25.4133746 | AR15: 20.82692561 | AT15: YVAB | AU15: U | AV15: 19 | AW15: 7 | AX15: 1.136 | AY15: 1.089 | AZ15: 1.197 | BA15: 1.2 | BB15: 1.358 | BC15: 1.467 | BD15: 1.396 | BE15: 1.312 | BF15: 0.968 | BG15: 1.033 | BH15: 1.104333333 | BI15: 0.323 | BJ15: 1.279 | BL15: =BJ15 -> 1.279 | BM15: =BI15 -> 0.323
A16: YVAB | B16: M | C16: 22 | D16: 0.04999972222 | E16: 0.01666657407 | F16: 0.01666657407 | G16: 0.1499991667 | H16: 0.04999972222 | J16: 9.279399733 | K16: 12.43683362 | L16: 19.9258672 | M16: 21.85333053 | N16: 18.91311022 | O16: 25.81624905 | P16: 22.84787736 | Q16: 25.50219286 | R16: 26.11332622 | S16: 24.02703041 | T16: *** | U16: 28.32212845 | V16: 29.92386236 | X16: *** | Y16: 28.28437583 | AA16: *** | AB16: 28.014007 | AC16: 30.08695652 | AD16: 41.52733494 | AF16: *** | AG16: 33.46403461 | AI16: 37.04360785 | AJ16: 34.7056822 | AK16: 35.01048218 | AL16: 41.1519515 | AM16: 36.87540912 | AN16: 36.25705601 | AO16: 36.14958449 | AP16: 31.70486595 | AQ16: 37.36853882 | AR16: 33.56256787 | AT16: YVAB | AU16: U | AV16: 22 | AW16: 5 | AX16: 1.051 | AY16: 1.111 | AZ16: 1.213 | BA16: 1.139 | BB16: 1.38 | BC16: 1.565 | BD16: 1.516 | BE16: 1.492 | BF16: 1.474 | BG16: 1.314 | BH16: 1.426666667 | BI16: 0.899 | BJ16: 1.559 | BL16: =BJ16 -> 1.559 | BM16: =BI16 -> 0.899
A17: YVAB | B17: M | C17: 23 | D17: 0.2499986111 | E17: 0 | F17: 0 | G17: 0.233332037 | H17: 0.0666662963 | J17: 8.923059655 | K17: 18.24346736 | L17: 18.64283248 | M17: 14.68189233 | N17: 28.30499177 | O17: 22.10555402 | P17: 20.55674518 | Q17: 21.67377473 | R17: 28.97934386 | S17: 28.31691346 | T17: *** | U17: 29.09242348 | V17: 28.85876694 | X17: *** | Y17: 39.54823181 | AA17: *** | AB17: 28.52776363 | AC17: 11.54639175 | AD17: 33.37856174 | AF17: *** | AG17: 27.1240308 | AI17: 28.73401318 | AJ17: 34.97134025 | AK17: 39.59259791 | AL17: 40.99935939 | AM17: 43.48726444 | AN17: 32.98982649 | AO17: 36.40534241 | AP17: 28.20130689 | AQ17: 39.6109223 | AR17: 34.45136895 | AT17: YVAB | AU17: U | AV17: 23 | AW17: 9 | AX17: 1.054 | AY17: 1.284 | AZ17: 1.225 | BA17: 1.508 | BB17: 1.361 | BC17: 1.518 | BD17: 1.814 | BE17: 1.555 | BF17: 1.696 | BG17: 1.745 | BH17: 1.665333333 | BI17: 1.414 | BJ17: 1.667 | BL17: =BJ17 -> 1.667 | BM17: =BI17 -> 1.414
D19: =AVERAGE(D6:D17) -> 0.555961224 | E19: 1.192081036 | F19: 2.30734079 | G19: 2.601548179 | H19: 3.888881005 | J19: 5.627859629 | K19: 10.13671683 | L19: 12.16073332 | M19: 11.1977079 | N19: 14.78363259 | O19: 15.52958779 | P19: 15.50332458 | Q19: 17.65844063 | R19: 19.37221106 | S19: 18.40840433 | T19: 17.44334974 | U19: 20.22150051 | V19: 21.48627092 | X19: 16.48543385 | Y19: 25.09354148 | AA19: 17.73851359 | AB19: 20.17025202 | AC19: 25.0627991 | AD19: 28.56716789 | AF19: 25.28567215 | AG19: 26.47859532 | AI19: 21.55437347 | AJ19: 26.06066827 | AK19: 27.35870778 | AL19: 27.61670436 | AM19: 27.59670929 | AN19: 22.70912119 | AO19: 27.82863002 | AP19: 23.6339686 | AQ19: 27.17390167 | AR19: =AVERAGE(AR6:AR17) -> 26.3423577 | AX19: =AVERAGE(AX6:AX17) -> 0.7979166667 | AY19: =AVERAGE(AY6:AY17) -> 0.9025 | AZ19: 1.002083333 | BA19: 1.008583333 | BB19: 1.100666667 | BC19: 1.1995 | BD19: 1.247 | BE19: 1.105333333 | BF19: 1.174333333 | BG19: 1.277083333 | BH19: 1.185583333 | BI19: 0.8235833333 | BJ19: 1.108416667 | BL19: =AVERAGE(BL6:BL17) -> 1.085454545 | BM19: 0.7996363636
D20: =STDEV(D6:D17)/SQRT(COUNT(D6:D17)) -> 0.1241986992 | E20: 0.3020916039 | F20: 0.471203421 | G20: 0.5433968027 | H20: 0.7123817416 | J20: 0.8899321955 | K20: 0.9747406522 | L20: 1.38461834 | M20: 1.822223719 | N20: 2.016937492 | O20: 1.797412921 | P20: 1.578794895 | Q20: 1.736448865 | R20: 1.993849377 | S20: 2.207724474 | T20: 3.79691786 | U20: 2.113240278 | V20: 2.865506746 | X20: 3.974974678 | Y20: 3.19652686 | AA20: 4.388643445 | AB20: 2.496925517 | AC20: 5.317659487 | AD20: 3.590632818 | AF20: 5.189741342 | AG20: 1.711726014 | AI20: 3.338954763 | AJ20: 2.239466086 | AK20: 2.282889383 | AL20: 2.670849172 | AM20: 2.638363522 | AN20: 2.957259794 | AO20: 3.294751944 | AP20: 2.094702452 | AQ20: 2.554280505 | AR20: =STDEV(AR6:AR17)/SQRT(COUNT(AR6:AR17)) -> 2.3850107 | AX20: =STDEV(AX6:AX17)/SQRT(COUNT(AX6:AX17)) -> 0.0976571351 | AY20: =STDEV(AY6:AY17)/SQRT(COUNT(AY6:AY17)) -> 0.09759793062 | AZ20: 0.1105390688 | BA20: 0.1183883222 | BB20: 0.1198301407 | BC20: 0.131275416 | BD20: 0.1208803566 | BE20: 0.1447372925 | BF20: 0.1381858834 | BG20: 0.1467373689 | BH20: 0.1323589022 | BI20: 0.1065752301 | BJ20: 0.1278549994 | BL20: =STDEV(BL6:BL17)/SQRT(COUNT(BL6:BL17)) -> 0.1346118571 | BM20: 0.1183975025
D24: Nb lever press | J24: Nb lever press | AI24: Nb lever press | AX24: Nb lever press
D25: s02-CRF | E25: s03-CRF | F25: s04-CRF | G25: s05-CRF | H25: s06-CRF | J25: s07-LR | K25: s08-LR | L25: s09-LR | M25: s10-LR | N25: s11-LR | O25: s12-LR | P25: s13-LR | Q25: s14-LR | R25: s15-LR | S25: s16-LR | T25: s17-LR | U25: s18-LR | V25: s19-LR | X25: s20-LR | Y25: s21-LR | AA25: s22-LR | AB25: s23-LR | AC25: s24-LR | AD25: s25-LR | AF25: s26-LR | AG25: s27-LR | AI25: s29-LR | AJ25: s30-LR | AK25: s31-LR | AL25: s32-LR | AM25: s33-LR | AN25: s34-LR | AO25: s35-LR | AP25: s36-LR | AQ25: s37-LR | AR25: s38-LR | AX25: s43-DT5 | AY25: s44-DT5 | AZ25: s45-DT5 | BA25: s46-DT5 | BB25: s47-DT5 | BC25: s48-DT5 | BD25: s49-DT5 | BE25: s50-DT5 | BF25: s51-DT5 | BG25: s52-DT5 | BI25: s53-DT5 | BJ25: s54-DT5
A26: Code Exp | B26: sex | C26: Rat | D26: s2 | E26: s3 | F26: s4 | G26: s5 | H26: s6 | J26: s7 | K26: s8 | L26: s9 | M26: s10 | N26: s11 | O26: s12 | P26: s13 | Q26: s14 | R26: s15 | S26: s16 | T26: s17 | U26: s18 | V26: s19 | X26: s20 | Y26: s21 | AA26: s22 | AB26: s23 | AC26: s24 | AD26: s25 | AF26: s26 | AG26: s27 | AI26: s29 | AJ26: s30 | AK26: s31 | AL26: s32 | AM26: s33 | AN26: s34 | AO26: s35 | AP26: s36 | AQ26: s37 | AR26: s38 | AT26: Code Exp | AU26: group | AV26: Rat | AW26: box | AX26: s43 | AY26: s44 | AZ26: s45 | BA26: s46 | BB26: s47 | BC26: s48 | BD26: s49 | BE26: s50 | BF26: s51 | BG26: s52 | BI26: s53 | BJ26: s54 | BL26: saline | BM26: inactivation
A27: YVAB | B27: M | C27: 3 | D27: 38 | E27: 39 | F27: 36 | G27: 35 | H27: 36 | J27: 76 | K27: 161 | L27: 179 | M27: 182 | N27: 170 | O27: 172 | P27: 160 | Q27: 174 | R27: 171 | S27: 166 | T27: 192 | U27: 184 | V27: *** | X27: 182 | Y27: *** | AA27: 203 | AB27: 197 | AC27: 236 | AD27: *** | AF27: 208 | AG27: *** | AI27: 193 | AJ27: 205 | AK27: 206 | AL27: 198 | AM27: 211 | AN27: 203 | AO27: 229 | AP27: 193 | AQ27: 187 | AR27: 186 | AT27: YVAB | AU27: U | AV27: 3 | AW27: 3 | AX27: 176 | AY27: 164 | AZ27: 146 | BA27: 161 | BB27: 163 | BC27: 171 | BD27: 176 | BE27: 168 | BF27: 172 | BG27: 189 | BH27: I | BI27: 158 | BJ27: 177 | BL27: =BJ27 -> 177 | BM27: =BI27 -> 158
A28: YVAB | B28: M | C28: 4 | D28: 11 | E28: 34 | F28: 33 | G28: 30 | H28: 31 | J28: 42 | K28: 155 | L28: 157 | M28: 157 | N28: 151 | O28: 159 | P28: 159 | Q28: 155 | R28: 153 | S28: 156 | T28: 154 | U28: 159 | V28: *** | X28: 160 | Y28: *** | AA28: 159 | AB28: 155 | AC28: 162 | AD28: *** | AF28: 165 | AG28: *** | AI28: 155 | AJ28: 164 | AK28: 164 | AL28: 163 | AM28: 156 | AN28: 155 | AO28: 154 | AP28: 156 | AQ28: 154 | AR28: 161 | AT28: YVAB | AU28: U | AV28: 4 | AW28: 4 | AX28: 146 | AY28: 149 | AZ28: 153 | BA28: 154 | BB28: 156 | BC28: 162 | BD28: 155 | BE28: 151 | BF28: 146 | BG28: 161 | BH28: S | BI28: 151 | BJ28: 148 | BL28: OUT | BM28: OUT
A29: YVAB | B29: M | C29: 8 | D29: 34 | E29: 32 | F29: 32 | G29: 32 | H29: 30 | J29: 69 | K29: 153 | L29: 103 | M29: 59 | N29: 97 | O29: 91 | P29: 137 | Q29: 155 | R29: 152 | S29: 102 | T29: 132 | U29: 130 | V29: *** | X29: 117 | Y29: *** | AA29: 103 | AB29: 66 | AC29: 145 | AD29: *** | AF29: 102 | AG29: *** | AI29: 132 | AJ29: 157 | AK29: 154 | AL29: 160 | AM29: 155 | AN29: 146 | AO29: 152 | AP29: 155 | AQ29: 158 | AR29: 145 | AT29: YVAB | AU29: U | AV29: 8 | AW29: 8 | AX29: 113 | AY29: 115 | AZ29: 106 | BA29: 133 | BB29: 137 | BC29: 141 | BD29: 128 | BE29: 121 | BF29: 118 | BG29: 119 | BH29: S | BI29: 123 | BJ29: 113 | BL29: =BI29 -> 123 | BM29: =BJ29 -> 113
A30: YVAB | B30: M | C30: 10 | D30: 35 | E30: 33 | F30: 32 | G30: 34 | H30: 31 | J30: 156 | K30: 154 | L30: 154 | M30: 162 | N30: 156 | O30: 157 | P30: 167 | Q30: 170 | R30: 172 | S30: 167 | T30: 170 | U30: 163 | V30: *** | X30: 174 | Y30: *** | AA30: 156 | AB30: 157 | AC30: 169 | AD30: *** | AF30: 169 | AG30: *** | AI30: 169 | AJ30: 175 | AK30: 174 | AL30: 174 | AM30: 178 | AN30: 180 | AO30: 175 | AP30: 179 | AQ30: 177 | AR30: 170 | AT30: YVAB | AU30: U | AV30: 10 | AW30: 10 | AX30: 170 | AY30: 165 | AZ30: 170 | BA30: 167 | BB30: 172 | BC30: 166 | BD30: 170 | BE30: 172 | BF30: 167 | BG30: 173 | BH30: S | BI30: 110 | BJ30: 164 | BL30: 110 | BM30: =BJ30 -> 164
A31: YVAB | B31: M | C31: 11 | D31: 8 | E31: 33 | F31: 34 | G31: 35 | H31: 32 | J31: 70 | K31: 152 | L31: 154 | M31: 152 | N31: 153 | O31: 153 | P31: 154 | Q31: 153 | R31: 156 | S31: 153 | T31: 156 | U31: 158 | V31: *** | X31: 152 | Y31: *** | AA31: 153 | AB31: 156 | AC31: 154 | AD31: *** | AF31: 159 | AG31: *** | AI31: 157 | AJ31: 158 | AK31: 159 | AL31: 156 | AM31: 157 | AN31: 162 | AO31: 165 | AP31: 154 | AQ31: 158 | AR31: 156 | AT31: YVAB | AU31: U | AV31: 11 | AW31: 11 | AX31: 132 | AY31: 151 | AZ31: 142 | BA31: 148 | BB31: 156 | BC31: 143 | BD31: 157 | BE31: 149 | BF31: 161 | BG31: 161 | BH31: I | BI31: 160 | BJ31: 152 | BL31: =BJ31 -> 152 | BM31: =BI31 -> 160
A32: YVAB | B32: M | C32: 12 | D32: 31 | E32: 31 | F32: 35 | G32: 34 | H32: 34 | J32: 133 | K32: 179 | L32: 170 | M32: 85 | N32: 177 | O32: 168 | P32: 175 | Q32: 188 | R32: 191 | S32: 181 | T32: 182 | U32: 182 | V32: *** | X32: 180 | Y32: *** | AA32: 194 | AB32: 188 | AC32: 222 | AD32: *** | AF32: 222 | AG32: *** | AI32: 146 | AJ32: 206 | AK32: 199 | AL32: 194 | AM32: 196 | AN32: 201 | AO32: 190 | AP32: 175 | AQ32: 172 | AR32: 178 | AT32: YVAB | AU32: U | AV32: 12 | AW32: 12 | AX32: 124 | AY32: 152 | AZ32: 108 | BA32: 97 | BB32: 102 | BC32: 126 | BD32: 131 | BE32: 92 | BF32: 124 | BG32: 156 | BH32: S | BI32: 148 | BJ32: 104 | BL32: =BI32 -> 148 | BM32: =BJ32 -> 104
A33: YVAB | B33: M | C33: 15 | D33: 39 | E33: 32 | F33: 36 | G33: 32 | H33: 36 | J33: 153 | K33: 154 | L33: 153 | M33: 154 | N33: 152 | O33: 159 | P33: 159 | Q33: 160 | R33: 153 | S33: 159 | T33: *** | U33: 161 | V33: 156 | X33: *** | Y33: 162 | AA33: *** | AB33: 159 | AC33: 161 | AD33: 165 | AF33: *** | AG33: 162 | AI33: 163 | AJ33: 162 | AK33: 164 | AL33: 167 | AM33: 158 | AN33: 168 | AO33: 158 | AP33: 163 | AQ33: 173 | AR33: 159 | AT33: YVAB | AU33: U | AV33: 15 | AW33: 1 | AX33: 166 | AY33: 164 | AZ33: 153 | BA33: 163 | BB33: 152 | BC33: 153 | BD33: 146 | BE33: 156 | BF33: 152 | BG33: 152 | BH33: I | BI33: 147 | BJ33: 151 | BL33: =BJ33 -> 151 | BM33: =BI33 -> 147
A34: YVAB | B34: M | C34: 16 | D34: 0 | E34: 0 | F34: 2 | G34: 6 | H34: 11 | J34: 129 | K34: 158 | L34: 164 | M34: 164 | N34: 165 | O34: 157 | P34: 158 | Q34: 160 | R34: 160 | S34: 155 | T34: *** | U34: 158 | V34: 159 | X34: *** | Y34: 163 | AA34: *** | AB34: 154 | AC34: 162 | AD34: 157 | AF34: *** | AG34: 163 | AI34: 166 | AJ34: 155 | AK34: 166 | AL34: 160 | AM34: 158 | AN34: 165 | AO34: 162 | AP34: 163 | AQ34: 162 | AR34: 161 | AT34: YVAB | AU34: U | AV34: 16 | AW34: 2 | AX34: 141 | AY34: 142 | AZ34: 151 | BA34: 152 | BB34: 151 | BC34: 152 | BD34: 151 | BE34: 151 | BF34: 150 | BG34: 152 | BH34: S | BI34: 151 | BJ34: 150 | BL34: =BI34 -> 151 | BM34: =BJ34 -> 150
A35: YVAB | B35: M | C35: 18 | D35: 41 | E35: 30 | F35: 30 | G35: 31 | H35: 32 | J35: 154 | K35: 151 | L35: 155 | M35: 153 | N35: 156 | O35: 152 | P35: 154 | Q35: 152 | R35: 159 | S35: 163 | T35: *** | U35: 157 | V35: 156 | X35: *** | Y35: 155 | AA35: *** | AB35: 159 | AC35: 154 | AD35: 154 | AF35: *** | AG35: 166 | AI35: 161 | AJ35: 159 | AK35: 155 | AL35: 154 | AM35: 157 | AN35: 161 | AO35: 159 | AP35: 158 | AQ35: 156 | AR35: 163 | AT35: YVAB | AU35: U | AV35: 18 | AW35: 6 | AX35: 160 | AY35: 156 | AZ35: 156 | BA35: 160 | BB35: 155 | BC35: 154 | BD35: 152 | BE35: 150 | BF35: 154 | BG35: 153 | BH35: S | BI35: 150 | BJ35: 148 | BL35: =BI35 -> 150 | BM35: =BJ35 -> 148
A36: YVAB | B36: M | C36: 19 | D36: 33 | E36: 32 | F36: 31 | G36: 31 | H36: 31 | J36: 152 | K36: 153 | L36: 150 | M36: 150 | N36: 153 | O36: 152 | P36: 152 | Q36: 151 | R36: 151 | S36: 150 | T36: *** | U36: 151 | V36: 151 | X36: *** | Y36: 153 | AA36: *** | AB36: 152 | AC36: 153 | AD36: 153 | AF36: *** | AG36: 159 | AI36: 158 | AJ36: 156 | AK36: 157 | AL36: 157 | AM36: 153 | AN36: 158 | AO36: 155 | AP36: 156 | AQ36: 156 | AR36: 158 | AT36: YVAB | AU36: U | AV36: 19 | AW36: 7 | AX36: 160 | AY36: 151 | AZ36: 163 | BA36: 152 | BB36: 157 | BC36: 153 | BD36: 162 | BE36: 152 | BF36: 165 | BG36: 159 | BH36: I | BI36: 94 | BJ36: 155 | BL36: =BJ36 -> 155 | BM36: =BI36 -> 94
A37: YVAB | B37: M | C37: 22 | D37: 3 | E37: 1 | F37: 1 | G37: 9 | H37: 3 | J37: 155 | K37: 153 | L37: 155 | M37: 156 | N37: 154 | O37: 153 | P37: 155 | Q37: 157 | R37: 155 | S37: 160 | T37: *** | U37: 165 | V37: 169 | X37: *** | Y37: 160 | AA37: *** | AB37: 168 | AC37: 173 | AD37: 178 | AF37: *** | AG37: 165 | AI37: 174 | AJ37: 170 | AK37: 167 | AL37: 181 | AM37: 169 | AN37: 167 | AO37: 174 | AP37: 163 | AQ37: 167 | AR37: 170 | AT37: YVAB | AU37: U | AV37: 22 | AW37: 5 | AX37: 177 | AY37: 172 | AZ37: 173 | BA37: 169 | BB37: 181 | BC37: 172 | BD37: 171 | BE37: 172 | BF37: 172 | BG37: 167 | BH37: I | BI37: 151 | BJ37: 167 | BL37: =BJ37 -> 167 | BM37: =BI37 -> 151
A38: YVAB | B38: M | C38: 23 | D38: 15 | E38: 0 | F38: 0 | G38: 14 | H38: 4 | J38: 159 | K38: 165 | L38: 162 | M38: 159 | N38: 172 | O38: 160 | P38: 160 | Q38: 155 | R38: 159 | S38: 160 | T38: *** | U38: 163 | V38: 165 | X38: *** | Y38: 178 | AA38: *** | AB38: 168 | AC38: 168 | AD38: 164 | AF38: *** | AG38: 165 | AI38: 170 | AJ38: 181 | AK38: 184 | AL38: 192 | AM38: 175 | AN38: 167 | AO38: 164 | AP38: 164 | AQ38: 169 | AR38: 164 | AT38: YVAB | AU38: U | AV38: 23 | AW38: 9 | AX38: 162 | AY38: 154 | AZ38: 164 | BA38: 159 | BB38: 155 | BC38: 159 | BD38: 159 | BE38: 157 | BF38: 160 | BG38: 159 | BH38: I | BI38: 162 | BJ38: 165 | BL38: =BJ38 -> 165 | BM38: =BI38 -> 162
D40: =AVERAGE(D27:D38) -> 24 | E40: =AVERAGE(E27:E38) -> 24.75 | F40: =AVERAGE(F27:F38) -> 25.16666667 | G40: =AVERAGE(G27:G38) -> 26.91666667 | H40: =AVERAGE(H27:H38) -> 25.91666667 | J40: =AVERAGE(J27:J38) -> 120.6666667 | K40: =AVERAGE(K27:K38) -> 157.3333333 | L40: =AVERAGE(L27:L38) -> 154.6666667 | M40: =AVERAGE(M27:M38) -> 144.4166667 | N40: =AVERAGE(N27:N38) -> 154.6666667 | O40: =AVERAGE(O27:O38) -> 152.75 | P40: =AVERAGE(P27:P38) -> 157.5 | Q40: =AVERAGE(Q27:Q38) -> 160.8333333 | R40: =AVERAGE(R27:R38) -> 161 | S40: =AVERAGE(S27:S38) -> 156 | T40: =AVERAGE(T27:T32,U33:U38) -> 161.75 | U40: =AVERAGE(U27:U32,V33:V38) -> 161 | X40: =AVERAGE(X27:X32,Y33:Y38) -> 161.3333333 | AA40: =AVERAGE(AA27:AA32,AB33:AB38) -> 160.6666667 | AB40: =AVERAGE(AB27:AB32,AC33:AC38) -> 157.5 | AC40: =AVERAGE(AC27:AC32,AD33:AD38) -> 171.5833333 | AF40: =AVERAGE(AF27:AF32,AG33:AG38) -> 167.0833333 | AI40: =AVERAGE(AI27:AI38) -> 162 | AJ40: =AVERAGE(AJ27:AJ38) -> 170.6666667 | AK40: =AVERAGE(AK27:AK38) -> 170.75 | AL40: =AVERAGE(AL27:AL38) -> 171.3333333 | AM40: =AVERAGE(AM27:AM38) -> 168.5833333 | AN40: =AVERAGE(AN27:AN38) -> 169.4166667 | AO40: =AVERAGE(AO27:AO38) -> 169.75 | AP40: =AVERAGE(AP27:AP38) -> 164.9166667 | AQ40: =AVERAGE(AQ27:AQ38) -> 165.75 | AR40: =AVERAGE(AR27:AR38) -> 164.25 | AX40: =AVERAGE(AX27:AX38) -> 152.25 | AY40: =AVERAGE(AY27:AY38) -> 152.9166667 | AZ40: 148.75 | BA40: 151.25 | BB40: 153.0833333 | BC40: 154.3333333 | BD40: 154.8333333 | BE40: 149.25 | BF40: 153.4166667 | BG40: 158.4166667 | BI40: =AVERAGE(BI27:BI38) -> 142.0833333 | BJ40: 149.5 | BL40: =AVERAGE(BL27:BL38) -> 149.9090909 | BM40: 141
D41: =STDEV(D27:D38)/SQRT(COUNT(D27:D38)) -> 4.424449974 | E41: =STDEV(E27:E38)/SQRT(COUNT(E27:E38)) -> 4.297858875 | F41: =STDEV(F27:F38)/SQRT(COUNT(F27:F38)) -> 4.242343073 | G41: =STDEV(G27:G38)/SQRT(COUNT(G27:G38)) -> 3.078415406 | H41: =STDEV(H27:H38)/SQRT(COUNT(H27:H38)) -> 3.551479276 | J41: =STDEV(J27:J38)/SQRT(COUNT(J27:J38)) -> 12.51564677 | K41: =STDEV(K27:K38)/SQRT(COUNT(K27:K38)) -> 2.294041469 | L41: =STDEV(L27:L38)/SQRT(COUNT(L27:L38)) -> 5.27189997 | M41: =STDEV(M27:M38)/SQRT(COUNT(M27:M38)) -> 10.18425577 | N41: =STDEV(N27:N38)/SQRT(COUNT(N27:N38)) -> 5.836579184 | O41: =STDEV(O27:O38)/SQRT(COUNT(O27:O38)) -> 5.893145736 | P41: =STDEV(P27:P38)/SQRT(COUNT(P27:P38)) -> 2.603901502 | Q41: =STDEV(Q27:Q38)/SQRT(COUNT(Q27:Q38)) -> 3.197615905 | R41: =STDEV(R27:R38)/SQRT(COUNT(R27:R38)) -> 3.370999312 | S41: =STDEV(S27:S38)/SQRT(COUNT(S27:S38)) -> 5.43417915 | T41: =STDEV(T27:T32,U33:U38)/SQRT(COUNT(T27:T32,U33:U38)) -> 4.383379421 | U41: =STDEV(U27:U32,V33:V38)/SQRT(COUNT(U27:U32,V33:V38)) -> 4.065747536 | X41: =STDEV(X27:X32,Y33:Y38)/SQRT(COUNT(X27:X32,Y33:Y38)) -> 5.062238895 | AA41: =STDEV(AA27:AA32,AB33:AB38)/SQRT(COUNT(AA27:AA32,AB33:AB38)) -> 7.041364078 | AB41: =STDEV(AB27:AB32,AC33:AC38)/SQRT(COUNT(AB27:AB32,AC33:AC38)) -> 9.247030645 | AC41: =STDEV(AC27:AC32,AD33:AD38)/SQRT(COUNT(AC27:AC32,AD33:AD38)) -> 8.171882997 | AF41: =STDEV(AF27:AF32,AG33:AG38)/SQRT(COUNT(AF27:AF32,AG33:AG38)) -> 8.310688931 | AI41: =STDEV(AI27:AI38)/SQRT(COUNT(AI27:AI38)) -> 4.336246107 | AJ41: =STDEV(AJ27:AJ38)/SQRT(COUNT(AJ27:AJ38)) -> 5.234404445 | AK41: =STDEV(AK27:AK38)/SQRT(COUNT(AK27:AK38)) -> 4.931538883 | AL41: =STDEV(AL27:AL38)/SQRT(COUNT(AL27:AL38)) -> 4.637353826 | AM41: =STDEV(AM27:AM38)/SQRT(COUNT(AM27:AM38)) -> 5.336350946 | AN41: =STDEV(AN27:AN38)/SQRT(COUNT(AN27:AN38)) -> 4.987041288 | AO41: =STDEV(AO27:AO38)/SQRT(COUNT(AO27:AO38)) -> 6.225710377 | AP41: =STDEV(AP27:AP38)/SQRT(COUNT(AP27:AP38)) -> 3.398882021 | AQ41: =STDEV(AQ27:AQ38)/SQRT(COUNT(AQ27:AQ38)) -> 2.944241941 | AR41: =STDEV(AR27:AR38)/SQRT(COUNT(AR27:AR38)) -> 3.0849709 | AX41: =STDEV(AX27:AX38)/SQRT(COUNT(AX27:AX38)) -> 6.036661981 | AY41: =STDEV(AY27:AY38)/SQRT(COUNT(AY27:AY38)) -> 4.216594801 | AZ41: 6.222058755 | BA41: 5.659699371 | BB41: 5.606352368 | BC41: 3.818482432 | BD41: 4.265494631 | BE41: 6.503058721 | BF41: 4.999179226 | BG41: 4.692770606 | BI41: =STDEV(BI27:BI38)/SQRT(COUNT(BI27:BI38)) -> 6.177253402 | BJ41: 6.129288851 | BL41: =STDEV(BL27:BL38)/SQRT(COUNT(BL27:BL38)) -> 5.726262537 | BM41: 7.536577473
D46: 1st LP latency | J46: 1st LP latency | AI46: 1st LP latency | AX46: 1st LP latency
D47: s02-CRF | E47: s03-CRF | F47: s04-CRF | G47: s05-CRF | H47: s06-CRF | J47: s07-LR | K47: s08-LR | L47: s09-LR | M47: s10-LR | N47: s11-LR | O47: s12-LR | P47: s13-LR | Q47: s14-LR | R47: s15-LR | S47: s16-LR | T47: s17-LR | U47: s18-LR | V47: s19-LR | X47: s20-LR | Y47: s21-LR | AA47: s22-LR | AB47: s23-LR | AC47: s24-LR | AD47: s25-LR | AF47: s26-LR | AG47: s27-LR | AI47: s29-LR | AJ47: s30-LR | AK47: s31-LR | AL47: s32-LR | AM47: s33-LR | AN47: s34-LR | AO47: s35-LR | AP47: s36-LR | AQ47: s37-LR | AR47: s38-LR | AX47: s43-DT5 | AY47: s44-DT5 | AZ47: s45-DT5 | BA47: s46-DT5 | BB47: s47-DT5 | BC47: s48-DT5 | BD47: s49-DT5 | BE47: s50-DT5 | BF47: s51-DT5 | BG47: s52-DT5 | BI47: s53-DT5 | BJ47: s54-DT5
A48: Code Exp | B48: sex | C48: Rat | D48: s2 | E48: s3 | F48: s4 | G48: s5 | H48: s6 | J48: s7 | K48: s8 | L48: s9 | M48: s10 | N48: s11 | O48: s12 | P48: s13 | Q48: s14 | R48: s15 | S48: s16 | T48: s17 | U48: s18 | V48: s19 | X48: s20 | Y48: s21 | AA48: s22 | AB48: s23 | AC48: s24 | AD48: s25 | AF48: s26 | AG48: s27 | AI48: s29 | AJ48: s30 | AK48: s31 | AL48: s32 | AM48: s33 | AN48: s34 | AO48: s35 | AP48: s36 | AQ48: s37 | AR48: s38 | AT48: Code Exp | AU48: group | AV48: Rat | AW48: box | AX48: s43 | AY48: s44 | AZ48: s45 | BA48: s46 | BB48: s47 | BC48: s48 | BD48: s49 | BE48: s50 | BF48: s51 | BG48: s52 | BI48: s53 | BJ48: s54 | BL48: saline | BM48: inactivation
A49: YVAB | B49: M | C49: 3 | D49: 11.44 | E49: 112.11 | F49: 186.56 | G49: 38.28 | H49: 47.59 | J49: 122.5 | K49: 4.59 | L49: 30.1 | M49: 4.17 | N49: 69 | O49: 8.56 | P49: 2.8 | Q49: 9.35 | R49: 2.03 | S49: 14.67 | T49: 2.12 | U49: 3.59 | V49: *** | X49: 74.24 | Y49: *** | AA49: 3.38 | AB49: 3.73 | AC49: 4.21 | AD49: *** | AF49: 1.67 | AG49: *** | AI49: 1.82 | AJ49: 12.05 | AK49: 1.6 | AL49: 1.62 | AM49: 2.75 | AN49: 1.5 | AO49: 2.56 | AP49: 11.23 | AQ49: 2.53 | AR49: 2.67 | AT49: YVAB | AU49: U | AV49: 3 | AW49: 3 | AX49: 4.561 | AY49: 3.528 | AZ49: 6.693 | BA49: 2.354 | BB49: 2.081 | BC49: 2.153 | BD49: 2.658 | BE49: 2.397 | BF49: 2.023 | BG49: 3.219 | BH49: I | BI49: 3.273 | BJ49: 2.322 | BL49: =BJ49 -> 2.322 | BM49: =BI49 -> 3.273
A50: YVAB | B50: M | C50: 4 | D50: 397.84 | E50: 63.66 | F50: 52.75 | G50: 29.16 | H50: 91.65 | J50: 107.19 | K50: 2.88 | L50: 1.37 | M50: 3.79 | N50: 2.62 | O50: 2.57 | P50: 2.85 | Q50: 48.44 | R50: 2.16 | S50: 38.05 | T50: 1.39 | U50: 1.32 | V50: *** | X50: 2.07 | Y50: *** | AA50: 2.71 | AB50: 101.37 | AC50: 1.36 | AD50: *** | AF50: 1.71 | AG50: *** | AI50: 1.46 | AJ50: 1.04 | AK50: 1.32 | AL50: 2.75 | AM50: 2.32 | AN50: 1.04 | AO50: 398.99 | AP50: 2.11 | AQ50: 2.51 | AR50: 1.64 | AT50: YVAB | AU50: U | AV50: 4 | AW50: 4 | AX50: 6.435 | AY50: 5.532 | AZ50: 1.865 | BA50: 1.69 | BB50: 1.71 | BC50: 1.481 | BD50: 1.667 | BE50: 4.244 | BF50: 5.33 | BG50: 1.143 | BH50: S | BI50: 1.669 | BJ50: 4.942 | BL50: OUT | BM50: OUT
A51: YVAB | B51: M | C51: 8 | D51: 21.38 | E51: 6.93 | F51: 179.63 | G51: 3.98 | H51: 1.13 | J51: 9.68 | K51: 3.18 | L51: 6.04 | M51: 50.79 | N51: 12.74 | O51: 88.11 | P51: 26.62 | Q51: 16.87 | R51: 11.77 | S51: 2.07 | T51: 11.65 | U51: 1.82 | V51: *** | X51: 65.27 | Y51: *** | AA51: 1.65 | AB51: 1.33 | AC51: 6.2 | AD51: *** | AF51: 10.38 | AG51: *** | AI51: 6.32 | AJ51: 12.26 | AK51: 23.21 | AL51: 23.53 | AM51: 3.37 | AN51: 89.28 | AO51: 4.54 | AP51: 8.36 | AQ51: 3.32 | AR51: 24.93 | AT51: YVAB | AU51: U | AV51: 8 | AW51: 8 | AX51: 25.987 | AY51: 27.678 | AZ51: 34.479 | BA51: 23.07 | BB51: 18.563 | BC51: 17.762 | BD51: 19.778 | BE51: 24.781 | BF51: 26.74 | BG51: 21.019 | BH51: S | BI51: 23.173 | BJ51: 18.241 | BL51: =BI51 -> 23.173 | BM51: =BJ51 -> 18.241
A52: YVAB | B52: M | C52: 10 | D52: 62.9 | E52: 2 | F52: 16.68 | G52: 2.8 | H52: 5.79 | J52: 2.45 | K52: 1.99 | L52: 17.38 | M52: 3.25 | N52: 17.4 | O52: 25.72 | P52: 0.95 | Q52: 17.51 | R52: 3.65 | S52: 11.02 | T52: 31.74 | U52: 38.26 | V52: *** | X52: 6.46 | Y52: *** | AA52: 6.63 | AB52: 2.71 | AC52: 4.39 | AD52: *** | AF52: 3.22 | AG52: *** | AI52: 3.44 | AJ52: 3.96 | AK52: 10.16 | AL52: 104.26 | AM52: 18.69 | AN52: 3.78 | AO52: 13.83 | AP52: 2.1 | AQ52: 8.24 | AR52: 7.8 | AT52: YVAB | AU52: U | AV52: 10 | AW52: 10 | AX52: 5.085 | AY52: 4.634 | AZ52: 3.012 | BA52: 4.386 | BB52: 3.859 | BC52: 2.743 | BD52: 2.879 | BE52: 2.931 | BF52: 1.809 | BG52: 1.693 | BH52: S | BI52: 21.275 | BJ52: 1.773 | BL52: 21.275 | BM52: =BJ52 -> 1.773
A53: YVAB | B53: M | C53: 11 | D53: 63.32 | E53: 73.38 | F53: 57.74 | G53: 1.63 | H53: 0.78 | J53: 5.83 | K53: 23.92 | L53: 5.51 | M53: 38.21 | N53: 7 | O53: 3.42 | P53: 33.25 | Q53: 44.85 | R53: 2.95 | S53: 6.15 | T53: 2.46 | U53: 5.25 | V53: *** | X53: 6.34 | Y53: *** | AA53: 15.05 | AB53: 2.77 | AC53: 2.53 | AD53: *** | AF53: 2.35 | AG53: *** | AI53: 10.99 | AJ53: 8.82 | AK53: 4.72 | AL53: 18.45 | AM53: 6.16 | AN53: 11.17 | AO53: 1.69 | AP53: 29.89 | AQ53: 1.03 | AR53: 3.05 | AT53: YVAB | AU53: U | AV53: 11 | AW53: 11 | AX53: 18.846 | AY53: 13.77 | AZ53: 9.681 | BA53: 10.727 | BB53: 7.842 | BC53: 10.85 | BD53: 3.313 | BE53: 12.399 | BF53: 7.347 | BG53: 2.46 | BH53: I | BI53: 5.789 | BJ53: 4.926 | BL53: =BJ53 -> 4.926 | BM53: =BI53 -> 5.789
A54: YVAB | B54: M | C54: 12 | D54: 52.11 | E54: 43.64 | F54: 40.6 | G54: 1.81 | H54: 3.93 | J54: 14.83 | K54: 8.73 | L54: 2.27 | M54: 31.15 | N54: 31.99 | O54: 3.59 | P54: 6.19 | Q54: 5.42 | R54: 7.08 | S54: 8.35 | T54: 18.13 | U54: 2.83 | V54: *** | X54: 34.49 | Y54: *** | AA54: 95.76 | AB54: 46.56 | AC54: 11.48 | AD54: *** | AF54: 17.2 | AG54: *** | AI54: 55.42 | AJ54: 2.34 | AK54: 1.16 | AL54: 6.48 | AM54: 3.68 | AN54: 6.66 | AO54: 1.47 | AP54: 19.37 | AQ54: 1.53 | AR54: 18.91 | AT54: YVAB | AU54: U | AV54: 12 | AW54: 12 | AX54: 26.259 | AY54: 15.624 | AZ54: 25.532 | BA54: 28.837 | BB54: 27.166 | BC54: 22.692 | BD54: 17.006 | BE54: 33.659 | BF54: 24.079 | BG54: 6.276 | BH54: S | BI54: 13.454 | BJ54: 26.828 | BL54: =BI54 -> 13.454 | BM54: =BJ54 -> 26.828
A55: YVAB | B55: M | C55: 15 | D55: 76.98 | E55: 125.69 | F55: 5.79 | G55: 61.89 | H55: 137.51 | J55: 64.55 | K55: 39.3 | L55: 39.42 | M55: 29.44 | N55: 3.05 | O55: 4.28 | P55: 2.96 | Q55: 13.41 | R55: 48.17 | S55: 14.86 | T55: *** | U55: 2.61 | V55: 3.12 | X55: *** | Y55: 9.37 | AA55: *** | AB55: 18.43 | AC55: 1.76 | AD55: 3.63 | AF55: *** | AG55: 12.84 | AI55: 23.63 | AJ55: 4 | AK55: 3.18 | AL55: 9.03 | AM55: 2.05 | AN55: 9.31 | AO55: 1.38 | AP55: 2.87 | AQ55: 2.26 | AR55: 1.47 | AT55: YVAB | AU55: U | AV55: 15 | AW55: 1 | AX55: 3.973 | AY55: 2.913 | AZ55: 2.462 | BA55: 2.535 | BB55: 2.653 | BC55: 2.669 | BD55: 4.378 | BE55: 2.856 | BF55: 1.971 | BG55: 2.423 | BH55: I | BI55: 3.744 | BJ55: 1.831 | BL55: =BJ55 -> 1.831 | BM55: =BI55 -> 3.744
A56: YVAB | B56: M | C56: 16 | D56: 3600 | E56: 3600 | F56: 40.05 | G56: 544.29 | H56: 28.59 | J56: 17.3 | K56: 35.72 | L56: 25.97 | M56: 12.42 | N56: 4.78 | O56: 3.56 | P56: 6.76 | Q56: 8.07 | R56: 3.31 | S56: 3.48 | T56: *** | U56: 2.97 | V56: 8.3 | X56: *** | Y56: 3.7 | AA56: *** | AB56: 17.65 | AC56: 2.52 | AD56: 5.07 | AF56: *** | AG56: 9.75 | AI56: 1.97 | AJ56: 2.37 | AK56: 1.57 | AL56: 4.29 | AM56: 1.67 | AN56: 3.83 | AO56: 3.73 | AP56: 3.9 | AQ56: 2.41 | AR56: 5.13 | AT56: YVAB | AU56: U | AV56: 16 | AW56: 2 | AX56: 8.697 | AY56: 7.252 | AZ56: 2.652 | BA56: 3.014 | BB56: 1.853 | BC56: 3.862 | BD56: 1.547 | BE56: 2.811 | BF56: 2.561 | BG56: 1.588 | BH56: S | BI56: 2.703 | BJ56: 1.537 | BL56: =BI56 -> 2.703 | BM56: =BJ56 -> 1.537
A57: YVAB | B57: M | C57: 18 | D57: 45.84 | E57: 4.78 | F57: 61.67 | G57: 105.35 | H57: 27.85 | J57: 16.16 | K57: 21.44 | L57: 1.03 | M57: 7.68 | N57: 16.23 | O57: 5.99 | P57: 2.92 | Q57: 2.45 | R57: 1.48 | S57: 3.14 | T57: *** | U57: 3.47 | V57: 14.97 | X57: *** | Y57: 4.55 | AA57: *** | AB57: 5.12 | AC57: 4.09 | AD57: 2.3 | AF57: *** | AG57: 5.12 | AI57: 2.45 | AJ57: 7.26 | AK57: 1.33 | AL57: 2.54 | AM57: 2.9 | AN57: 1.91 | AO57: 4.64 | AP57: 3.15 | AQ57: 4.36 | AR57: 1.37 | AT57: YVAB | AU57: U | AV57: 18 | AW57: 6 | AX57: 2.446 | AY57: 3.28 | AZ57: 1.91 | BA57: 2.731 | BB57: 1.939 | BC57: 1.36 | BD57: 1.527 | BE57: 1.925 | BF57: 1.602 | BG57: 2.603 | BH57: S | BI57: 7.034 | BJ57: 6.311 | BL57: =BI57 -> 7.034 | BM57: =BJ57 -> 6.311
A58: YVAB | B58: M | C58: 19 | D58: 44.49 | E58: 58.45 | F58: 3.31 | G58: 2.5 | H58: 43.57 | J58: 8.79 | K58: 3.74 | L58: 5.66 | M58: 2.42 | N58: 3.93 | O58: 5.08 | P58: 33.94 | Q58: 48.15 | R58: 4.42 | S58: 22.02 | T58: *** | U58: 3.32 | V58: 5.63 | X58: *** | Y58: 3.17 | AA58: *** | AB58: 3.46 | AC58: 17.42 | AD58: 4.95 | AF58: *** | AG58: 2.84 | AI58: 5.53 | AJ58: 12.39 | AK58: 1.54 | AL58: 10.01 | AM58: 4.2 | AN58: 1.75 | AO58: 4.96 | AP58: 5.95 | AQ58: 3.08 | AR58: 4.69 | AT58: YVAB | AU58: U | AV58: 19 | AW58: 7 | AX58: 3.357 | AY58: 2.982 | AZ58: 3.063 | BA58: 3.665 | BB58: 3.083 | BC58: 2.519 | BD58: 3.809 | BE58: 4.094 | BF58: 7.73 | BG58: 4.49 | BH58: I | BI58: 24.546 | BJ58: 6.39 | BL58: =BJ58 -> 6.39 | BM58: =BI58 -> 24.546
A59: YVAB | B59: M | C59: 22 | D59: 638.11 | E59: 260.72 | F59: 1325.41 | G59: 62.14 | H59: 1171.15 | J59: 22.89 | K59: 20.88 | L59: 34.89 | M59: 2.42 | N59: 20.51 | O59: 7.74 | P59: 5.3 | Q59: 1.25 | R59: 5.18 | S59: 5.49 | T59: *** | U59: 7.93 | V59: 5.36 | X59: *** | Y59: 5.53 | AA59: *** | AB59: 2.14 | AC59: 2.69 | AD59: 5.2 | AF59: *** | AG59: 3.66 | AI59: 3.6 | AJ59: 0.3 | AK59: 4.57 | AL59: 3.63 | AM59: 1.39 | AN59: 3.96 | AO59: 1.73 | AP59: 2.76 | AQ59: 4.16 | AR59: 1.44 | AT59: YVAB | AU59: U | AV59: 22 | AW59: 5 | AX59: 3.057 | AY59: 2.776 | AZ59: 2.551 | BA59: 3.677 | BB59: 2.799 | BC59: 1.955 | BD59: 2.415 | BE59: 2.165 | BF59: 2.055 | BG59: 2.144 | BH59: I | BI59: 2.581 | BJ59: 2.045 | BL59: =BJ59 -> 2.045 | BM59: =BI59 -> 2.581
A60: YVAB | B60: M | C60: 23 | D60: 8.23 | E60: 3600 | F60: 3600 | G60: 230.32 | H60: 1200.66 | J60: 8.02 | K60: 27.48 | L60: 6.11 | M60: 3.8 | N60: 2.85 | O60: 11.54 | P60: 17.16 | Q60: 2.97 | R60: 7.08 | S60: 3.89 | T60: *** | U60: 1.85 | V60: 3.41 | X60: *** | Y60: 5.2 | AA60: *** | AB60: 3.47 | AC60: 9.9 | AD60: 7.49 | AF60: *** | AG60: 3.42 | AI60: 28.8 | AJ60: 1.66 | AK60: 4.18 | AL60: 3.8 | AM60: 7.89 | AN60: 3.6 | AO60: 2.75 | AP60: 5.64 | AQ60: 4.05 | AR60: 2.99 | AT60: YVAB | AU60: U | AV60: 23 | AW60: 9 | AX60: 5.699 | AY60: 3.111 | AZ60: 2.612 | BA60: 2.022 | BB60: 2.006 | BC60: 2.426 | BD60: 1.465 | BE60: 2.866 | BF60: 1.532 | BG60: 1.899 | BH60: I | BI60: 2.019 | BJ60: 1.701 | BL60: =BJ60 -> 1.701 | BM60: =BI60 -> 2.019
D62: =AVERAGE(D49:D60) -> 418.5533333 | E62: =AVERAGE(E49:E60) -> 662.6133333 | F62: =AVERAGE(F49:F60) -> 464.1825 | G62: =AVERAGE(G49:G60) -> 90.34583333 | H62: =AVERAGE(H49:H60) -> 230.0166667 | J62: =AVERAGE(J49:J60) -> 33.34916667 | K62: =AVERAGE(K49:K60) -> 16.15416667 | L62: =AVERAGE(L49:L60) -> 14.64583333 | M62: =AVERAGE(M49:M60) -> 15.795 | N62: =AVERAGE(N49:N60) -> 16.00833333 | O62: =AVERAGE(O49:O60) -> 14.18 | P62: =AVERAGE(P49:P60) -> 11.80833333 | Q62: =AVERAGE(Q49:Q60) -> 18.22833333 | R62: =AVERAGE(R49:R60) -> 8.273333333 | S62: =AVERAGE(S49:S60) -> 11.09916667 | T62: =AVERAGE(T49:T54,U55:U60) -> 7.47 | U62: =AVERAGE(U49:U54,V55:V60) -> 7.821666667 | X62: =AVERAGE(X49:X54,Y55:Y60) -> 18.36583333 | AA62: =AVERAGE(AA49:AA54,AB55:AB60) -> 14.62083333 | AB62: =AVERAGE(AB49:AB54,AC55:AC60) -> 16.40416667 | AC62: =AVERAGE(AC49:AC54,AD55:AD60) -> 4.900833333 | AF62: =AVERAGE(AF49:AF54,AG55:AG60) -> 6.18 | AI62: =AVERAGE(AI49:AI60) -> 12.11916667 | AJ62: =AVERAGE(AJ49:AJ60) -> 5.704166667 | AK62: =AVERAGE(AK49:AK60) -> 4.878333333 | AL62: =AVERAGE(AL49:AL60) -> 15.86583333 | AM62: =AVERAGE(AM49:AM60) -> 4.755833333 | AN62: =AVERAGE(AN49:AN60) -> 11.4825 | AO62: =AVERAGE(AO49:AO60) -> 36.85583333 | AP62: =AVERAGE(AP49:AP60) -> 8.110833333 | AQ62: =AVERAGE(AQ49:AQ60) -> 3.29 | AR62: =AVERAGE(AR49:AR60) -> 6.340833333 | AX62: =AVERAGE(AX49:AX60) -> 9.5335 | AY62: =AVERAGE(AY49:AY60) -> 7.756666667 | AZ62: =AVERAGE(AZ49:AZ60) -> 8.042666667 | BA62: =AVERAGE(BA49:BA60) -> 7.392333333 | BB62: 6.296166667 | BC62: 6.039333333 | BD62: 5.2035 | BE62: 8.094 | BF62: 7.064916667 | BG62: 4.246416667 | BI62: =AVERAGE(BI49:BI60) -> 9.271666667 | BJ62: 6.570583333 | BL62: =AVERAGE(BL49:BL60) -> 7.895818182 | BM62: 8.785636364
D63: =STDEV(D49:D60)/SQRT(COUNT(D49:D60)) -> 294.4507201 | E63: =STDEV(E49:E60)/SQRT(COUNT(E49:E60)) -> 396.6001091 | F63: =STDEV(F49:F60)/SQRT(COUNT(F49:F60)) -> 304.1592142 | G63: =STDEV(G49:G60)/SQRT(COUNT(G49:G60)) -> 45.43496625 | H63: =STDEV(H49:H60)/SQRT(COUNT(H49:H60)) -> 129.4335121 | J63: =STDEV(J49:J60)/SQRT(COUNT(J49:J60)) -> 11.96467037 | K63: =STDEV(K49:K60)/SQRT(COUNT(K49:K60)) -> 3.936545451 | L63: =STDEV(L49:L60)/SQRT(COUNT(L49:L60)) -> 4.104744752 | M63: =STDEV(M49:M60)/SQRT(COUNT(M49:M60)) -> 4.896339929 | N63: =STDEV(N49:N60)/SQRT(COUNT(N49:N60)) -> 5.484055792 | O63: =STDEV(O49:O60)/SQRT(COUNT(O49:O60)) -> 6.964325981 | P63: =STDEV(P49:P60)/SQRT(COUNT(P49:P60)) -> 3.623985717 | Q63: =STDEV(Q49:Q60)/SQRT(COUNT(Q49:Q60)) -> 5.264552534 | R63: =STDEV(R49:R60)/SQRT(COUNT(R49:R60)) -> 3.721441626 | S63: =STDEV(S49:S60)/SQRT(COUNT(S49:S60)) -> 3.003692036 | T63: =STDEV(T49:T54,U55:U60)/SQRT(COUNT(T49:T54,U55:U60)) -> 2.639613723 | U63: =STDEV(U49:U54,V55:V60)/SQRT(COUNT(U49:U54,V55:V60)) -> 2.961853646 | X63: =STDEV(X49:X54,Y55:Y60)/SQRT(COUNT(X49:X54,Y55:Y60)) -> 7.380223313 | AA63: =STDEV(AA49:AA54,AB55:AB60)/SQRT(COUNT(AA49:AA54,AB55:AB60)) -> 7.589215181 | AB63: =STDEV(AB49:AB54,AC55:AC60)/SQRT(COUNT(AB49:AB54,AC55:AC60)) -> 8.563544867 | AC63: =STDEV(AC49:AC54,AD55:AD60)/SQRT(COUNT(AC49:AC54,AD55:AD60)) -> 0.7739777797 | AF63: =STDEV(AF49:AF54,AG55:AG60)/SQRT(COUNT(AF49:AF54,AG55:AG60)) -> 1.472422247 | AI63: =STDEV(AI49:AI60)/SQRT(COUNT(AI49:AI60)) -> 4.709860137 | AJ63: =STDEV(AJ49:AJ60)/SQRT(COUNT(AJ49:AJ60)) -> 1.336473457 | AK63: =STDEV(AK49:AK60)/SQRT(COUNT(AK49:AK60)) -> 1.824400206 | AL63: =STDEV(AL49:AL60)/SQRT(COUNT(AL49:AL60)) -> 8.270935737 | AM63: =STDEV(AM49:AM60)/SQRT(COUNT(AM49:AM60)) -> 1.37872386 | AN63: =STDEV(AN49:AN60)/SQRT(COUNT(AN49:AN60)) -> 7.130911383 | AO63: =STDEV(AO49:AO60)/SQRT(COUNT(AO49:AO60)) -> 32.93574388 | AP63: =STDEV(AP49:AP60)/SQRT(COUNT(AP49:AP60)) -> 2.449869031 | AQ63: =STDEV(AQ49:AQ60)/SQRT(COUNT(AQ49:AQ60)) -> 0.5383293461 | AR63: =STDEV(AR49:AR60)/SQRT(COUNT(AR49:AR60)) -> 2.20183204 | AX63: =STDEV(AX49:AX60)/SQRT(COUNT(AX49:AX60)) -> 2.564246335 | AY63: =STDEV(AY49:AY60)/SQRT(COUNT(AY49:AY60)) -> 2.202683427 | AZ63: 3.083428042 | BA63: 2.618047973 | BB63: 2.34539284 | BC63: 2.068430324 | BD63: 1.80685477 | BE63: 3.010563996 | BF63: 2.559821408 | BG63: 1.578548098 | BI63: =STDEV(BI49:BI60)/SQRT(COUNT(BI49:BI60)) -> 2.567444176 | BJ63: 2.278157334 | BL63: =STDEV(BL49:BL60)/SQRT(COUNT(BL49:BL60)) -> 2.378962512 | BM63: 2.892365246

Sheet Behavior inact DMS
AE1: inactivation
D2: Response rate (nb LP/min) | AE2: saline
D3: S2-CRF | E3: S3-CRF | F3: S4-CRF | H3: S5-DT | I3: S6-DT | J3: S7-DT | K3: S8-DT | L3: S9-DT | N3: s10-DT | O3: s11-DT | P3: s12-DT | Q3: s13-DT | R3: s14-DT | S3: s15-DT | T3: s16-DT | V3: s18-DT | W3: s20-DT | X3: s21-DT | Y3: s-23DT | AA3: s25-DT | AB3: s26-DT | AC3: s27-DT | AD3: s28-DT | AE3: s29-DT | AF3: s30-DT | AG3: s31-DT | AH3: s32-DT | AM3: s34-DT
A4: Code Exp | B4: Rat | C4: Outcome 1 | D4: s2 | E4: s3 | F4: s4 | H4: s5 | I4: s6 | J4: s7 | K4: s8 | L4: s9 | N4: s10 | O4: s11 | P4: s12 | Q4: s13 | R4: s14 | S4: s15 | T4: s16 | V4: s18 | W4: s20 | X4: s21 | Y4: s23 | AA4: s25 | AB4: s26 | AC4: s27 | AD4: s28 | AE4: s29 | AF4: s30 | AG4: s31 | AH4: s32 | AJ4: saline | AK4: mu/ba | AM4: s34
A5: YV-E | B5: 1 | C5: Pellet | D5: 2.089912688 | E5: 6.676557864 | F5: 9.018939774 | H5: 0.140799684 | I5: 0.2970043179 | J5: 0.4133064737 | K5: 0.5559165719 | L5: 0.5394332888 | N5: 0.6515486345 | O5: 0.74708845 | P5: 0.5565711245 | Q5: 0.7704082131 | R5: 0.7962145228 | S5: 0.9364976763 | T5: 0.744864119 | V5: 1.069122972 | W5: 1.296053377 | X5: 0.9697163745 | Y5: 0.7538673088 | AA5: 0.9131843212 | AB5: 1.174578325 | AC5: 1.009948531 | AD5: 0.7258586504 | AE5: 1.277311662 | AF5: 1.186008447 | AG5: 1.345518 | AH5: 1.075676131 | AJ5: 1.277311662 | AK5: 1.345518 | AM5: 0.8486847502
A6: YV-E | B6: 2 | C6: Sucrose | D6: 2.067162515 | E6: 4.129653926 | F6: 8.458763528 | H6: 0.09484078924 | I6: 0.03569409122 | J6: 0.2652028008 | K6: 0.4582745399 | L6: 0.6978063222 | N6: 1.054129399 | O6: 0.8987191479 | P6: 0.6585978096 | Q6: 0.9660454762 | R6: 1.087250707 | S6: 1.36034767 | T6: 1.60206724 | V6: 1.641344811 | W6: 1.82207007 | X6: 1.358130182 | Y6: 1.528134365 | AA6: 1.603242824 | AB6: 1.509411277 | AC6: 1.563146683 | AD6: 1.800808324 | AE6: 1.159146329 | AF6: 1.739483742 | AG6: 1.421171187 | AH6: 1.553486507 | AJ6: OUT | AK6: OUT | AM6: 1.798097512
A7: YV-E | B7: 3 | C7: Sucrose | D7: 0.3833312037 | E7: 1.285941048 | F7: 2.719320774 | H7: 0.0391423061 | I7: 0.01822026069 | J7: 0 | K7: 0 | L7: 0.275058173 | N7: 0.1257890093 | O7: 0.2484091012 | P7: 0.1460699859 | Q7: 0.575731367 | R7: 0.5439518449 | S7: 0.5225453628 | T7: 0.4454645784 | V7: 0.7216149659 | W7: 1.622338567 | X7: 0.8387730195 | Y7: 0.8149872804 | AA7: 0.2777465782 | AB7: 0.5803895558 | AC7: 1.153952168 | AD7: 0.8574846135 | AE7: 1.236962806 | AF7: 1.269429255 | AG7: 1.144476803 | AH7: 1.485084396 | AJ7: 1.236962806 | AK7: 1.144476803 | AM7: 1.154465352
A8: YV-E | B8: 4 | C8: Pellet | D8: 0.9024863499 | E8: 8.202323992 | F8: 9.140303661 | H8: 0.2453767489 | I8: 0.4000106883 | J8: 0.5987385482 | K8: 0.5980853932 | L8: 0.5573832831 | N8: 0.7011213876 | O8: 0.7200366883 | P8: 0.8563543279 | Q8: 0.658024266 | R8: 0.6176237865 | S8: 0.8236074803 | T8: 0.8288811762 | V8: 0.8970485915 | W8: 0.8682476517 | X8: 1.205128466 | Y8: 1.217461165 | AA8: 1.168744471 | AB8: 1.272084061 | AC8: 1.319831263 | AD8: 1.427379773 | AE8: 1.024778256 | AF8: 1.478684596 | AG8: 1.337889118 | AH8: 1.564581719 | AJ8: 1.024778256 | AK8: 1.337889118 | AM8: 1.460322395
A9: YV-E | B9: 5 | C9: Pellet | D9: 1.034827701 | E9: 5.425445339 | F9: 6.598966162 | H9: 0.08645877124 | I9: 0.3342290135 | J9: 0.611142675 | K9: 0.7166831291 | L9: 0.8514344911 | N9: 0.8020996226 | O9: 0.8635651755 | P9: 0.7182308017 | Q9: 0.8271521245 | R9: 0.752054684 | S9: 0.9854048998 | T9: 0.7986620727 | V9: 1.243886179 | W9: 1.079345717 | X9: 1.312297291 | Y9: 0.656688963 | AA9: 0.8754995583 | AB9: 1.247582454 | AC9: 1.047653723 | AD9: 0.9484820691 | AE9: 0.894444847 | AF9: 1.187212825 | AG9: 0.9589786123 | AH9: 1.180329167 | AJ9: 0.9589786123 | AK9: 0.894444847 | AM9: 1.254515089
A10: YV-E | B10: 7 | C10: Sucrose | D10: 1.026194688 | E10: 3.703203657 | F10: 4.704037632 | H10: 0.276280617 | I10: 0.5997215678 | J10: 0.809341027 | K10: 1.106886419 | L10: 1.338366058 | N10: 1.21371573 | O10: 1.08988267 | P10: 0.6778358902 | Q10: 1.307864124 | R10: 1.079606186 | S10: 1.558186635 | T10: 1.319847504 | V10: 1.61543462 | W10: 1.22408451 | X10: 1.34588535 | Y10: 1.209041176 | AA10: 1.254908819 | AB10: 1.549505776 | AC10: 1.361286493 | AD10: 1.26526724 | AE10: 1.113882092 | AF10: 1.522846353 | AG10: 1.289450115 | AH10: 1.303297476 | AJ10: 1.289450115 | AK10: 1.113882092 | AM10: 1.356395195
A11: YV-E | B11: 8 | C11: Pellet | D11: 0.9627521876 | E11: 3.123969524 | F11: 3.93907563 | H11: 0.01521806054 | I11: 0.02563327402 | J11: 0.08144368545 | K11: 0.1950782323 | L11: 0.4716851398 | N11: 0.4332641626 | O11: 0.3855999593 | P11: 0.05904752659 | Q11: 0.406868134 | R11: 0.2531440053 | S11: 0.6823032422 | T11: 0.4905145338 | V11: 0.7635741807 | W11: 1.068024445 | X11: 0.9061352125 | Y11: 0.4537560349 | AA11: na | AB11: na | AC11: 0.2046835274 | AD11: 0.4785633081 | AE11: 0.4101114025 | AF11: 0.7858446357 | AG11: 0.79985335 | AH11: 0.9198331359 | AJ11: 0.79985335 | AK11: 0.4101114025 | AM11: 0.7237278381
A12: YV-E | B12: 10 | C12: Sucrose | D12: 0.6941738114 | E12: 2.073523694 | F12: 3.83900186 | H12: 0.1248610478 | I12: 0.4297986699 | J12: 1.059467266 | K12: 0.8370982075 | L12: 1.161383638 | N12: 1.502060537 | O12: 0.9654206389 | P12: 1.158051642 | Q12: 1.035626231 | R12: 1.296352692 | S12: 1.321488383 | T12: 1.359502755 | V12: 1.987035969 | W12: 0.8129832116 | X12: 1.951327617 | Y12: 1.827346813 | AA12: 1.671692783 | AB12: 1.942592532 | AC12: 1.564948021 | AD12: 2.294577803 | AE12: 2.302455485 | AF12: 2.725069194 | AG12: 2.460505378 | AH12: 2.214961563 | AJ12: 2.460505378 | AK12: 2.302455485 | AM12: 2.713431388
A13: YV-E | B13: 11 | C13: Sucrose | D13: 0.1499991667 | E13: 0.7855116736 | F13: 2.133206921 | H13: 0.01055555556 | I13: 0.02521731693 | J13: 0 | K13: 0 | L13: 0.1665512924 | N13: 0.2153378689 | O13: 0.2989314282 | P13: 0.2091487407 | Q13: 0.2863041425 | R13: 0.5446436026 | S13: 0.7570681467 | T13: 0.8285464925 | V13: 1.017299347 | W13: 0.5192106369 | X13: 1.20270623 | Y13: 1.176754286 | AA13: 1.031939625 | AB13: 1.045949376 | AC13: 1.327178076 | AD13: 1.488871122 | AE13: 1.075920523 | AF13: 1.687314254 | AG13: 1.863997948 | AH13: 1.717418402 | AJ13: 1.863997948 | AK13: 1.075920523 | AM13: 1.333890124
D15: 1.044189144 | E15: 3.994585329 | F15: 5.798072981 | H15: 0.1234210778 | I15: 0.244405435 | J15: 0.4362010503 | K15: 0.5192750708 | L15: 0.7187270494 | N15: 0.7799461221 | O15: 0.7231343356 | P15: 0.6286711793 | Q15: 0.7875849269 | R15: 0.7601999684 | S15: 1.008295419 | T15: 0.9515580029 | V15: 1.236336507 | W15: 1.145817576 | X15: 1.232233305 | Y15: 1.070893044 | AA15: 1.099619872 | AB15: 1.29026167 | AC15: 1.172514276 | AD15: 1.254143656 | AE15: 1.1661126 | AF15: 1.509099256 | AG15: 1.402426724 | AH15: 1.446074277 | AJ15: 1.341220495 | AK15: 1.227318829 | AM15: 1.404836627
D16: 0.1981441679 | E16: 0.7410883916 | F16: 0.8388231824 | H16: 0.02948526891 | I16: 0.06561310175 | J16: 0.1119759584 | K16: 0.114656545 | L16: 0.1241207637 | N16: 0.1405367327 | O16: 0.09706844643 | P16: 0.1275442239 | Q16: 0.09935667569 | R16: 0.09916983682 | S16: 0.1046539724 | T16: 0.1207113703 | V16: 0.1324964319 | W16: 0.1345783803 | X16: 0.110801769 | Y16: 0.1467935927 | AA16: 0.1566867221 | AB16: 0.1414157437 | AC16: 0.1377858012 | AD16: 0.1899544634 | AE16: 0.1660358009 | AF16: 0.1807804078 | AG16: 0.1658051177 | AH16: 0.1289405917 | AJ16: 0.1714401024 | AK16: 0.1683654922 | AM16: 0.1949369362
D18: 1st LP latency
D19: S2-CRF | E19: S3-CRF | F19: S4-CRF | H19: s5-DT | I19: S6-DT | J19: S7-DT | K19: S8-DT | L19: S9-DT | N19: s10-DT | O19: s11-DT | P19: s12-DT | Q19: s13-DT | R19: s14-DT | S19: s15-DT | T19: s16-DT | V19: s18-DT | W19: s20-DT | X19: s21-DT | Y19: s-23DT | AA19: s25-DT | AB19: s26-DT | AC19: s27-DT | AD19: s28-DT | AE19: s29-DT | AF19: s30-DT | AG19: s31-DT | AH19: s32-DT | AM19: s34-DT
A20: Code Exp | B20: Rat | C20: Outcome 1 | D20: s2 | E20: s3 | F20: s4 | H20: s5 | I20: s6 | J20: s7 | K20: s8 | L20: s9 | N20: s10 | O20: s11 | P20: s12 | Q20: s13 | R20: s14 | S20: s15 | T20: s16 | V20: s18 | W20: s20 | X20: s21 | Y20: s23 | AA20: s25 | AB20: s26 | AC20: s27 | AD20: s28 | AE20: s29 | AF20: s30 | AG20: s31 | AH20: s32 | AJ20: saline | AK20: mu/ba | AM20: s34
A21: YV-E | B21: 1 | C21: Pellet | D21: 70 | E21: 10.02 | F21: 1.25 | H21: 21.465 | I21: 9.361 | J21: 10.125 | K21: 4.043666667 | L21: 5.992666667 | N21: 5.116 | O21: 3.274 | P21: 9.168 | Q21: 3.154 | R21: 4.065 | S21: 2.868 | T21: 6.48 | V21: 4.581 | W21: 5.797 | X21: 2.121 | Y21: 11.619 | AA21: 9.106 | AB21: 1.961 | AC21: 3.473 | AD21: 10.949 | AE21: 1.524 | AF21: 3.835 | AG21: 2.084 | AH21: 4.132 | AJ21: =AE21 -> 1.524 | AK21: =AG21 -> 2.084 | AM21: 6.053
A22: YV-E | B22: 2 | C22: Sucrose | D22: 15.39 | E22: 8.29 | F22: 3.27 | H22: 23.019 | I22: 41.234 | J22: 19.409 | K22: 10.45966667 | L22: 6.723 | N22: 2.572 | O22: 2.618 | P22: 5.025 | Q22: 3.124 | R22: 4.423 | S22: 1.783 | T22: 2.217 | V22: 1.443 | W22: 1.51 | X22: 2.524 | Y22: 2.508 | AA22: 1.567 | AB22: 2.944 | AC22: 2.678 | AD22: 1.911 | AE22: 13.245 | AF22: 1.442 | AG22: 2.817 | AH22: 3.536 | AJ22: OUT | AK22: OUT | AM22: 1.569
A23: YV-E | B23: 3 | C23: Sucrose | D23: 262 | E23: 29.89 | F23: 100.76 | H23: 24.178 | I23: 44.817 | J23: 60 | K23: 20.14347826 | L23: 8.611851852 | N23: 20.255 | O23: 19.991 | P23: 29.261 | Q23: 4.916 | R23: 7.252 | S23: 8.853 | T23: 17.453 | V23: 7.249 | W23: 12.698 | X23: 5.958 | Y23: 5.444 | AA23: 26.824 | AB23: 14.538 | AC23: 6.815 | AD23: 7.624 | AE23: 4.184 | AF23: 4.842 | AG23: 3.51 | AH23: 1.776 | AJ23: =AE23 -> 4.184 | AK23: =AG23 -> 3.51 | AM23: 5.097
A24: YV-E | B24: 4 | C24: Pellet | D24: 77.27 | E24: 4.1 | F24: 3.46 | H24: 16.62 | I24: 6.601 | J24: 2.585 | K24: 3.246666667 | L24: 4.933 | N24: 3.165 | O24: 2.724 | P24: 2.461 | Q24: 4.236 | R24: 5.409 | S24: 3.546 | T24: 7.604 | V24: 4.138 | W24: 4.801 | X24: 2.119 | Y24: 5.169 | AA24: 8.862 | AB24: 2.321 | AC24: 3.314 | AD24: 5.98 | AE24: 3.881 | AF24: 2.648 | AG24: 1.686 | AH24: 1.745 | AJ24: =AE24 -> 3.881 | AK24: =AG24 -> 1.686 | AM24: 2.146
A25: YV-E | B25: 5 | C25: Pellet | D25: 40.34 | E25: 15.29 | F25: 6.96 | H25: 34.859 | I25: 18.692 | J25: 6.358 | K25: 6.363 | L25: 4.543333333 | N25: 3.517 | O25: 3.041 | P25: 2.908 | Q25: 3.299 | R25: 9.742 | S25: 4.681 | T25: 6.309 | V25: 2.665 | W25: 2.365 | X25: 2.425 | Y25: 13.75 | AA25: 6.482 | AB25: 2.416 | AC25: 2.428 | AD25: 10.702 | AE25: 13.797 | AF25: 4.394 | AG25: 6.707 | AH25: 3.611 | AJ25: =AG25 -> 6.707 | AK25: =AE25 -> 13.797 | AM25: 4.724
A26: YV-E | B26: 7 | C26: Sucrose | D26: 57.99 | E26: 49.22 | F26: 22.35 | H26: 11.316 | I26: 5.428 | J26: 3.359 | K26: 1.961 | L26: 1.536666667 | N26: 2.664 | O26: 1.96 | P26: 14.044 | Q26: 1.616 | R26: 2.205 | S26: 1.452 | T26: 2.038 | V26: 1.243 | W26: 2.167 | X26: 1.501 | Y26: 1.585 | AA26: 3.98 | AB26: 2.319 | AC26: 2.334 | AD26: 3.975 | AE26: 18.408 | AF26: 1.365 | AG26: 1.925 | AH26: 1.789 | AJ26: =AG26 -> 1.925 | AK26: =AE26 -> 18.408 | AM26: 1.544
A27: YV-E | B27: 8 | C27: Pellet | D27: 192.79 | E27: 25.02 | F27: 104.87 | H27: 54.077 | I27: 43.588 | J27: 30.582 | K27: 12.20733333 | L27: 7.438333333 | N27: 8.302 | O27: 17.583 | P27: 46.344 | Q27: 17.434 | R27: 36.489 | S27: 7.136 | T27: 17.145 | V27: 4.729 | W27: 2.907 | X27: 4.504 | Y27: 16.245 | AA27: na | AB27: na | AC27: 32.995 | AD27: 17.863 | AE27: 16.189 | AF27: 8.862 | AG27: 7.338 | AH27: 8.97 | AJ27: =AG27 -> 7.338 | AK27: =AE27 -> 16.189 | AM27: 11.718
A28: YV-E | B28: 10 | C28: Sucrose | D28: 44.84 | E28: 11.23 | F28: 191.19 | H28: 25.616 | I28: 12.476 | J28: 2.66 | K28: 1.965 | L28: 1.556 | N28: 1.271 | O28: 2.55 | P28: 3.344 | Q28: 1.569 | R28: 1.447 | S28: 1.576 | T28: 1.874 | V28: 1.077 | W28: 1.447 | X28: 1.653 | Y28: 1.846 | AA28: 5.72 | AB28: 2.534 | AC28: 3.133 | AD28: 1.34 | AE28: 5.526 | AF28: 1.102 | AG28: 1.146 | AH28: 1.699 | AJ28: =AG28 -> 1.146 | AK28: =AE28 -> 5.526 | AM28: 2.579
A29: YV-E | B29: 11 | C29: Sucrose | D29: 96.06 | E29: 647.01 | F29: 67.26 | H29: 47.659 | I29: 45.069 | J29: 60 | K29: 19.19 | L29: 12.88068966 | N29: 10.716 | O29: 13.28 | P29: 19.79 | Q29: 21.689 | R29: 8.233 | S29: 5.648 | T29: 5.708 | V29: 3.733 | W29: 2.243 | X29: 5.095 | Y29: 7.715 | AA29: 8.255 | AB29: 7.431 | AC29: 7.153 | AD29: 4.526 | AE29: 5.802 | AF29: 2.96 | AG29: 1.475 | AH29: 2.054 | AJ29: =AG29 -> 1.475 | AK29: =AE29 -> 5.802 | AM29: 5.049
D31: =AVERAGE(D21:D29) -> 95.18666667 | E31: =AVERAGE(E21:E29) -> 88.89666667 | F31: =AVERAGE(F21:F29) -> 55.70777778 | H31: =AVERAGE(H21:H29) -> 28.75655556 | I31: =AVERAGE(I21:I29) -> 25.25177778 | J31: =AVERAGE(J21:J29) -> 21.67533333 | K31: =AVERAGE(K21:K29) -> 8.842201288 | L31: =AVERAGE(L21:L29) -> 6.023949056 | N31: =AVERAGE(N21:N29) -> 6.397555556 | O31: =AVERAGE(O21:O29) -> 7.446777778 | P31: =AVERAGE(P21:P29) -> 14.705 | Q31: =AVERAGE(Q21:Q29) -> 6.781888889 | R31: =AVERAGE(R21:R29) -> 8.807222222 | S31: =AVERAGE(S21:S29) -> 4.171444444 | T31: =AVERAGE(T21:T29) -> 7.425333333 | V31: =AVERAGE(V21:V29) -> 3.428666667 | W31: =AVERAGE(W21:W29) -> 3.992777778 | X31: =AVERAGE(X21:X29) -> 3.1 | Y31: =AVERAGE(Y21:Y29) -> 7.320111111 | AA31: =AVERAGE(AA21:AA29) -> 8.8495 | AB31: =AVERAGE(AB21:AB29) -> 4.558 | AC31: =AVERAGE(AC21:AC29) -> 7.147 | AD31: =AVERAGE(AD21:AD29) -> 7.207777778 | AE31: =AVERAGE(AE21:AE29) -> 9.172888889 | AF31: =AVERAGE(AF21:AF29) -> 3.494444444 | AG31: =AVERAGE(AG21:AG29) -> 3.187555556 | AH31: =AVERAGE(AH21:AH29) -> 3.256888889 | AJ31: =AVERAGE(AJ21:AJ29) -> 3.5225 | AK31: =AVERAGE(AK21:AK29) -> 8.37525 | AM31: =AVERAGE(AM21:AM29) -> 4.497666667
D32: =STDEV(D21:D29)/SQRT(COUNT(D21:D29)) -> 26.77148161 | E32: =STDEV(E21:E29)/SQRT(COUNT(E21:E29)) -> 69.91922288 | F32: =STDEV(F21:F29)/SQRT(COUNT(F21:F29)) -> 22.00688048 | H32: =STDEV(H21:H29)/SQRT(COUNT(H21:H29)) -> 4.720005718 | I32: =STDEV(I21:I29)/SQRT(COUNT(I21:I29)) -> 5.970727631 | J32: =STDEV(J21:J29)/SQRT(COUNT(J21:J29)) -> 7.86303573 | K32: =STDEV(K21:K29)/SQRT(COUNT(K21:K29)) -> 2.368383524 | L32: =STDEV(L21:L29)/SQRT(COUNT(L21:L29)) -> 1.176641472 | N32: =STDEV(N21:N29)/SQRT(COUNT(N21:N29)) -> 2.005374453 | O32: =STDEV(O21:O29)/SQRT(COUNT(O21:O29)) -> 2.445673145 | P32: =STDEV(P21:P29)/SQRT(COUNT(P21:P29)) -> 4.974539954 | Q32: =STDEV(Q21:Q29)/SQRT(COUNT(Q21:Q29)) -> 2.466963346 | R32: =STDEV(R21:R29)/SQRT(COUNT(R21:R29)) -> 3.576394983 | S32: =STDEV(S21:S29)/SQRT(COUNT(S21:S29)) -> 0.8745787893 | T32: =STDEV(T21:T29)/SQRT(COUNT(T21:T29)) -> 1.99692273 | V32: =STDEV(V21:V29)/SQRT(COUNT(V21:V29)) -> 0.6774440526 | W32: =STDEV(W21:W29)/SQRT(COUNT(W21:W29)) -> 1.193490827 | X32: =STDEV(X21:X29)/SQRT(COUNT(X21:X29)) -> 0.5461763299 | Y32: =STDEV(Y21:Y29)/SQRT(COUNT(Y21:Y29)) -> 1.801983371 | AA32: =STDEV(AA21:AA29)/SQRT(COUNT(AA21:AA29)) -> 2.724386209 | AB32: =STDEV(AB21:AB29)/SQRT(COUNT(AB21:AB29)) -> 1.557848585 | AC32: =STDEV(AC21:AC29)/SQRT(COUNT(AC21:AC29)) -> 3.287048693 | AD32: =STDEV(AD21:AD29)/SQRT(COUNT(AD21:AD29)) -> 1.754162619 | AE32: =STDEV(AE21:AE29)/SQRT(COUNT(AE21:AE29)) -> 2.070087481 | AF32: =STDEV(AF21:AF29)/SQRT(COUNT(AF21:AF29)) -> 0.8081588147 | AG32: =STDEV(AG21:AG29)/SQRT(COUNT(AG21:AG29)) -> 0.7639563162 | AH32: =STDEV(AH21:AH29)/SQRT(COUNT(AH21:AH29)) -> 0.7827679954 | AJ32: =STDEV(AJ21:AJ29)/SQRT(COUNT(AJ21:AJ29)) -> 0.8624218598 | AK32: =STDEV(AK21:AK29)/SQRT(COUNT(AK21:AK29)) -> 2.367346788 | AM32: =STDEV(AM21:AM29)/SQRT(COUNT(AM21:AM29)) -> 1.065751717
D34: Nb Lever press | H34: Nb Lever press | AA34: Nb Lever press
D35: S2-CRF | E35: S3-CRF | F35: S4-CRF | H35: s5-DT | I35: S6-DT | J35: S7-DT | K35: S8-DT | L35: S9-DT | N35: s10-DT | O35: s11-DT | P35: s12-DT | Q35: s13-DT | R35: s14-DT | S35: s15-DT | T35: s16-DT | V35: s18-DT | W35: s20-DT | X35: s21-DT | Y35: s-23DT | AA35: s25-DT | AB35: s26-DT | AC35: s27-DT | AD35: s28-DT | AE35: s29-DT | AF35: s30-DT | AG35: s31-DT | AH35: s32-DT | AM35: s34-DT
A36: Code Exp | B36: Rat | C36: Outcome 1 | D36: s2 | E36: s3 | F36: s4 | H36: s5 | I36: s6 | J36: s7 | K36: s8 | L36: s9 | N36: s10 | O36: s11 | P36: s12 | Q36: s13 | R36: s14 | S36: s15 | T36: s16 | V36: s18 | W36: s20 | X36: s21 | Y36: s23 | AA36: s25 | AB36: s26 | AC36: s27 | AD36: s28 | AE36: s29 | AF36: s30 | AG36: s31 | AH36: s32 | AJ36: saline | AK36: mu/ba | AM36: s34
A37: YV-E | B37: 1 | C37: Pellet | D37: 30 | E37: 30 | F37: 30 | H37: 91 | I37: 142 | J37: 152 | K37: 155 | L37: 147 | N37: 154 | O37: 152 | P37: 152 | Q37: 160 | R37: 152 | S37: 155 | T37: 149 | V37: 153 | W37: 150 | X37: 155 | Y37: 130 | AA37: 140 | AB37: 153 | AC37: 157 | AD37: 129 | AE37: 160 | AF37: 148 | AG37: 157 | AH37: 148 | AJ37: =AE37 -> 160 | AK37: =AG37 -> 157 | AM37: 147 | AX37: -3
A38: YV-E | B38: 2 | C38: Sucrose | D38: 34 | E38: 32 | F38: 34 | H38: 76 | I38: 39 | J38: 124 | K38: 160 | L38: 163 | N38: 170 | O38: 169 | P38: 170 | Q38: 160 | R38: 170 | S38: 173 | T38: 180 | V38: 182 | W38: 173 | X38: 178 | Y38: 172 | AA38: 182 | AB38: 177 | AC38: 183 | AD38: 174 | AE38: 137 | AF38: 176 | AG38: 163 | AH38: 164 | AJ38: OUT | AK38: OUT | AM38: 171 | AX38: 4
A39: YV-E | B39: 3 | C39: Sucrose | D39: 23 | E39: 32 | F39: 30 | H39: 64 | I39: 30 | J39: 30 | K39: 23 | L39: 29 | N39: 94 | O39: 126 | P39: 86 | Q39: 153 | R39: 153 | S39: 143 | T39: 130 | V39: 152 | W39: 136 | X39: 156 | Y39: 141 | AA39: 102 | AB39: 145 | AC39: 146 | AD39: 154 | AE39: 163 | AF39: 157 | AG39: 167 | AH39: 169 | AJ39: =AE39 -> 163 | AK39: =AG39 -> 167 | AM39: 151 | AX39: -4
A40: YV-E | B40: 4 | C40: Pellet | D40: 30 | E40: 30 | F40: 30 | H40: 122 | I40: 145 | J40: 150 | K40: 150 | L40: 151 | N40: 151 | O40: 157 | P40: 152 | Q40: 152 | R40: 148 | S40: 153 | T40: 143 | V40: 153 | W40: 148 | X40: 151 | Y40: 156 | AA40: 150 | AB40: 153 | AC40: 158 | AD40: 142 | AE40: 154 | AF40: 152 | AG40: 150 | AH40: 153 | AJ40: =AE40 -> 154 | AK40: =AG40 -> 150 | AM40: 156 | AX40: -9
A41: YV-E | B41: 5 | C41: Pellet | D41: 30 | E41: 30 | F41: 30 | H41: 77 | I41: 119 | J41: 150 | K41: 147 | L41: 153 | N41: 152 | O41: 154 | P41: 151 | Q41: 151 | R41: 144 | S41: 151 | T41: 148 | V41: 160 | W41: 161 | X41: 156 | Y41: 122 | AA41: 152 | AB41: 153 | AC41: 152 | AD41: 137 | AE41: 131 | AF41: 147 | AG41: 140 | AH41: 153 | AJ41: =AG41 -> 140 | AK41: =AE41 -> 131 | AM41: 158 | AX41: -28
A42: YV-E | B42: 7 | C42: Sucrose | D42: 32 | E42: 32 | F42: 36 | H42: 139 | I42: 152 | J42: 151 | K42: 155 | L42: 159 | N42: 164 | O42: 155 | P42: 144 | Q42: 155 | R42: 158 | S42: 157 | T42: 155 | V42: 155 | W42: 160 | X42: 152 | Y42: 154 | AA42: 150 | AB42: 155 | AC42: 158 | AD42: 150 | AE42: 127 | AF42: 153 | AG42: 155 | AH42: 153 | AJ42: =AG42 -> 155 | AK42: =AE42 -> 127 | AM42: 158 | AX42: -13
A43: YV-E | B43: 8 | C43: Pellet | D43: 30 | E43: 30 | F43: 30 | H43: 17 | I43: 34 | J43: 85 | K43: 133 | L43: 151 | N43: 146 | O43: 121 | P43: 43 | Q43: 128 | R43: 71 | S43: 157 | T43: 141 | V43: 155 | W43: 151 | X43: 150 | Y43: 132 | AA43: 1 | AB43: na | AC43: 116 | AD43: 146 | AE43: 138 | AF43: 146 | AG43: 151 | AH43: 153 | AJ43: =AG43 -> 151 | AK43: =AE43 -> 138 | AM43: 137 | AX43: -6
A44: YV-E | B44: 10 | C44: Sucrose | D44: 38 | E44: 32 | F44: 32 | H44: 115 | I44: 152 | J44: 165 | K44: 164 | L44: 164 | N44: 181 | O44: 157 | P44: 157 | Q44: 154 | R44: 156 | S44: 173 | T44: 176 | V44: 187 | W44: 172 | X44: 166 | Y44: 171 | AA44: 170 | AB44: 178 | AC44: 174 | AD44: 166 | AE44: 167 | AF44: 175 | AG44: 173 | AH44: 178 | AJ44: =AG44 -> 173 | AK44: =AE44 -> 167 | AM44: 183 | AX44: -15
A45: YV-E | B45: 11 | C45: Sucrose | D45: 9 | E45: 36 | F45: 30 | H45: 19 | I45: 39 | J45: 13 | K45: 22 | L45: 29 | N45: 142 | O45: 142 | P45: 129 | Q45: 126 | R45: 150 | S45: 159 | T45: 152 | V45: 153 | W45: 157 | X45: 157 | Y45: 143 | AA45: 149 | AB45: 149 | AC45: 157 | AD45: 158 | AE45: 158 | AF45: 162 | AG45: 173 | AH45: 164 | AJ45: =AG45 -> 173 | AK45: =AE45 -> 158 | AM45: 159
D47: =AVERAGE(D37:D45) -> 28.44444444 | E47: =AVERAGE(E37:E45) -> 31.55555556 | F47: =AVERAGE(F37:F45) -> 31.33333333 | H47: =AVERAGE(H37:H45) -> 80 | I47: =AVERAGE(I37:I45) -> 94.66666667 | J47: =AVERAGE(J37:J45) -> 113.3333333 | K47: =AVERAGE(K37:K45) -> 123.2222222 | L47: =AVERAGE(L37:L45) -> 127.3333333 | N47: =AVERAGE(N37:N45) -> 150.4444444 | O47: =AVERAGE(O37:O45) -> 148.1111111 | P47: =AVERAGE(P37:P45) -> 131.5555556 | Q47: =AVERAGE(Q37:Q45) -> 148.7777778 | R47: =AVERAGE(R37:R45) -> 144.6666667 | S47: =AVERAGE(S37:S45) -> 157.8888889 | T47: =AVERAGE(T37:T45) -> 152.6666667 | V47: =AVERAGE(V37:V45) -> 161.1111111 | W47: =AVERAGE(W37:W45) -> 156.4444444 | X47: =AVERAGE(X37:X45) -> 157.8888889 | Y47: =AVERAGE(Y37:Y45) -> 146.7777778 | AA47: =AVERAGE(AA37:AA45) -> 132.8888889 | AB47: =AVERAGE(AB37:AB45) -> 157.875 | AC47: =AVERAGE(AC37:AC45) -> 155.6666667 | AD47: =AVERAGE(AD37:AD45) -> 150.6666667 | AE47: =AVERAGE(AE37:AE45) -> 148.3333333 | AF47: =AVERAGE(AF37:AF45) -> 157.3333333 | AG47: =AVERAGE(AG37:AG45) -> 158.7777778 | AH47: =AVERAGE(AH37:AH45) -> 159.4444444 | AJ47: =AVERAGE(AJ37:AJ45) -> 158.625 | AK47: =AVERAGE(AK37:AK45) -> 149.375 | AM47: =AVERAGE(AM37:AM45) -> 157.7777778
D48: =STDEV(D37:D45)/SQRT(COUNT(D37:D45)) -> 2.769431907 | E48: =STDEV(E37:E45)/SQRT(COUNT(E37:E45)) -> 0.6478835439 | F48: =STDEV(F37:F45)/SQRT(COUNT(F37:F45)) -> 0.7453559925 | H48: =STDEV(H37:H45)/SQRT(COUNT(H37:H45)) -> 14.22146265 | I48: =STDEV(I37:I45)/SQRT(COUNT(I37:I45)) -> 19.00292375 | J48: =STDEV(J37:J45)/SQRT(COUNT(J37:J45)) -> 19.0758719 | K48: =STDEV(K37:K45)/SQRT(COUNT(K37:K45)) -> 19.2583155 | L48: =STDEV(L37:L45)/SQRT(COUNT(L37:L45)) -> 18.68005472 | N48: =STDEV(N37:N45)/SQRT(COUNT(N37:N45)) -> 8.158347993 | O48: =STDEV(O37:O45)/SQRT(COUNT(O37:O45)) -> 5.208018509 | P48: =STDEV(P37:P45)/SQRT(COUNT(P37:P45)) -> 13.6515273 | Q48: =STDEV(Q37:Q45)/SQRT(COUNT(Q37:Q45)) -> 4.251724414 | R48: =STDEV(R37:R45)/SQRT(COUNT(R37:R45)) -> 9.529194906 | S48: =STDEV(S37:S45)/SQRT(COUNT(S37:S45)) -> 3.250830853 | T48: =STDEV(T37:T45)/SQRT(COUNT(T37:T45)) -> 5.369667898 | V48: =STDEV(V37:V45)/SQRT(COUNT(V37:V45)) -> 4.507538268 | W48: =STDEV(W37:W45)/SQRT(COUNT(W37:W45)) -> 3.926799344 | X48: =STDEV(X37:X45)/SQRT(COUNT(X37:X45)) -> 2.960125957 | Y48: =STDEV(Y37:Y45)/SQRT(COUNT(Y37:Y45)) -> 5.917905452 | AA48: =STDEV(AA37:AA45)/SQRT(COUNT(AA37:AA45)) -> 18.02732836 | AB48: =STDEV(AB37:AB45)/SQRT(COUNT(AB37:AB45)) -> 4.421689641 | AC48: =STDEV(AC37:AC45)/SQRT(COUNT(AC37:AC45)) -> 6.211548385 | AD48: =STDEV(AD37:AD45)/SQRT(COUNT(AD37:AD45)) -> 4.711098008 | AE48: =STDEV(AE37:AE45)/SQRT(COUNT(AE37:AE45)) -> 5.022173058 | AF48: =STDEV(AF37:AF45)/SQRT(COUNT(AF37:AF45)) -> 3.822448314 | AG48: =STDEV(AG37:AG45)/SQRT(COUNT(AG37:AG45)) -> 3.722222222 | AH48: =STDEV(AH37:AH45)/SQRT(COUNT(AH37:AH45)) -> 3.279189903 | AJ48: =STDEV(AJ37:AJ45)/SQRT(COUNT(AJ37:AJ45)) -> 3.950305142 | AK48: =STDEV(AK37:AK45)/SQRT(COUNT(AK37:AK45)) -> 5.545066984 | AM48: =STDEV(AM37:AM45)/SQRT(COUNT(AM37:AM45)) -> 4.424608513

Sheet extended training table
A1: rat ID | B1: Habit ID | C1: region | D1: Celltype | E1: Phasic ID | F1: Class | G1: Win 1 | H1: Win 2 | I1: Win 3 | J1: Win 4 | K1: Win 5 | L1: Win 6 | M1: Win 7 | N1: Win 8 | O1: Win 9 | P1: Win 10 | Q1: Win 11 | R1: Win 12 | S1: TRN | T1: EXC-INH | U1: LAT1 | V1: RR | W1: PE1
A2: 1 | B2: 1 | C2: 10 | D2: 1 | E2: 2 | F2: 2 | G2: -0.08953858621 | H2: -0.232314463 | I2: -0.9516703828 | J2: -0.0545018169 | K2: 0.1243682996 | L2: 0.9448101556 | M2: -1.036158414 | N2: -0.3727063561 | O2: 0.2349856144 | P2: -0.008983202895 | Q2: -1.102102321 | R2: 2.028524825 | S2: 1 | T2: -1 | U2: 1 | V2: 0 | W2: 0
A3: 1 | B3: 1 | C3: 10 | D3: 1 | E3: 2 | F3: 3 | G3: 0.7311899214 | H3: 0.5419006074 | I3: 1.112501762 | J3: 0.345590032 | K3: 0.03722078188 | L3: -0.7586173503 | M3: -0.6249815562 | N3: 0.2238475587 | O3: -0.5633997601 | P3: -0.5157618643 | Q3: 2.35226365 | R3: 0.124005142 | S3: 1 | T3: 1 | U3: 0 | V3: 0 | W3: 0
A4: 1 | B4: 1 | C4: 10 | D4: 1 | E4: 2 | F4: 3 | G4: 0.268639821 | H4: 2.944924698 | I4: 1.183812213 | J4: 0.3731955514 | K4: 0.9972199556 | L4: 0.5006772574 | M4: 1.489035298 | N4: 1.729385814 | O4: 0.1918238591 | P4: 0.6576245032 | Q4: 1.943562956 | R4: 0.004646002887 | S4: 2 | T4: 1 | U4: 1 | V4: 0 | W4: 0
A5: 1 | B5: 1 | C5: 10 | D5: 1 | E5: 2 | F5: 2 | G5: -0.2581143374 | H5: 0.472646434 | I5: 0.7522454381 | J5: 1.568377107 | K5: 2.160808711 | L5: 1.380179107 | M5: 2.55235449 | N5: 1.941880195 | O5: 1.325465375 | P5: 1.151835229 | Q5: 2.253976896 | R5: 1.001726112 | S5: 3 | T5: 1 | U5: 0 | V5: 1 | W5: 0
A6: 1 | B6: 1 | C6: 10 | D6: 1 | E6: 2 | F6: 2 | G6: -0.433553247 | H6: -0.7125152046 | I6: -0.8155368835 | J6: -0.776165757 | K6: -0.6256666181 | L6: -0.5335146356 | M6: -0.3471113978 | N6: -0.3327971146 | O6: -0.5387560856 | P6: -0.17437822 | Q6: -0.9105736136 | R6: 0.5602347215 | S6: 0 | T6: 0 | U6: 0 | V6: 0 | W6: 0
A7: 1 | B7: 1 | C7: 10 | D7: 1 | E7: 2 | F7: 3 | G7: 1.580061193 | H7: 1.903128702 | I7: 0.7425797252 | J7: 0.03469880759 | K7: 1.230189625 | L7: 0.7507499296 | M7: 0.795366681 | N7: -0.04229254615 | O7: -0.07354764134 | P7: 0.2571892915 | Q7: -0.3970509278 | R7: -2.068511206 | S7: 2 | T7: 1 | U7: 0 | V7: 0 | W7: 0
A8: 1 | B8: 1 | C8: 10 | D8: 1 | E8: 2 | F8: 3 | G8: -0.1527863435 | H8: 0.9609637055 | I8: 0.2618748003 | J8: 0.4880428694 | K8: -0.623451697 | L8: -0.2834133841 | M8: -0.811176227 | N8: -0.6608747405 | O8: -1.435040455 | P8: -1.02871051 | Q8: -1.407378585 | R8: -0.01344309907 | S8: 2 | T8: -1 | U8: 0 | V8: 1 | W8: 1
A9: 1 | B9: 1 | C9: 10 | D9: 1 | E9: 2 | F9: 2 | G9: -0.6544783318 | H9: 0.3050206418 | I9: -0.1466532419 | J9: -0.1574817698 | K9: 0.3515638607 | L9: 0.4434546033 | M9: -0.3656025836 | N9: 0.3191412361 | O9: -0.1520336065 | P9: -0.1630341264 | Q9: -0.8959879137 | R9: 0.1996296866 | S9: 1 | T9: -1 | U9: 0 | V9: 0 | W9: 0
A10: 1 | B10: 1 | C10: 10 | D10: 2 | E10: NaN | F10: 0 | G10: -0.507100632 | H10: -1.270734845 | I10: -0.2810041514 | J10: 0.5230898582 | K10: 2.6028986 | L10: 2.022855443 | M10: 3.95915755 | N10: 2.397629193 | O10: 2.797271759 | P10: 2.35930928 | Q10: 2.339074094 | R10: -2.848845722 | S10: 8 | T10: 1 | U10: 0 | V10: 1 | W10: 0
A11: 1 | B11: 1 | C11: 10 | D11: 1 | E11: 2 | F11: 3 | G11: 0.1232941294 | H11: -0.4756740869 | I11: -0.6695593075 | J11: -0.3065805578 | K11: 0.1612990064 | L11: -0.1753387621 | M11: -0.6545285039 | N11: -0.6526960197 | O11: 0.06884312802 | P11: 0.007603488619 | Q11: -1.171025485 | R11: 0.6728080875 | S11: 0 | T11: 0 | U11: 0 | V11: 0 | W11: 0
A12: 1 | B12: 1 | C12: 10 | D12: 0 | E12: NaN | F12: 0 | G12: -0.286103593 | H12: -0.7476601592 | I12: -0.2009378157 | J12: 0.5732085622 | K12: -0.6032284573 | L12: -0.2548545777 | M12: 0.4883359331 | N12: -0.1293086315 | O12: 0.4011814754 | P12: -0.4666544498 | Q12: 1.511874942 | R12: -0.9012529961 | S12: 1 | T12: -1 | U12: 0 | V12: 0 | W12: 0
A13: 1 | B13: 1 | C13: 10 | D13: 1 | E13: 2 | F13: 3 | G13: 0.5837093909 | H13: -0.1816750606 | I13: 1.987040091 | J13: 2.451999618 | K13: 1.795451336 | L13: 1.991091375 | M13: 1.963225116 | N13: 2.203447871 | O13: 2.106029621 | P13: 1.848426808 | Q13: 0.8930027487 | R13: -0.8135186496 | S13: 4 | T13: 1 | U13: 0 | V13: 0 | W13: 0
A14: 1 | B14: 1 | C14: 10 | D14: 1 | E14: 2 | F14: 3 | G14: -0.145722595 | H14: -1.261596401 | I14: -0.618406265 | J14: -0.8668895972 | K14: 0.09580509492 | L14: -0.09018682099 | M14: 0.4083987797 | N14: 0.6089003182 | O14: 0.04942898832 | P14: -0.2908923663 | Q14: 1.075329342 | R14: -0.8742413184 | S14: 1 | T14: -1 | U14: 1 | V14: 0 | W14: 0
A15: 1 | B15: 1 | C15: 10 | D15: 1 | E15: 2 | F15: 3 | G15: 0.05678749073 | H15: -0.4169454197 | I15: -0.5254665757 | J15: 0.1770784185 | K15: 0.9921498841 | L15: 0.5072911477 | M15: 0.3327138082 | N15: 0.16719747 | O15: 0.7439565146 | P15: 1.083402437 | Q15: -0.5019970699 | R15: -0.00614380121 | S15: 0 | T15: 0 | U15: 0 | V15: 0 | W15: 0
A16: 1 | B16: 1 | C16: 10 | D16: 1 | E16: 2 | F16: 3 | G16: -0.2281170581 | H16: 0.8396377377 | I16: 0.2122206732 | J16: 0.6822839441 | K16: -0.6056309349 | L16: -0.5563118949 | M16: -0.8047941914 | N16: -0.449654354 | O16: -1.271940965 | P16: -0.964809279 | Q16: 0.2083852489 | R16: 0.1575781802 | S16: 2 | T16: -1 | U16: 0 | V16: 0 | W16: 0
A17: 1 | B17: 1 | C17: 10 | D17: 1 | E17: 2 | F17: 3 | G17: -0.9349879286 | H17: -0.7598602081 | I17: -0.5894214644 | J17: -1.227138863 | K17: -0.5489019241 | L17: -0.4583058742 | M17: -0.07426132001 | N17: -0.2621707075 | O17: -0.02080144311 | P17: -0.2908671253 | Q17: -1.268418484 | R17: -0.3544825252 | S17: 0 | T17: 0 | U17: 1 | V17: 1 | W17: 0
A18: 1 | B18: 1 | C18: 10 | D18: 1 | E18: 2 | F18: 3 | G18: 0.694804983 | H18: -0.03580830456 | I18: 0.6139878059 | J18: 0.8092543414 | K18: -0.3521981278 | L18: 0.523066323 | M18: 0.05498042381 | N18: -0.05534692926 | O18: -0.3242323747 | P18: -0.4499493559 | Q18: -0.1929335316 | R18: 0.4434928079 | S18: 0 | T18: 0 | U18: 0 | V18: 0 | W18: 0
A19: 1 | B19: 1 | C19: 10 | D19: 0 | E19: NaN | F19: 0 | G19: 0.1022076439 | H19: -0.6551952941 | I19: 1.317657133 | J19: 2.802273124 | K19: 1.625290678 | L19: 1.056334818 | M19: 0.7899649127 | N19: 1.557090718 | O19: 0.898422008 | P19: 0.5812509495 | Q19: -0.3405412727 | R19: -0.9538071759 | S19: 1 | T19: 1 | U19: 0 | V19: 0 | W19: 0
A20: 1 | B20: 1 | C20: 10 | D20: 1 | E20: 2 | F20: 2 | G20: 0.9749245968 | H20: -0.6257710448 | I20: -1.815655448 | J20: -1.797497928 | K20: -1.321237807 | L20: -0.8590901317 | M20: -1.776954049 | N20: -1.595378252 | O20: -1.681064347 | P20: -1.707711517 | Q20: 1.719797427 | R20: 1.600450019 | S20: 6 | T20: -1 | U20: 0 | V20: 0 | W20: 0
A21: 1 | B21: 1 | C21: 10 | D21: 0 | E21: NaN | F21: 0 | G21: 0.6459439812 | H21: -1.246115848 | I21: 0.9388725641 | J21: 1.960903756 | K21: 1.19733928 | L21: 0.6384514495 | M21: 0.17849327 | N21: 0.2318325574 | O21: 1.11531837 | P21: 1.03149435 | Q21: -1.41506626 | R21: -0.5058763722 | S21: 2 | T21: 1 | U21: 0 | V21: 1 | W21: 0
A22: 1 | B22: 1 | C22: 10 | D22: 1 | E22: 2 | F22: 3 | G22: -0.8133807874 | H22: -1.050336141 | I22: -1.858172295 | J22: -1.926788681 | K22: -1.873070648 | L22: -1.320015566 | M22: -1.98781619 | N22: -1.993912401 | O22: -1.617739697 | P22: -1.597186377 | Q22: -1.496087031 | R22: -0.2274572898 | S22: 9 | T22: -1 | U22: 0 | V22: 0 | W22: 1
A23: 1 | B23: 1 | C23: 10 | D23: 1 | E23: 2 | F23: 3 | G23: -0.1845649567 | H23: 0.9580120881 | I23: 1.586274024 | J23: 1.158994877 | K23: 0.8910407531 | L23: 1.37472533 | M23: 1.694548393 | N23: 1.415576347 | O23: 0.8699676475 | P23: 0.7151953907 | Q23: 2.098723274 | R23: 0.2248200083 | S23: 1 | T23: 1 | U23: 0 | V23: 0 | W23: 0
A24: 1 | B24: 1 | C24: 10 | D24: 1 | E24: 2 | F24: 3 | G24: -0.1657402982 | H24: 0.2605410915 | I24: -0.2328286595 | J24: -0.1426715029 | K24: 1.310880784 | L24: 0.8564142368 | M24: 0.6287041272 | N24: 1.084375674 | O24: 1.826399861 | P24: 1.451731751 | Q24: 0.9954077433 | R24: -0.2731689175 | S24: 0 | T24: 0 | U24: 0 | V24: 0 | W24: 0
A25: 1 | B25: 1 | C25: 10 | D25: 1 | E25: 2 | F25: 3 | G25: -0.1980731108 | H25: -0.03815131603 | I25: -0.3127584123 | J25: -0.1736647648 | K25: 0.6869270868 | L25: 0.04394308662 | M25: 1.395406641 | N25: 0.9640229395 | O25: 1.010445036 | P25: 0.8323988436 | Q25: 0.1530590511 | R25: -1.139410585 | S25: 1 | T25: 1 | U25: 0 | V25: 0 | W25: 0
A26: 1 | B26: 1 | C26: 10 | D26: 1 | E26: 2 | F26: 1 | G26: 1.200189068 | H26: 0.4177226661 | I26: -0.1230592137 | J26: -0.7571533276 | K26: -0.3105556009 | L26: -1.048653561 | M26: -0.3376168851 | N26: -0.1899352303 | O26: -0.1049351853 | P26: 0.3648793625 | Q26: -0.06134494403 | R26: 0.3377476033 | S26: 0 | T26: 0 | U26: 0 | V26: 0 | W26: 0
A27: 1 | B27: 1 | C27: 10 | D27: 1 | E27: 2 | F27: 3 | G27: -0.09915250681 | H27: 0.2831408387 | I27: 0.03549881771 | J27: -0.3840629129 | K27: -0.6900736133 | L27: -0.617303068 | M27: -0.8763025911 | N27: -0.9732432564 | O27: -0.7127353105 | P27: -0.8620771572 | Q27: 0.3035207897 | R27: 0.371578109 | S27: 2 | T27: -1 | U27: 0 | V27: 0 | W27: 0
A28: 1 | B28: 1 | C28: 10 | D28: 1 | E28: 2 | F28: 1 | G28: 1.61687842 | H28: 0.6587089325 | I28: 0.4730660667 | J28: 0.08341371024 | K28: 0.5728773445 | L28: 0.1330822608 | M28: 0.3209830029 | N28: 0.0793122392 | O28: 0.4437020565 | P28: 0.2403118455 | Q28: 0.7316641877 | R28: 0.5769173105 | S28: 1 | T28: 1 | U28: 0 | V28: 0 | W28: 0
A29: 1 | B29: 1 | C29: 10 | D29: 0 | E29: NaN | F29: 0 | G29: 0.3933622151 | H29: 0.519812332 | I29: 0.09500740059 | J29: -2.151448756 | K29: -2.382045937 | L29: -2.455174269 | M29: -3.131013864 | N29: -3.71539779 | O29: -2.57391581 | P29: -2.43542428 | Q29: -2.080006291 | R29: -0.2849493775 | S29: 8 | T29: -1 | U29: 0 | V29: 0 | W29: 0
A30: 1 | B30: 1 | C30: 10 | D30: 1 | E30: 2 | F30: 3 | G30: 0.1836141899 | H30: 1.387714553 | I30: 1.309450286 | J30: 0.5070707409 | K30: 1.300933047 | L30: 1.283533423 | M30: 1.429316948 | N30: 1.085280692 | O30: 0.7474528077 | P30: 0.9929261195 | Q30: -0.1515820028 | R30: -0.682227103 | S30: 0 | T30: 0 | U30: 0 | V30: 0 | W30: 0
A31: 1 | B31: 1 | C31: 10 | D31: 1 | E31: 2 | F31: 3 | G31: 0.3159437618 | H31: -0.6084373513 | I31: 0.6297071286 | J31: 0.6765134392 | K31: 0.8913164291 | L31: 0.4018067137 | M31: 1.114015512 | N31: 0.6261508022 | O31: 0.9025015091 | P31: 0.6003881591 | Q31: 0.8047377311 | R31: -1.590035905 | S31: 1 | T31: 1 | U31: 0 | V31: 0 | W31: 0
A32: 1 | B32: 1 | C32: 10 | D32: 1 | E32: 2 | F32: 3 | G32: 0.5694239069 | H32: -1.451995385 | I32: -1.864594291 | J32: -1.478931858 | K32: -0.8170818134 | L32: -1.431003879 | M32: -1.100788027 | N32: -1.758814971 | O32: -1.258786747 | P32: -1.027933188 | Q32: -0.9627606439 | R32: 0.2544880268 | S32: 6 | T32: -1 | U32: 0 | V32: 0 | W32: 0
A33: 1 | B33: 1 | C33: 10 | D33: 1 | E33: 2 | F33: 3 | G33: 0.465018557 | H33: 1.582780442 | I33: -0.1777097212 | J33: -0.6352576127 | K33: 1.11242874 | L33: 1.642347211 | M33: -0.5715409446 | N33: 0.6073959859 | O33: -0.1731886902 | P33: -0.2253665762 | Q33: -0.310124847 | R33: -0.01911166604 | S33: 1 | T33: 1 | U33: 0 | V33: 0 | W33: 0
A34: 1 | B34: 1 | C34: 10 | D34: 0 | E34: NaN | F34: 0 | G34: 0.5303397634 | H34: -0.741840287 | I34: 0.9327135967 | J34: 0.8699038147 | K34: 2.538971224 | L34: 2.714280236 | M34: 3.345024611 | N34: 3.718050752 | O34: 4.082886615 | P34: 2.926517835 | Q34: -1.158844771 | R34: -2.966815163 | S34: 7 | T34: 1 | U34: 1 | V34: 1 | W34: 0
A35: 1 | B35: 1 | C35: 10 | D35: 1 | E35: 2 | F35: 3 | G35: 0.2293175777 | H35: -0.1531724935 | I35: 1.694021815 | J35: 1.399257753 | K35: 2.164536507 | L35: 0.5864867921 | M35: 0.946704866 | N35: 0.5157313698 | O35: 1.251440295 | P35: 1.043468063 | Q35: 0.5183801765 | R35: -0.7790358279 | S35: 0 | T35: 0 | U35: 0 | V35: 0 | W35: 0
A36: 1 | B36: 1 | C36: 10 | D36: 1 | E36: 2 | F36: 2 | G36: -0.7050557934 | H36: -0.1588333386 | I36: -0.8897736828 | J36: -0.3088115498 | K36: -0.9444729038 | L36: -0.5181958762 | M36: -0.4401627731 | N36: -0.3281169032 | O36: -0.8974765757 | P36: -0.5940215924 | Q36: -0.03628637261 | R36: 0.02554445057 | S36: 0 | T36: 0 | U36: 0 | V36: 0 | W36: 0
A37: 1 | B37: 1 | C37: 10 | D37: 1 | E37: 2 | F37: 3 | G37: 0.8197221811 | H37: 2.522710503 | I37: 1.205404326 | J37: 1.867076719 | K37: 1.44420501 | L37: 1.488231524 | M37: 0.8973088744 | N37: 1.764406613 | O37: -0.3989471205 | P37: 0.2871168314 | Q37: 0.05280800501 | R37: -0.2755868258 | S37: 1 | T37: 1 | U37: 0 | V37: 0 | W37: 0
A38: 1 | B38: 1 | C38: 10 | D38: 1 | E38: 2 | F38: 2 | G38: -0.9391418533 | H38: -1.376942401 | I38: -1.27408389 | J38: -1.561855462 | K38: -0.434495992 | L38: -0.5813647164 | M38: 0.06132246384 | N38: -0.1672528239 | O38: -0.04973266162 | P38: 0.3808393101 | Q38: -0.1098427948 | R38: 2.794085217 | S38: 3 | T38: -1 | U38: 0 | V38: 0 | W38: 0
A39: 1 | B39: 1 | C39: 10 | D39: 1 | E39: 2 | F39: 3 | G39: -0.01217056286 | H39: -0.4908709854 | I39: 0.706594447 | J39: 1.087993448 | K39: 0.898535208 | L39: 0.4056903616 | M39: 1.475636624 | N39: 1.417069457 | O39: 1.591000815 | P39: 0.8845223039 | Q39: 0.5568434169 | R39: 0.3275585 | S39: 0 | T39: 0 | U39: 0 | V39: 0 | W39: 0
A40: 1 | B40: 1 | C40: 10 | D40: 2 | E40: NaN | F40: 0 | G40: -0.6418719314 | H40: -1.923335725 | I40: 0.8225732608 | J40: 0.9698832866 | K40: 6.214720872 | L40: 5.54637652 | M40: 5.945780245 | N40: 5.43297391 | O40: 5.5525898 | P40: 4.823395097 | Q40: -0.409669363 | R40: -3.963765662 | S40: 8 | T40: 1 | U40: 0 | V40: 1 | W40: 0
A41: 1 | B41: 1 | C41: 10 | D41: 1 | E41: 2 | F41: 1 | G41: 2.327852202 | H41: 0.9503086611 | I41: 0.2975014474 | J41: -0.008810567933 | K41: -0.3221567849 | L41: 0.4001869064 | M41: -0.3268637919 | N41: -0.06739521575 | O41: -0.6232142383 | P41: -0.03892650206 | Q41: 0.9394005557 | R41: 0.6582179792 | S41: 1 | T41: 1 | U41: 1 | V41: 0 | W41: 0
A42: 1 | B42: 1 | C42: 10 | D42: 1 | E42: 2 | F42: 3 | G42: -0.2338039386 | H42: 0.02087728703 | I42: -0.5662957949 | J42: -0.578275846 | K42: 0.8583795713 | L42: 0.1659387007 | M42: 0.4313950497 | N42: -0.01157884 | O42: -0.005051262825 | P42: 0.1009341455 | Q42: -0.03874629393 | R42: -1.147786394 | S42: 0 | T42: 0 | U42: 0 | V42: 0 | W42: 0
A43: 1 | B43: 1 | C43: 10 | D43: 1 | E43: 2 | F43: 3 | G43: 0.9265714201 | H43: 0.3127792679 | I43: -0.6168277678 | J43: -0.4771056131 | K43: 0.1365719415 | L43: -0.7804454755 | M43: 0.07405679028 | N43: -0.01550376318 | O43: 0.6917949073 | P43: 0.9952096616 | Q43: -0.174980834 | R43: 0.3127774483 | S43: 0 | T43: 0 | U43: 0 | V43: 0 | W43: 0
A44: 1 | B44: 1 | C44: 10 | D44: 1 | E44: 2 | F44: 3 | G44: -0.3416067997 | H44: 0.04483697536 | I44: -0.4915668107 | J44: -0.5185864842 | K44: 0.3497555664 | L44: -0.06062822515 | M44: -0.7255579912 | N44: -0.4789257201 | O44: -0.8079285801 | P44: -0.6266628586 | Q44: -0.3478035837 | R44: -0.4436862825 | S44: 1 | T44: -1 | U44: 0 | V44: 0 | W44: 0
A45: 1 | B45: 1 | C45: 10 | D45: 1 | E45: 2 | F45: 2 | G45: -0.7688490522 | H45: 0.7250536997 | I45: 0.4536141282 | J45: 0.4331389116 | K45: -0.8051837973 | L45: -0.9002538971 | M45: -0.469550389 | N45: -0.5882291299 | O45: -0.2833431439 | P45: 0.08409497488 | Q45: 0.2333648887 | R45: 0.761338472 | S45: 2 | T45: -1 | U45: 0 | V45: 1 | W45: 0
A46: 1 | B46: 1 | C46: 10 | D46: 1 | E46: 2 | F46: 2 | G46: -1.03679368 | H46: -0.2696872672 | I46: 0.6661002507 | J46: 0.6473674642 | K46: -0.05340815245 | L46: 0.2027755378 | M46: -0.09575056717 | N46: 0.7938821532 | O46: 0.02778950112 | P46: -0.5579188539 | Q46: -0.1058725104 | R46: 1.982020004 | S46: 0 | T46: 0 | U46: 0 | V46: 0 | W46: 0
A47: 1 | B47: 1 | C47: 10 | D47: 1 | E47: 2 | F47: 2 | G47: 1.785972891 | H47: 1.344148166 | I47: 0.661509007 | J47: 0.3529794372 | K47: 1.674341482 | L47: 1.8109765 | M47: 1.352019918 | N47: 1.636177808 | O47: 1.138656552 | P47: -0.271967972 | Q47: 4.27591506 | R47: 2.51595931 | S47: 3 | T47: 1 | U47: 0 | V47: 0 | W47: 0
A48: 1 | B48: 1 | C48: 10 | D48: 1 | E48: 2 | F48: 1 | G48: 1.56823375 | H48: -0.01184758909 | I48: 0.08178132016 | J48: -0.3040788062 | K48: -1.816764091 | L48: -1.350216229 | M48: -2.022276756 | N48: -1.506417379 | O48: -0.7886675772 | P48: -0.880321594 | Q48: -1.412952054 | R48: 0.7031853001 | S48: 2 | T48: -1 | U48: 1 | V48: 0 | W48: 0
A49: 1 | B49: 1 | C49: 10 | D49: 2 | E49: NaN | F49: 0 | G49: 1.14645638 | H49: 1.377764655 | I49: 2.824212847 | J49: 1.967441416 | K49: 2.078455571 | L49: 2.488231747 | M49: 1.654547128 | N49: 1.325577465 | O49: 2.484693205 | P49: 1.849123269 | Q49: 1.447743917 | R49: 0.1808527099 | S49: 5 | T49: 1 | U49: 0 | V49: 0 | W49: 0
A50: 2 | B50: 1 | C50: 10 | D50: 1 | E50: 2 | F50: 1 | G50: 0.9766634441 | H50: 3.408020308 | I50: 4.141978033 | J50: 2.168351568 | K50: 4.381682071 | L50: 1.854890747 | M50: 1.755458497 | N50: 1.822320347 | O50: -0.6129952874 | P50: 0.01285460879 | Q50: 1.823376712 | R50: 1.400643036 | S50: 3 | T50: 1 | U50: 0 | V50: 1 | W50: 0
A51: 2 | B51: 1 | C51: 10 | D51: 1 | E51: 2 | F51: 3 | G51: -0.09310589937 | H51: 0.6059197681 | I51: 0.517292942 | J51: 0.8259310484 | K51: 1.574750697 | L51: 0.3899091225 | M51: 0.4026311002 | N51: -0.4106937768 | O51: -0.455734957 | P51: 0.3805721189 | Q51: 0.591067805 | R51: -0.07228556717 | S51: 0 | T51: 0 | U51: 1 | V51: 1 | W51: 0
A52: 2 | B52: 1 | C52: 10 | D52: 1 | E52: 2 | F52: 3 | G52: 0.1033633987 | H52: 0.5950933438 | I52: 1.356829838 | J52: -0.1559665843 | K52: 0.8120181668 | L52: -0.2263980867 | M52: -0.5278287467 | N52: -0.2779656622 | O52: -0.5629445223 | P52: -0.3525768881 | Q52: -0.4250220461 | R52: -0.1423764969 | S52: 0 | T52: 0 | U52: 1 | V52: 0 | W52: 0
A53: 2 | B53: 1 | C53: 10 | D53: 1 | E53: 2 | F53: 1 | G53: 2.002268525 | H53: -0.08061816294 | I53: 2.521797571 | J53: 0.1670062839 | K53: 0.4902715592 | L53: 0.6082112952 | M53: 0.8066793406 | N53: -0.3476917733 | O53: 1.443197391 | P53: -0.6561072623 | Q53: 0.4084124735 | R53: -0.1551429476 | S53: 0 | T53: 0 | U53: 1 | V53: 1 | W53: 0
A54: 2 | B54: 1 | C54: 10 | D54: 1 | E54: 2 | F54: 3 | G54: 0.1411623395 | H54: 0.1308700374 | I54: -0.3115158216 | J54: -0.6874847949 | K54: -0.3777880959 | L54: -0.6713781269 | M54: 0.08282589966 | N54: -0.2626393116 | O54: -0.05700984588 | P54: -0.04929010595 | Q54: 0.4931712127 | R54: 0.4953083118 | S54: 0 | T54: 0 | U54: 0 | V54: 0 | W54: 0
A55: 2 | B55: 1 | C55: 10 | D55: 1 | E55: 1 | F55: 4 | G55: -2.161816989 | H55: -3.403404089 | I55: -3.970340146 | J55: -3.222576986 | K55: -3.608575633 | L55: -3.506344805 | M55: -3.855292301 | N55: -3.970975754 | O55: -4.168899633 | P55: -4.501436419 | Q55: -4.204440023 | R55: -2.675727461 | S55: 12 | T55: -1 | U55: 0 | V55: 0 | W55: 0
A56: 2 | B56: 1 | C56: 10 | D56: 1 | E56: 1 | F56: 5 | G56: 8.35960553 | H56: 3.759826093 | I56: 3.341750458 | J56: 4.538398032 | K56: 5.459241206 | L56: 3.325546531 | M56: 2.683573804 | N56: 1.613998438 | O56: 3.841580122 | P56: 1.277496082 | Q56: 1.114434695 | R56: 5.705581731 | S56: 10 | T56: 1 | U56: 1 | V56: 0 | W56: 0
A57: 2 | B57: 1 | C57: 10 | D57: 1 | E57: 2 | F57: 1 | G57: 5.590481544 | H57: 3.756182438 | I57: 2.933661677 | J57: 2.856317449 | K57: 1.036244159 | L57: 0.6627729969 | M57: 0.2106462846 | N57: 0.6120086559 | O57: 1.4967173 | P57: 1.269038435 | Q57: 2.652833311 | R57: 4.798981284 | S57: 6 | T57: 1 | U57: 0 | V57: 0 | W57: 0
A58: 2 | B58: 1 | C58: 10 | D58: 1 | E58: 2 | F58: 1 | G58: 4.157063033 | H58: 1.643113667 | I58: 3.70927189 | J58: 1.417546828 | K58: 1.455654782 | L58: 1.84896652 | M58: 2.477974218 | N58: 1.704885865 | O58: 0.4970701053 | P58: 0.2074764731 | Q58: 3.287772488 | R58: 1.335894917 | S58: 7 | T58: 1 | U58: 1 | V58: 0 | W58: 0
A59: 2 | B59: 1 | C59: 10 | D59: 1 | E59: 1 | F59: 5 | G59: 2.693223184 | H59: 6.225461482 | I59: 5.123458154 | J59: 4.836754807 | K59: 5.803649561 | L59: 4.499254808 | M59: 4.775749507 | N59: 5.783601666 | O59: 5.722479537 | P59: 4.522227212 | Q59: 7.685298297 | R59: 4.796978121 | S59: 12 | T59: 1 | U59: 1 | V59: 0 | W59: 0
A60: 2 | B60: 1 | C60: 20 | D60: 1 | E60: 2 | F60: 2 | G60: -0.4613577851 | H60: 1.101928256 | I60: 1.611575512 | J60: 0.6158711674 | K60: 0.4372337641 | L60: 0.4138668335 | M60: -0.729145403 | N60: -0.1115360455 | O60: 0.3798429049 | P60: 0.2730300598 | Q60: 0.5035440306 | R60: 0.6422879729 | S60: 1 | T60: 1 | U60: 0 | V60: 0 | W60: 0
A61: 2 | B61: 1 | C61: 20 | D61: 1 | E61: 2 | F61: 2 | G61: -0.7525694979 | H61: -0.5722281263 | I61: -0.08627520461 | J61: -0.2702945736 | K61: -0.2041955712 | L61: -0.04647287928 | M61: -0.5208305558 | N61: -1.208407929 | O61: -0.6060148465 | P61: -0.487066387 | Q61: -0.09084289925 | R61: 0.2636033322 | S61: 1 | T61: -1 | U61: 0 | V61: 0 | W61: 0
A62: 2 | B62: 1 | C62: 20 | D62: 1 | E62: 2 | F62: 2 | G62: 0.3955876565 | H62: -0.828065072 | I62: -0.5108933586 | J62: -0.492794325 | K62: -0.9924658103 | L62: -1.099021592 | M62: -0.6178299938 | N62: -1.304775407 | O62: -1.059313816 | P62: -1.362411697 | Q62: -0.1428215817 | R62: 1.169720536 | S62: 5 | T62: -1 | U62: 0 | V62: 0 | W62: 0
A63: 2 | B63: 1 | C63: 10 | D63: 1 | E63: 2 | F63: 1 | G63: 4.942812862 | H63: 2.133119677 | I63: 2.020509515 | J63: 1.650148945 | K63: 0.1599354011 | L63: 1.907027525 | M63: 0.2435260092 | N63: 0.7902647175 | O63: 0.7975463225 | P63: 1.417759499 | Q63: 3.819441694 | R63: 2.389742559 | S63: 5 | T63: 1 | U63: 0 | V63: 0 | W63: 0
A64: 2 | B64: 1 | C64: 10 | D64: 2 | E64: NaN | F64: 0 | G64: -1.981619378 | H64: 2.240877286 | I64: 2.252465269 | J64: 1.432796395 | K64: 0.6987553293 | L64: 0.9130052211 | M64: 1.607748788 | N64: 1.844697174 | O64: 2.292107108 | P64: 1.600506708 | Q64: -1.29260822 | R64: -3.253925502 | S64: 7 | T64: 1 | U64: 1 | V64: 0 | W64: 0
A65: 2 | B65: 1 | C65: 10 | D65: 1 | E65: 2 | F65: 3 | G65: -0.432334486 | H65: 0.4630775065 | I65: 2.646249983 | J65: 4.155756001 | K65: 1.851810392 | L65: 1.308366617 | M65: 0.2177993073 | N65: 2.008893399 | O65: 0.3919807281 | P65: -0.1607353857 | Q65: -0.4509627482 | R65: -0.02158528251 | S65: 0 | T65: 0 | U65: 0 | V65: 1 | W65: 0
A66: 2 | B66: 1 | C66: 10 | D66: 1 | E66: 2 | F66: 1 | G66: 2.645884436 | H66: 0.9602683816 | I66: 1.189746313 | J66: 1.328393971 | K66: 2.291222958 | L66: 2.494155518 | M66: 2.805458934 | N66: 4.574336445 | O66: 3.903279175 | P66: 2.15374372 | Q66: 1.47746344 | R66: 0.6232633557 | S66: 6 | T66: 1 | U66: 0 | V66: 0 | W66: 1
A67: 2 | B67: 1 | C67: 10 | D67: 1 | E67: 2 | F67: 3 | G67: 0.2110319371 | H67: 3.850474999 | I67: 3.412433219 | J67: 3.468127601 | K67: 2.639309353 | L67: 2.640333661 | M67: 2.100928444 | N67: 2.39999158 | O67: 1.888502154 | P67: 2.340682664 | Q67: 4.852378063 | R67: -0.2149244787 | S67: 10 | T67: 1 | U67: 0 | V67: 0 | W67: 0
A68: 2 | B68: 1 | C68: 10 | D68: 1 | E68: 2 | F68: 2 | G68: 0.04475818964 | H68: -0.3196120241 | I68: -0.5655718948 | J68: -0.6946485786 | K68: -0.9413205678 | L68: -0.8503048821 | M68: -0.7841457848 | N68: -0.6495954682 | O68: -0.4991343819 | P68: -0.6283825935 | Q68: -0.5263624055 | R68: 0.9726520586 | S68: 2 | T68: -1 | U68: 0 | V68: 0 | W68: 0
A69: 2 | B69: 1 | C69: 10 | D69: 1 | E69: 2 | F69: 3 | G69: 1.068145147 | H69: 3.433687376 | I69: 2.837441499 | J69: 2.627750013 | K69: 2.432359664 | L69: 3.057587319 | M69: 2.970601909 | N69: 2.118412522 | O69: 3.04262174 | P69: 2.986117503 | Q69: 7.405958281 | R69: -1.864510856 | S69: 11 | T69: 1 | U69: 0 | V69: 0 | W69: 0
A70: 2 | B70: 1 | C70: 10 | D70: 1 | E70: 2 | F70: 3 | G70: -0.4732041268 | H70: 0.07651860761 | I70: 0.5140819176 | J70: 0.1403850317 | K70: 0.07408722335 | L70: -0.004394366246 | M70: 0.0922050068 | N70: -0.2728309876 | O70: 0.1813263661 | P70: 0.1390498863 | Q70: 0.3021557569 | R70: -0.3958760405 | S70: 0 | T70: 0 | U70: 0 | V70: 0 | W70: 0
A71: 2 | B71: 1 | C71: 10 | D71: 1 | E71: 1 | F71: 4 | G71: -0.6277750526 | H71: -1.387797437 | I71: -0.8639491163 | J71: -1.335423329 | K71: -1.51638132 | L71: -1.789265212 | M71: -1.93377733 | N71: -1.915920169 | O71: -2.180886317 | P71: -2.607461761 | Q71: -2.459720488 | R71: -1.198041629 | S71: 9 | T71: -1 | U71: 0 | V71: 0 | W71: 0
A72: 2 | B72: 1 | C72: 10 | D72: 2 | E72: NaN | F72: 0 | G72: -1.206497947 | H72: -0.1885244547 | I72: -0.06109987967 | J72: -1.512227232 | K72: -2.047243693 | L72: -1.701979494 | M72: -2.637209729 | N72: -2.14691379 | O72: -0.2192491103 | P72: -0.5671953797 | Q72: -0.5727475357 | R72: 0.6021645959 | S72: 5 | T72: -1 | U72: 0 | V72: 1 | W72: 0
A73: 2 | B73: 1 | C73: 10 | D73: 1 | E73: 2 | F73: 3 | G73: 0.8318351676 | H73: 0.04660494728 | I73: 1.385772596 | J73: 1.693472751 | K73: 0.2288117101 | L73: 0.03800289726 | M73: 0.05252893154 | N73: -0.08979293543 | O73: -0.4167415139 | P73: -0.481686683 | Q73: 2.058570138 | R73: -0.3036217195 | S73: 2 | T73: 1 | U73: 0 | V73: 0 | W73: 0
A74: 2 | B74: 1 | C74: 10 | D74: 1 | E74: 2 | F74: 2 | G74: -0.9115507003 | H74: -0.2297452312 | I74: -0.6700141253 | J74: -0.6132860398 | K74: -0.7771985773 | L74: -0.5743084475 | M74: -0.2448677132 | N74: -0.006205274805 | O74: 0.4828551534 | P74: 0.6142339709 | Q74: 0.3187771791 | R74: 0.823676564 | S74: 0 | T74: 0 | U74: 0 | V74: 0 | W74: 0
A75: 2 | B75: 1 | C75: 10 | D75: 1 | E75: 2 | F75: 1 | G75: 2.825074291 | H75: -0.4561055147 | I75: 1.133328396 | J75: 1.063576874 | K75: 0.1728043521 | L75: 0.6258301832 | M75: 0.3284215397 | N75: 0.1878474439 | O75: -0.5558430867 | P75: -0.9212413487 | Q75: 5.590486837 | R75: -0.5678832812 | S75: 2 | T75: 1 | U75: 1 | V75: 0 | W75: 0
A76: 2 | B76: 1 | C76: 20 | D76: 1 | E76: 1 | F76: 5 | G76: 1.409561882 | H76: 7.077872416 | I76: 7.365169477 | J76: 7.86688716 | K76: 4.547138206 | L76: 3.124452816 | M76: 2.570637216 | N76: 2.572703629 | O76: 1.565800916 | P76: 0.8370177921 | Q76: 6.701722077 | R76: 10.3359846 | S76: 6 | T76: 1 | U76: 1 | V76: 0 | W76: 0
A77: 2 | B77: 1 | C77: 20 | D77: 1 | E77: 2 | F77: 3 | G77: -0.1890606566 | H77: 0.3799430117 | I77: 1.725234816 | J77: 1.273658635 | K77: 0.8273913924 | L77: 0.5408074492 | M77: 0.415116328 | N77: -0.04981049868 | O77: 0.1350652424 | P77: -0.4239564842 | Q77: -0.5657117611 | R77: -1.716004389 | S77: 0 | T77: 0 | U77: 0 | V77: 0 | W77: 0
A78: 2 | B78: 1 | C78: 20 | D78: 1 | E78: 2 | F78: 3 | G78: -0.1591097315 | H78: 1.496695492 | I78: 0.7155862877 | J78: 0.01167418488 | K78: 0.02207142638 | L78: -0.7878617588 | M78: 0.4332325681 | N78: 0.2761653879 | O78: 0.7666231896 | P78: 0.6070713047 | Q78: -0.4044308394 | R78: -0.8718278399 | S78: 0 | T78: 0 | U78: 0 | V78: 0 | W78: 0
A79: 2 | B79: 1 | C79: 20 | D79: 1 | E79: 2 | F79: 3 | G79: -0.47176729 | H79: 0.4009001993 | I79: 0.3603285578 | J79: 1.019501249 | K79: -0.02758797969 | L79: -0.7696389486 | M79: 0.2656372328 | N79: 0.2422849023 | O79: -0.2191239543 | P79: -0.4300306243 | Q79: 0.7183775992 | R79: -0.1027821375 | S79: 0 | T79: 0 | U79: 0 | V79: 0 | W79: 0
A80: 2 | B80: 1 | C80: 20 | D80: 1 | E80: 2 | F80: 3 | G80: 0.1865760494 | H80: 0.7847209318 | I80: 0.9719683914 | J80: 1.383782112 | K80: 0.4535302985 | L80: 0.618353761 | M80: 0.1804102714 | N80: 0.2249042112 | O80: 0.6321221361 | P80: 0.4418809354 | Q80: -0.08314131426 | R80: -0.5288761389 | S80: 0 | T80: 0 | U80: 0 | V80: 0 | W80: 0
A81: 2 | B81: 1 | C81: 20 | D81: 1 | E81: 2 | F81: 3 | G81: -0.4743849506 | H81: 0.7307081738 | I81: -0.9185488252 | J81: -0.8495277869 | K81: -0.1925057687 | L81: -0.3296123007 | M81: -0.03068006917 | N81: 0.3556908087 | O81: -0.08962404285 | P81: -0.257489462 | Q81: 0.8529196891 | R81: -0.4517037139 | S81: 0 | T81: 0 | U81: 0 | V81: 0 | W81: 0
A82: 2 | B82: 1 | C82: 20 | D82: 1 | E82: 1 | F82: 4 | G82: 0.4475340405 | H82: -0.8687919187 | I82: -0.8687919187 | J82: -0.8116466506 | K82: -0.7536619695 | L82: -0.7596369382 | M82: -0.8132959691 | N82: -0.8676032123 | O82: -0.7659499828 | P82: -0.8699887895 | Q82: -0.8699887895 | R82: -1.415779373 | S82: 10 | T82: -1 | U82: 1 | V82: 0 | W82: 0
A83: 2 | B83: 1 | C83: 20 | D83: 1 | E83: 2 | F83: 3 | G83: -1.388717794 | H83: -1.674855761 | I83: -1.527061547 | J83: -1.590491134 | K83: -0.9508185701 | L83: -0.8870425031 | M83: 0.1500649752 | N83: 0.3900025966 | O83: 1.610710026 | P83: 0.844102066 | Q83: -0.09043950707 | R83: -1.881771219 | S83: 4 | T83: -1 | U83: 0 | V83: 0 | W83: 0
A84: 2 | B84: 1 | C84: 20 | D84: 1 | E84: 2 | F84: 3 | G84: -0.7378761698 | H84: -1.837839666 | I84: -1.172981151 | J84: -1.343400531 | K84: -1.049295342 | L84: -0.9534851228 | M84: -1.122159247 | N84: -0.7471983406 | O84: -0.2004775118 | P84: -0.8757858979 | Q84: -1.280043402 | R84: -1.762094081 | S84: 5 | T84: -1 | U84: 0 | V84: 0 | W84: 0
A85: 2 | B85: 1 | C85: 20 | D85: 1 | E85: 2 | F85: 3 | G85: 0.110521058 | H85: 0.09529654501 | I85: 0.1587010192 | J85: -0.08252464658 | K85: 0.5114266504 | L85: 0.5073594343 | M85: -0.5287637543 | N85: -0.4640387226 | O85: -0.03191344374 | P85: -0.04183339383 | Q85: -0.4372773619 | R85: 0.3301133495 | S85: 0 | T85: 0 | U85: 0 | V85: 0 | W85: 0
A86: 2 | B86: 1 | C86: 10 | D86: 1 | E86: 2 | F86: 3 | G86: 2.241776242 | H86: -0.05463928068 | I86: -0.1067807657 | J86: -0.3699889353 | K86: 0.3193970673 | L86: -0.4178941169 | M86: -0.2562842477 | N86: -0.7856293557 | O86: -0.5567271166 | P86: -0.5966453903 | Q86: 4.638223995 | R86: -1.582561833 | S86: 3 | T86: 1 | U86: 0 | V86: 0 | W86: 0
A87: 2 | B87: 1 | C87: 10 | D87: 1 | E87: 2 | F87: 3 | G87: 0.07804128713 | H87: 1.255214462 | I87: -0.07048495651 | J87: 0.04222253935 | K87: 1.08511315 | L87: 1.795605912 | M87: 0.5943602527 | N87: 1.061459257 | O87: 0.0823119097 | P87: 0.4870344302 | Q87: 2.193013325 | R87: 0.2382437253 | S87: 2 | T87: 1 | U87: 1 | V87: 0 | W87: 0
A88: 2 | B88: 1 | C88: 10 | D88: 1 | E88: 2 | F88: 3 | G88: -1.38024762 | H88: -1.024048836 | I88: 0.2431382782 | J88: 0.2590091625 | K88: -1.037842072 | L88: -0.06226624558 | M88: -0.3611873846 | N88: -0.8649465125 | O88: -1.198688326 | P88: -0.7845200805 | Q88: -0.2461127049 | R88: -0.8273011657 | S88: 2 | T88: -1 | U88: 0 | V88: 0 | W88: 1
A89: 2 | B89: 1 | C89: 10 | D89: 1 | E89: 2 | F89: 2 | G89: 0.159202358 | H89: -0.6143904796 | I89: -0.4058040554 | J89: -0.3887401766 | K89: 0.2655136761 | L89: 0.2327051947 | M89: -1.125487041 | N89: -0.4157253346 | O89: -0.06545587471 | P89: 0.3809254867 | Q89: 1.784956087 | R89: 1.564425602 | S89: 2 | T89: 1 | U89: 0 | V89: 0 | W89: 0
A90: 2 | B90: 1 | C90: 10 | D90: 1 | E90: 2 | F90: 3 | G90: 0.1719957878 | H90: -0.5085110089 | I90: 0.2258303986 | J90: -0.1940215925 | K90: -0.5056901382 | L90: -0.5409994388 | M90: 0.05076977278 | N90: -0.5942492625 | O90: 0.6998886236 | P90: 0.6793730836 | Q90: -0.004624073047 | R90: -0.2566646113 | S90: 0 | T90: 0 | U90: 0 | V90: 0 | W90: 1
A91: 2 | B91: 1 | C91: 10 | D91: 1 | E91: 2 | F91: 2 | G91: -0.560974176 | H91: -1.148784456 | I91: -0.9761105555 | J91: -0.8775939904 | K91: -0.6521034239 | L91: -0.2109261461 | M91: 0.3413759122 | N91: 0.4606871953 | O91: 0.371375216 | P91: 0.5164572268 | Q91: 1.293233588 | R91: 0.6833467244 | S91: 1 | T91: -1 | U91: 0 | V91: 0 | W91: 0
A92: 2 | B92: 1 | C92: 10 | D92: 1 | E92: 2 | F92: 3 | G92: -0.315261812 | H92: -0.6367241582 | I92: -0.4663287589 | J92: -0.1792111262 | K92: -1.242404154 | L92: -0.714300788 | M92: -0.1680322782 | N92: -0.1527713885 | O92: 0.2532087333 | P92: 0.07095916112 | Q92: -0.4710837684 | R92: -1.470579644 | S92: 2 | T92: -1 | U92: 1 | V92: 0 | W92: 0
A93: 2 | B93: 1 | C93: 10 | D93: 1 | E93: 2 | F93: 2 | G93: -0.6799164641 | H93: -1.067231794 | I93: -0.7331776544 | J93: -0.6563763138 | K93: -0.2018123856 | L93: 0.3199256358 | M93: -1.036139839 | N93: -0.8331194368 | O93: -0.5750511731 | P93: -1.233944855 | Q93: -0.1315277851 | R93: 0.0577099286 | S93: 2 | T93: -1 | U93: 0 | V93: 0 | W93: 0
A94: 2 | B94: 1 | C94: 20 | D94: 1 | E94: 2 | F94: 3 | G94: 0.247297605 | H94: 1.414181659 | I94: 2.310277197 | J94: 1.844479681 | K94: 1.096861274 | L94: 1.348039493 | M94: 0.3404262291 | N94: 0.6378503938 | O94: -0.4427016293 | P94: -0.2831926563 | Q94: -0.4088810768 | R94: -0.1510368527 | S94: 3 | T94: 1 | U94: 0 | V94: 0 | W94: 0
A95: 2 | B95: 1 | C95: 20 | D95: 1 | E95: 2 | F95: 3 | G95: 1.286902059 | H95: 0.9635966847 | I95: 1.002288833 | J95: 0.6837100975 | K95: 0.9882206006 | L95: 0.9597369364 | M95: -0.4325615304 | N95: -0.02632770933 | O95: 0.902011735 | P95: 0.7567885286 | Q95: 0.4583105934 | R95: 0.6115654565 | S95: 0 | T95: 0 | U95: 0 | V95: 0 | W95: 0
A96: 2 | B96: 1 | C96: 20 | D96: 1 | E96: 2 | F96: 1 | G96: 2.310656501 | H96: 0.70699049 | I96: 1.588810436 | J96: 0.7741696352 | K96: 1.321359628 | L96: 1.157602699 | M96: 0.07638136188 | N96: -0.1267026052 | O96: 0.1333579184 | P96: 0.7880295881 | Q96: 0.6179855703 | R96: 1.876286031 | S96: 2 | T96: 1 | U96: 0 | V96: 0 | W96: 0
A97: 2 | B97: 1 | C97: 20 | D97: 1 | E97: 2 | F97: 3 | G97: 0.6250592641 | H97: -0.06126531086 | I97: -0.6581031361 | J97: -0.1496575645 | K97: 0.05099612503 | L97: 0.1918894302 | M97: 0.03758836718 | N97: -0.2281433409 | O97: -0.3746815637 | P97: 0.009996480226 | Q97: -0.7468037161 | R97: 0.1887138819 | S97: 0 | T97: 0 | U97: 0 | V97: 0 | W97: 0
A98: 2 | B98: 1 | C98: 20 | D98: 1 | E98: 1 | F98: 4 | G98: -1.083215551 | H98: -0.7855442184 | I98: -0.9430302742 | J98: -0.9457405306 | K98: -0.9457405306 | L98: -1.007303423 | M98: -0.8074226344 | N98: -0.7921160893 | O98: -0.9751819444 | P98: -0.9621724692 | Q98: -0.9621724692 | R98: -0.5937609755 | S98: 1 | T98: -1 | U98: 0 | V98: 0 | W98: 0
A99: 2 | B99: 1 | C99: 20 | D99: 2 | E99: NaN | F99: 0 | G99: 4.588432182 | H99: 8.970955875 | I99: 11.98879016 | J99: 16.64133803 | K99: 17.40755408 | L99: 15.84120884 | M99: 15.83652714 | N99: 16.90456941 | O99: 16.54903551 | P99: 18.00131823 | Q99: 20.38555376 | R99: 11.45452799 | S99: 12 | T99: 1 | U99: 0 | V99: 0 | W99: 0
A100: 2 | B100: 1 | C100: 10 | D100: 1 | E100: 2 | F100: 3 | G100: 3.773965234 | H100: -0.5437754887 | I100: -0.3993343323 | J100: -0.5274374708 | K100: 0.1363383104 | L100: -0.4284543917 | M100: -1.045409083 | N100: -0.2213406539 | O100: -0.2213406539 | P100: -0.8954903035 | Q100: 3.813629728 | R100: -0.6701704579 | S100: 2 | T100: 1 | U100: 0 | V100: 0 | W100: 0
A101: 2 | B101: 1 | C101: 10 | D101: 1 | E101: 2 | F101: 3 | G101: -0.1110869574 | H101: -0.4055881802 | I101: -0.7944319335 | J101: -0.5462750352 | K101: -1.718286443 | L101: -1.291312324 | M101: -0.8648883275 | N101: -0.9835959308 | O101: -1.447080245 | P101: -1.190886359 | Q101: -0.4840349592 | R101: -1.68481215 | S101: 4 | T101: -1 | U101: 1 | V101: 0 | W101: 0
A102: 2 | B102: 1 | C102: 10 | D102: 1 | E102: 2 | F102: 3 | G102: -0.06931005758 | H102: -0.3632645499 | I102: -0.1391937506 | J102: -0.1606670334 | K102: 0.8167623406 | L102: 0.763450001 | M102: 1.226659009 | N102: 1.06199977 | O102: 0.2564650132 | P102: 0.1944831689 | Q102: 0.4583918802 | R102: 0.2773695162 | S102: 0 | T102: 0 | U102: 0 | V102: 0 | W102: 0
A103: 2 | B103: 1 | C103: 10 | D103: 1 | E103: 2 | F103: 3 | G103: 0.3290775256 | H103: 0.7522734837 | I103: -0.6149565163 | J103: 0.2485581022 | K103: 0.1497766243 | L103: 0.3459101663 | M103: 0.5711233023 | N103: 0.555213117 | O103: 1.079551989 | P103: 1.119220853 | Q103: 0.01562325851 | R103: 0.3572274672 | S103: 1 | T103: 1 | U103: 0 | V103: 0 | W103: 0
A104: 2 | B104: 1 | C104: 10 | D104: 1 | E104: 2 | F104: 3 | G104: -0.942094069 | H104: 0.3920621782 | I104: -1.282871363 | J104: -0.9966060654 | K104: -0.8843537029 | L104: -0.4071070231 | M104: -0.3918458282 | N104: -0.4185702829 | O104: 0.06682460072 | P104: -0.3383263591 | Q104: -0.2798784291 | R104: -0.8796063132 | S104: 2 | T104: -1 | U104: 0 | V104: 0 | W104: 0
A105: 2 | B105: 1 | C105: 10 | D105: 1 | E105: 1 | F105: 4 | G105: 0.8613103549 | H105: -1.200194475 | I105: -1.559750444 | J105: -1.129565382 | K105: -1.176542642 | L105: -1.452161458 | M105: -1.114088553 | N105: -1.074911402 | O105: -1.085122759 | P105: -1.300944271 | Q105: -1.493651113 | R105: -0.5624777515 | S105: 10 | T105: -1 | U105: 1 | V105: 0 | W105: 0
A106: 2 | B106: 1 | C106: 10 | D106: 1 | E106: 2 | F106: 2 | G106: -0.7414035537 | H106: -1.168734461 | I106: -1.30031141 | J106: -1.174055871 | K106: -1.428826945 | L106: -0.9557810365 | M106: -1.661973558 | N106: -1.479987784 | O106: -1.52737166 | P106: -1.233288525 | Q106: -1.138193658 | R106: 2.751533147 | S106: 8 | T106: -1 | U106: 0 | V106: 0 | W106: 0
A107: 2 | B107: 1 | C107: 10 | D107: 1 | E107: 2 | F107: 3 | G107: -0.5766160925 | H107: -0.1134925555 | I107: -0.3220503969 | J107: -1.470512488 | K107: -0.5932101242 | L107: -0.4863927886 | M107: -1.172966169 | N107: -0.8126016538 | O107: -1.29404509 | P107: -1.356878536 | Q107: -1.983863002 | R107: -1.090781993 | S107: 6 | T107: -1 | U107: 0 | V107: 0 | W107: 0
A108: 2 | B108: 1 | C108: 10 | D108: 1 | E108: 2 | F108: 2 | G108: -0.08521775743 | H108: -0.2770074273 | I108: -0.7578504515 | J108: -0.02590816761 | K108: -0.6632549067 | L108: -1.076172034 | M108: -0.2723548095 | N108: -0.4929961527 | O108: 0.7240580169 | P108: 0.3266538873 | Q108: -0.4412724035 | R108: 1.332830229 | S108: 2 | T108: -1 | U108: 0 | V108: 0 | W108: 0
A109: 2 | B109: 1 | C109: 10 | D109: 1 | E109: 2 | F109: 3 | G109: -0.3483668769 | H109: -0.6658839598 | I109: -0.7293150765 | J109: -0.7856131614 | K109: -1.677050943 | L109: -1.240451324 | M109: -1.231407035 | N109: -0.9672192075 | O109: -1.220021208 | P109: -1.176658388 | Q109: -1.253054365 | R109: -1.918374004 | S109: 7 | T109: -1 | U109: 0 | V109: 0 | W109: 0
A110: 2 | B110: 1 | C110: 10 | D110: 1 | E110: 2 | F110: 3 | G110: 0.5019124327 | H110: 0.5281465915 | I110: 0.5765618389 | J110: 1.13732456 | K110: 0.220117681 | L110: 0.8291470928 | M110: 0.5143704343 | N110: 0.9073156135 | O110: -0.5900627704 | P110: -0.2624182816 | Q110: -0.2987019676 | R110: 0.07469830136 | S110: 0 | T110: 0 | U110: 0 | V110: 0 | W110: 0
A111: 2 | B111: 1 | C111: 10 | D111: 0 | E111: NaN | F111: 0 | G111: 0.9219268679 | H111: -0.2608416939 | I111: 0.4265832242 | J111: 0.6571957075 | K111: 0.3541817746 | L111: 0.6941201889 | M111: 0.3575524424 | N111: 1.114648277 | O111: 0.4561356781 | P111: 1.021339088 | Q111: 2.485578799 | R111: 0.6658216884 | S111: 1 | T111: 1 | U111: 0 | V111: 0 | W111: 0
A112: 2 | B112: 1 | C112: 10 | D112: 1 | E112: 2 | F112: 3 | G112: -0.7555708964 | H112: 2.736251032 | I112: 0.4472074862 | J112: 0.992602201 | K112: 1.891634984 | L112: 1.892382376 | M112: 0.8634929754 | N112: 1.384586512 | O112: 0.03186001544 | P112: 0.2731926678 | Q112: 0.7719873502 | R112: 0.1519519638 | S112: 0 | T112: 0 | U112: 0 | V112: 0 | W112: 0
A113: 2 | B113: 1 | C113: 10 | D113: 1 | E113: 2 | F113: 3 | G113: -0.4199040022 | H113: 0.1166690117 | I113: 0.08696728743 | J113: 0.3673606188 | K113: 0.6547969558 | L113: 0.325381049 | M113: 0.6806180163 | N113: 0.4101094024 | O113: 0.526535709 | P113: 0.1280703851 | Q113: 0.2524062577 | R113: 0.2464864448 | S113: 0 | T113: 0 | U113: 0 | V113: 0 | W113: 0
A114: 2 | B114: 1 | C114: 10 | D114: 1 | E114: 2 | F114: 3 | G114: 2.940960461 | H114: -1.080520259 | I114: -0.4263413551 | J114: -0.9495505845 | K114: -0.4105142651 | L114: -0.5392245999 | M114: -0.39456729 | N114: -1.137908525 | O114: 0.06272151204 | P114: -1.392457237 | Q114: 4.676051568 | R114: -1.128532248 | S114: 4 | T114: 1 | U114: 0 | V114: 0 | W114: 0
A115: 2 | B115: 1 | C115: 10 | D115: 1 | E115: 2 | F115: 2 | G115: -2.17475823 | H115: -0.9016918259 | I115: -1.088327074 | J115: -0.1759637042 | K115: 0.8971183236 | L115: 1.509234241 | M115: 0.8959367295 | N115: 1.220258283 | O115: 0.818734001 | P115: 1.243193883 | Q115: -0.7311158434 | R115: 0.6593455148 | S115: 1 | T115: 1 | U115: 0 | V115: 0 | W115: 0
A116: 2 | B116: 1 | C116: 10 | D116: 1 | E116: 2 | F116: 3 | G116: -1.250141466 | H116: -0.7726093069 | I116: -1.799247212 | J116: -1.117868705 | K116: -0.3026544093 | L116: -0.4877876616 | M116: -0.612374737 | N116: -0.6020035931 | O116: -1.036404456 | P116: -0.497837415 | Q116: -0.1645786265 | R116: -0.2257781038 | S116: 3 | T116: -1 | U116: 0 | V116: 0 | W116: 0
A117: 2 | B117: 1 | C117: 10 | D117: 1 | E117: 2 | F117: 1 | G117: 3.172364043 | H117: 1.199860547 | I117: -0.5284799874 | J117: -0.6555809783 | K117: 1.184453028 | L117: 1.294188273 | M117: -0.1663502892 | N117: -0.4608204553 | O117: 0.5176769851 | P117: 0.2545228911 | Q117: 1.087782295 | R117: -0.05892471508 | S117: 2 | T117: 1 | U117: 1 | V117: 0 | W117: 0
A118: 2 | B118: 1 | C118: 10 | D118: 1 | E118: 2 | F118: 2 | G118: -0.4983002011 | H118: -0.2544642073 | I118: 0.2180074631 | J118: 0.206305338 | K118: 0.9405193273 | L118: 0.9081276814 | M118: 0.5116379302 | N118: 0.1689711246 | O118: -0.631694514 | P118: 0.2294520534 | Q118: 0.202061485 | R118: 0.6230866747 | S118: 0 | T118: 0 | U118: 0 | V118: 1 | W118: 0
A119: 2 | B119: 1 | C119: 10 | D119: 1 | E119: 2 | F119: 3 | G119: -1.253304822 | H119: 0.03093995238 | I119: -2.314846002 | J119: -1.740819586 | K119: -1.049059902 | L119: -0.8819643 | M119: -1.116884698 | N119: -0.5099014509 | O119: -0.5430536939 | P119: -0.3458920823 | Q119: -1.345634099 | R119: -1.590292801 | S119: 6 | T119: -1 | U119: 0 | V119: 1 | W119: 0
A120: 2 | B120: 1 | C120: 10 | D120: 1 | E120: 2 | F120: 2 | G120: -0.3679512559 | H120: -0.3762127328 | I120: 0.7045360008 | J120: 0.7364878628 | K120: -0.3823126807 | L120: -0.3596369293 | M120: -0.3596369293 | N120: -0.3620524053 | O120: -0.3620524053 | P120: -0.2434072722 | Q120: -0.2434072722 | R120: 14.11746125 | S120: 0 | T120: 0 | U120: 0 | V120: 0 | W120: 0
A121: 2 | B121: 1 | C121: 10 | D121: 1 | E121: 2 | F121: 2 | G121: 1.205410933 | H121: -0.003046283886 | I121: 0.08376814668 | J121: -0.05122386293 | K121: 0.0336674867 | L121: -0.1828299362 | M121: 0.3688752927 | N121: -0.4172379672 | O121: 1.826888888 | P121: 1.98529426 | Q121: -0.5995271678 | R121: 1.687562328 | S121: 0 | T121: 0 | U121: 0 | V121: 0 | W121: 0
A122: 3 | B122: 0 | C122: 20 | D122: 1 | E122: 2 | F122: 1 | G122: 1.967899776 | H122: 1.393432258 | I122: 1.376381177 | J122: 2.102301882 | K122: 0.9178391694 | L122: 1.254120634 | M122: 0.8259683488 | N122: 1.747963875 | O122: 1.168683474 | P122: 0.3378127713 | Q122: 1.106246656 | R122: -1.027676395 | S122: 2 | T122: 1 | U122: 0 | V122: 0 | W122: 0
A123: 3 | B123: 0 | C123: 20 | D123: 0 | E123: NaN | F123: 0 | G123: -0.2529416558 | H123: 0.1466198246 | I123: 0.8254231248 | J123: -1.655060506 | K123: -1.508439374 | L123: -2.011113748 | M123: -0.7691042781 | N123: -2.193872316 | O123: 0.1513524144 | P123: -0.692178926 | Q123: 0.163821394 | R123: 2.468858232 | S123: 4 | T123: -1 | U123: 0 | V123: 0 | W123: 0
A124: 3 | B124: 0 | C124: 10 | D124: 1 | E124: 2 | F124: 3 | G124: 0.4899207364 | H124: 0.8923364972 | I124: 0.7842551342 | J124: -0.04901201195 | K124: 0.4231998724 | L124: 0.5556402046 | M124: -0.2075367236 | N124: -0.2275026212 | O124: -1.14014109 | P124: -0.9537191416 | Q124: -0.0231959082 | R124: -1.422241433 | S124: 3 | T124: -1 | U124: 0 | V124: 0 | W124: 0
A125: 3 | B125: 0 | C125: 10 | D125: 1 | E125: 2 | F125: 3 | G125: 0.448327084 | H125: 0.926954682 | I125: 0.2661420189 | J125: 1.028829184 | K125: 0.9945970847 | L125: 0.2886799241 | M125: 0.04595952323 | N125: 1.448556008 | O125: 0.5425061297 | P125: 0.8351710069 | Q125: 0.3422711562 | R125: 0.5183268217 | S125: 0 | T125: 0 | U125: 0 | V125: 0 | W125: 1
A126: 3 | B126: 0 | C126: 20 | D126: 1 | E126: 2 | F126: 2 | G126: 0.8665435168 | H126: 0.6140086421 | I126: -0.2179965073 | J126: -0.3985524291 | K126: -1.228425299 | L126: -1.299111595 | M126: -0.8367357113 | N126: -0.8056219938 | O126: -1.020380211 | P126: 0.02598153531 | Q126: -0.2182296712 | R126: 1.603408261 | S126: 1 | T126: -1 | U126: 1 | V126: 0 | W126: 1
A127: 3 | B127: 0 | C127: 20 | D127: 0 | E127: NaN | F127: 0 | G127: 2.235692747 | H127: -0.1579887885 | I127: 0.2526037384 | J127: -0.853504414 | K127: 0.5851782693 | L127: -0.7742208252 | M127: 0.7208860042 | N127: -0.06670157975 | O127: 0.7702399417 | P127: -0.3241981642 | Q127: -0.7366194069 | R127: -3.21720681 | S127: 1 | T127: -1 | U127: 1 | V127: 0 | W127: 0
A128: 3 | B128: 0 | C128: 20 | D128: 1 | E128: 2 | F128: 3 | G128: 1.388687253 | H128: -0.1307461527 | I128: 0.6662999937 | J128: -0.2114679369 | K128: -0.3083102005 | L128: -0.5159817877 | M128: -1.672228967 | N128: -0.6894163189 | O128: -0.7383672225 | P128: -0.810270532 | Q128: -0.4274343779 | R128: -0.6826003118 | S128: 1 | T128: -1 | U128: 0 | V128: 0 | W128: 0
A129: 3 | B129: 0 | C129: 20 | D129: 1 | E129: 2 | F129: 3 | G129: 0.7661031352 | H129: -1.142394215 | I129: -1.327720171 | J129: -0.1605166204 | K129: -0.8146292283 | L129: -1.367003509 | M129: -1.070137987 | N129: -0.7915431724 | O129: -0.8109756329 | P129: -0.5013322959 | Q129: -0.6080375827 | R129: -0.6032066725 | S129: 3 | T129: -1 | U129: 0 | V129: 0 | W129: 0
A130: 3 | B130: 0 | C130: 20 | D130: 1 | E130: 2 | F130: 1 | G130: 2.48612665 | H130: -0.4124104108 | I130: -1.380816323 | J130: -2.638517753 | K130: -2.925839905 | L130: -2.242246372 | M130: -2.594510805 | N130: -2.697763603 | O130: -2.239404687 | P130: -2.253802772 | Q130: 0.1327152394 | R130: 8.449780695 | S130: 9 | T130: -1 | U130: 0 | V130: 0 | W130: 0
A131: 3 | B131: 0 | C131: 20 | D131: 1 | E131: 2 | F131: 2 | G131: 0.9832386145 | H131: 0.6058385527 | I131: 2.192011633 | J131: 1.552291126 | K131: 1.500344626 | L131: 1.047311393 | M131: 1.569408057 | N131: -0.07905012882 | O131: 0.9339434477 | P131: -0.134688907 | Q131: 0.9778103974 | R131: 2.793740674 | S131: 1 | T131: 1 | U131: 0 | V131: 0 | W131: 0
A132: 3 | B132: 0 | C132: 20 | D132: 1 | E132: 1 | F132: 4 | G132: -0.3431432111 | H132: -2.264597678 | I132: -2.694077608 | J132: -2.607561793 | K132: -2.386324859 | L132: -2.491454869 | M132: -2.697680432 | N132: -2.744848524 | O132: -2.824067898 | P132: -2.884767144 | Q132: -2.537305108 | R132: -1.13409029 | S132: 10 | T132: -1 | U132: 0 | V132: 0 | W132: 0
A133: 3 | B133: 0 | C133: 20 | D133: 1 | E133: 2 | F133: 3 | G133: -0.0787574788 | H133: -0.3639232054 | I133: -0.3767159926 | J133: -0.02129901162 | K133: -0.09686139639 | L133: 0.4096725606 | M133: 0.04543839404 | N133: 0.2165461531 | O133: 0.5003162553 | P133: 0.8727050864 | Q133: -0.8126712137 | R133: -0.1860985483 | S133: 0 | T133: 0 | U133: 0 | V133: 0 | W133: 0
A134: 3 | B134: 0 | C134: 10 | D134: 1 | E134: 2 | F134: 2 | G134: -0.4595039561 | H134: -0.4818957717 | I134: 0.3081466492 | J134: 0.3730383509 | K134: 0.1106960567 | L134: -0.4137294202 | M134: -0.2024703823 | N134: -0.4194624211 | O134: -0.2623171885 | P134: -0.3018184173 | Q134: -0.6232535138 | R134: 1.971037213 | S134: 1 | T134: -1 | U134: 1 | V134: 1 | W134: 0
A135: 3 | B135: 0 | C135: 10 | D135: 1 | E135: 2 | F135: 3 | G135: 0.1220415067 | H135: 0.1515090116 | I135: -0.05541918671 | J135: -0.5457540301 | K135: 0.3615457164 | L135: 0.131010586 | M135: -0.3706564972 | N135: -0.003575893106 | O135: -0.8065931598 | P135: -0.579155554 | Q135: -1.083131254 | R135: 0.549559637 | S135: 1 | T135: -1 | U135: 0 | V135: 0 | W135: 0
A136: 4 | B136: 0 | C136: 20 | D136: 1 | E136: 2 | F136: 3 | G136: -0.8531743375 | H136: 0.07908875239 | I136: 0.4781401855 | J136: 1.603304936 | K136: -0.3156731972 | L136: 0.5272723072 | M136: 0.6551752511 | N136: -0.463455976 | O136: -0.5272638366 | P136: -0.4118622113 | Q136: -1.829613332 | R136: 0.05024316382 | S136: 1 | T136: -1 | U136: 0 | V136: 0 | W136: 0
A137: 4 | B137: 0 | C137: 20 | D137: 1 | E137: 1 | F137: 5 | G137: 0.3749751009 | H137: -2.555365847 | I137: -3.183038195 | J137: -2.673039611 | K137: -2.435974129 | L137: -2.563793032 | M137: -2.88670633 | N137: -3.009411139 | O137: -2.413370838 | P137: -3.120176807 | Q137: -0.3316840688 | R137: 9.640821419 | S137: 10 | T137: -1 | U137: 1 | V137: 0 | W137: 0
A138: 4 | B138: 0 | C138: 20 | D138: 2 | E138: NaN | F138: 0 | G138: 1.890191769 | H138: -2.445598918 | I138: -2.840543464 | J138: -2.95060987 | K138: -4.999933973 | L138: -3.672463009 | M138: -4.017738486 | N138: -4.032586828 | O138: -3.276579227 | P138: -2.932516038 | Q138: -4.129366755 | R138: -0.1522710228 | S138: 10 | T138: -1 | U138: 0 | V138: 0 | W138: 0
A139: 4 | B139: 0 | C139: 20 | D139: 1 | E139: 2 | F139: 3 | G139: 0.8450017928 | H139: 4.802221125 | I139: 4.309007752 | J139: 6.203124356 | K139: 2.714869481 | L139: 3.01523767 | M139: 3.486542724 | N139: 5.20013822 | O139: 2.224273293 | P139: 2.924419244 | Q139: -0.6663943173 | R139: -0.4558343951 | S139: 9 | T139: 1 | U139: 0 | V139: 1 | W139: 0
A140: 4 | B140: 0 | C140: 20 | D140: 2 | E140: NaN | F140: 0 | G140: -0.2245032566 | H140: -2.148174565 | I140: -1.59939662 | J140: -2.445881868 | K140: -2.197424055 | L140: -2.411450136 | M140: -3.159806711 | N140: -2.970233114 | O140: -3.92462015 | P140: -2.143650699 | Q140: -2.613342985 | R140: -0.9366429863 | S140: 9 | T140: -1 | U140: 0 | V140: 0 | W140: 0
A141: 4 | B141: 0 | C141: 20 | D141: 0 | E141: NaN | F141: 0 | G141: -0.8992879037 | H141: 1.151824187 | I141: 1.160973029 | J141: -0.4731757782 | K141: -1.361616523 | L141: -1.871189483 | M141: -0.002404777739 | N141: -1.273148422 | O141: 0.6568455044 | P141: -0.2788548608 | Q141: -1.314390393 | R141: -2.404716064 | S141: 3 | T141: -1 | U141: 0 | V141: 0 | W141: 0
A142: 4 | B142: 0 | C142: 20 | D142: 1 | E142: 1 | F142: 5 | G142: 0.2710888726 | H142: 6.315987439 | I142: 4.001278635 | J142: 4.089090555 | K142: 2.347427732 | L142: 4.142961906 | M142: 2.268766557 | N142: 5.0173879 | O142: 4.409401105 | P142: 4.44252579 | Q142: 0.1665985486 | R142: -1.481726027 | S142: 10 | T142: 1 | U142: 0 | V142: 0 | W142: 0
A143: 4 | B143: 0 | C143: 20 | D143: 2 | E143: NaN | F143: 0 | G143: 0.7670435023 | H143: -1.200983199 | I143: -2.643232113 | J143: -1.481597378 | K143: -1.671435838 | L143: -1.392960804 | M143: -1.932485021 | N143: -1.556457494 | O143: -2.294030719 | P143: -2.268142421 | Q143: -4.225205215 | R143: -2.139184785 | S143: 5 | T143: -1 | U143: 0 | V143: 0 | W143: 0
A144: 4 | B144: 0 | C144: 20 | D144: 1 | E144: 2 | F144: 3 | G144: -0.215101438 | H144: -0.1123357886 | I144: -0.2877559028 | J144: -0.7509768683 | K144: -0.4364190851 | L144: -0.5150666628 | M144: -0.2412616106 | N144: 0.9910001446 | O144: -0.4077707184 | P144: -0.7732087394 | Q144: -0.13747786 | R144: -2.432251315 | S144: 1 | T144: -1 | U144: 0 | V144: 0 | W144: 0
A145: 4 | B145: 0 | C145: 20 | D145: 1 | E145: 2 | F145: 3 | G145: 1.37433625 | H145: 0.5555245398 | I145: 0.6233852433 | J145: 0.4382505556 | K145: 0.013849589 | L145: -0.1875928679 | M145: -0.4895005414 | N145: -0.05646667131 | O145: 0.5534215126 | P145: 0.9988009765 | Q145: 0.7954659236 | R145: -1.154562802 | S145: 0 | T145: 0 | U145: 0 | V145: 0 | W145: 0
A146: 4 | B146: 0 | C146: 10 | D146: 0 | E146: NaN | F146: 0 | G146: 0.05298295571 | H146: -0.2032982513 | I146: 0.3756172024 | J146: -0.6580161738 | K146: -1.601397582 | L146: -2.471547441 | M146: -2.241882266 | N146: -1.603325246 | O146: -2.929570096 | P146: -2.627183668 | Q146: -1.82200236 | R146: 1.290756796 | S146: 5 | T146: -1 | U146: 0 | V146: 0 | W146: 0
A147: 4 | B147: 0 | C147: 10 | D147: 1 | E147: 2 | F147: 3 | G147: -0.2868547795 | H147: -0.8030535728 | I147: -1.009503529 | J147: -1.039969379 | K147: -0.783404506 | L147: -0.05117259392 | M147: -0.4358757768 | N147: -0.7096022676 | O147: -1.267167511 | P147: -1.552126614 | Q147: -1.123990617 | R147: -1.865579285 | S147: 2 | T147: -1 | U147: 0 | V147: 0 | W147: 0
A148: 4 | B148: 0 | C148: 10 | D148: 1 | E148: 2 | F148: 3 | G148: 0.006334689374 | H148: 0.8892403593 | I148: 0.5162454406 | J148: 0.01301762101 | K148: -0.4869383657 | L148: -0.281185255 | M148: -0.08331193977 | N148: 0.08999725231 | O148: 0.4988319205 | P148: -0.05911849239 | Q148: -0.568781787 | R148: 0.4013886273 | S148: 0 | T148: 0 | U148: 0 | V148: 0 | W148: 0
A149: 4 | B149: 0 | C149: 10 | D149: 1 | E149: 2 | F149: 3 | G149: -0.5165897666 | H149: 0.7226353529 | I149: -0.04098815904 | J149: 1.313915458 | K149: 2.883632716 | L149: 2.92431273 | M149: 1.951733684 | N149: 2.459304768 | O149: 1.105603934 | P149: 0.1700057447 | Q149: 1.478953696 | R149: 0.8907399491 | S149: 0 | T149: 0 | U149: 0 | V149: 0 | W149: 0
A150: 4 | B150: 0 | C150: 10 | D150: 1 | E150: 2 | F150: 2 | G150: -1.279805309 | H150: -0.02057665247 | I150: -0.5461043194 | J150: -0.4894053671 | K150: -1.01103225 | L150: -0.9846270728 | M150: -0.9067192547 | N150: -0.7755552032 | O150: 0.3396060731 | P150: 0.08160739802 | Q150: -1.045359381 | R150: 0.7384868326 | S150: 1 | T150: -1 | U150: 0 | V150: 0 | W150: 1
A151: 4 | B151: 0 | C151: 20 | D151: 1 | E151: 2 | F151: 3 | G151: -0.7831758694 | H151: 7.709689633 | I151: 3.419545379 | J151: 7.346776905 | K151: 5.49645916 | L151: 5.875028537 | M151: 3.01572984 | N151: 4.001438029 | O151: 1.244764267 | P151: 2.021525511 | Q151: 0.3187882419 | R151: -1.297082194 | S151: 9 | T151: 1 | U151: 0 | V151: 1 | W151: 0
A152: 4 | B152: 0 | C152: 20 | D152: 1 | E152: 1 | F152: 5 | G152: -0.3650609395 | H152: 3.182980902 | I152: 4.246721513 | J152: 3.307977951 | K152: 2.900855931 | L152: 3.954788726 | M152: 3.999052972 | N152: 3.805507399 | O152: 3.701949108 | P152: 4.215371106 | Q152: 1.317333502 | R152: -1.222916944 | S152: 10 | T152: 1 | U152: 0 | V152: 0 | W152: 0
A153: 4 | B153: 0 | C153: 20 | D153: 1 | E153: 2 | F153: 3 | G153: -0.8259546033 | H153: 1.409390184 | I153: 1.533237023 | J153: 2.438149999 | K153: 1.943380559 | L153: 1.956582523 | M153: 1.777630072 | N153: 1.780286762 | O153: 0.6327119816 | P153: 1.914565554 | Q153: 1.34826894 | R153: -0.01377413831 | S153: 5 | T153: 1 | U153: 0 | V153: 0 | W153: 0
A154: 4 | B154: 0 | C154: 20 | D154: 1 | E154: 2 | F154: 2 | G154: -0.2488419553 | H154: 0.01303053251 | I154: -0.8003358841 | J154: -0.6363873871 | K154: -0.1492244628 | L154: -0.316930347 | M154: -0.5672451945 | N154: -0.6219275167 | O154: -1.290067444 | P154: -1.336424865 | Q154: -0.6497759517 | R154: -0.02998785479 | S154: 2 | T154: -1 | U154: 0 | V154: 0 | W154: 0
A155: 4 | B155: 0 | C155: 20 | D155: 1 | E155: 1 | F155: 5 | G155: -0.009625953357 | H155: 5.59491198 | I155: 6.061137282 | J155: 4.288590219 | K155: 2.880064946 | L155: 3.919469843 | M155: 3.991420537 | N155: 3.795916552 | O155: 3.861818152 | P155: 7.010259794 | Q155: 0.4049083671 | R155: -1.552747986 | S155: 10 | T155: 1 | U155: 0 | V155: 0 | W155: 0
A156: 4 | B156: 0 | C156: 20 | D156: 0 | E156: NaN | F156: 0 | G156: 0.03291351675 | H156: 0.3202493064 | I156: 0.1592860043 | J156: -0.6106373735 | K156: -0.5625617224 | L156: -0.002378266201 | M156: -0.05554377296 | N156: -0.3252081525 | O156: 0.2373684583 | P156: 0.1108943199 | Q156: -0.0004330409931 | R156: -0.8368010823 | S156: 0 | T156: 0 | U156: 0 | V156: 0 | W156: 1
A157: 4 | B157: 0 | C157: 20 | D157: 0 | E157: NaN | F157: 0 | G157: -0.1669512226 | H157: -1.482875336 | I157: -2.269433712 | J157: -1.446838427 | K157: -1.298362942 | L157: -2.981718172 | M157: -2.287070774 | N157: -2.466410967 | O157: -2.061733467 | P157: -2.147276498 | Q157: -3.381669985 | R157: 0.4280020157 | S157: 9 | T157: -1 | U157: 0 | V157: 0 | W157: 0
A158: 4 | B158: 0 | C158: 20 | D158: 1 | E158: 2 | F158: 3 | G158: -0.3818271115 | H158: 0.2954949093 | I158: 0.5274995532 | J158: 0.0246626601 | K158: -0.1568318623 | L158: -0.405533557 | M158: -0.7056796993 | N158: -0.007334246907 | O158: -0.5169704878 | P158: 0.4918989134 | Q158: 0.8857010157 | R158: -1.561313069 | S158: 1 | T158: -1 | U158: 0 | V158: 0 | W158: 1
A159: 4 | B159: 0 | C159: 20 | D159: 1 | E159: 1 | F159: 5 | G159: 0.5193606658 | H159: 8.655354274 | I159: 6.750600933 | J159: 7.232954178 | K159: 6.741446414 | L159: 7.672965133 | M159: 4.981005244 | N159: 4.566994029 | O159: 5.317071357 | P159: 4.425374819 | Q159: 3.195407728 | R159: -1.90791507 | S159: 11 | T159: 1 | U159: 0 | V159: 1 | W159: 0
A160: 4 | B160: 0 | C160: 20 | D160: 1 | E160: 1 | F160: 5 | G160: -0.8837723129 | H160: 0.7792856955 | I160: 1.325913033 | J160: 3.235685495 | K160: 4.644586342 | L160: 6.640094127 | M160: 5.282359329 | N160: 6.443477905 | O160: 5.813158519 | P160: 6.066749588 | Q160: 1.109470011 | R160: -1.862113916 | S160: 8 | T160: 1 | U160: 0 | V160: 0 | W160: 0
A161: 4 | B161: 0 | C161: 20 | D161: 1 | E161: 1 | F161: 4 | G161: 0.7392861618 | H161: 4.639423545 | I161: 5.733199532 | J161: 4.409187764 | K161: 3.417462798 | L161: 1.330704063 | M161: 0.2162982836 | N161: -1.084409984 | O161: -1.109021221 | P161: -3.454477135 | Q161: -3.427112051 | R161: -3.283357105 | S161: 6 | T161: 1 | U161: 0 | V161: 0 | W161: 0
A162: 4 | B162: 0 | C162: 20 | D162: 1 | E162: 2 | F162: 2 | G162: -0.8000999636 | H162: -0.4067732396 | I162: 1.621836193 | J162: 1.450523607 | K162: 3.668716624 | L162: 2.720586671 | M162: 2.70693963 | N162: 3.287472609 | O162: 3.044378656 | P162: 2.064888889 | Q162: -0.2365219005 | R162: 3.988827124 | S162: 6 | T162: 1 | U162: 0 | V162: 0 | W162: 0
A163: 4 | B163: 0 | C163: 10 | D163: 1 | E163: 2 | F163: 3 | G163: 0.02558960748 | H163: 0.6772949189 | I163: 0.6491616136 | J163: 1.00737306 | K163: -0.2865707909 | L163: 0.1123549963 | M163: 0.03635388485 | N163: -0.8575986377 | O163: -1.04057666 | P163: -1.190394523 | Q163: 0.0356922437 | R163: -1.098021453 | S163: 1 | T163: -1 | U163: 0 | V163: 0 | W163: 0
A164: 4 | B164: 0 | C164: 20 | D164: 0 | E164: NaN | F164: 0 | G164: 1.441794033 | H164: 0.9615503093 | I164: -0.9371745546 | J164: -0.1783215609 | K164: 0.05674402693 | L164: -1.643862552 | M164: 0.2551898194 | N164: -0.3979616319 | O164: -0.3619496851 | P164: -0.3726452757 | Q164: 1.203329647 | R164: -0.2279030823 | S164: 1 | T164: -1 | U164: 0 | V164: 0 | W164: 0
A165: 4 | B165: 0 | C165: 20 | D165: 1 | E165: 2 | F165: 3 | G165: 0.8721558993 | H165: -0.881792035 | I165: 0.4230382354 | J165: 0.9102155934 | K165: 0.4718217199 | L165: 0.3577239103 | M165: -0.005851463558 | N165: -0.1331282045 | O165: -0.5538479707 | P165: -0.5592039631 | Q165: 0.09446331581 | R165: -2.448744428 | S165: 1 | T165: -1 | U165: 0 | V165: 0 | W165: 0
A166: 4 | B166: 0 | C166: 20 | D166: 1 | E166: 2 | F166: 3 | G166: 0.1964507985 | H166: 0.202685843 | I166: 1.500232068 | J166: 0.366378768 | K166: 1.422443993 | L166: 0.8798389361 | M166: 1.407970979 | N166: 1.058846624 | O166: 0.02305086431 | P166: 0.2144046722 | Q166: -0.6464049883 | R166: -0.3980427969 | S166: 0 | T166: 0 | U166: 0 | V166: 0 | W166: 0
A167: 4 | B167: 0 | C167: 20 | D167: 1 | E167: 2 | F167: 1 | G167: 2.069100384 | H167: -0.4268897133 | I167: 0.4228991511 | J167: 0.2420592571 | K167: 0.5421118039 | L167: 0.4482419673 | M167: -0.4660007346 | N167: 0.8554478582 | O167: 0.7457405176 | P167: 0.1707309177 | Q167: 1.314469389 | R167: -0.1809481911 | S167: 0 | T167: 0 | U167: 1 | V167: 0 | W167: 0
A168: 4 | B168: 0 | C168: 20 | D168: 1 | E168: 1 | F168: 4 | G168: -1.461422948 | H168: -3.856086484 | I168: -3.897923704 | J168: -4.128089213 | K168: -3.850675315 | L168: -2.90061658 | M168: -2.997937983 | N168: -3.172978965 | O168: -2.535021345 | P168: -0.1778811796 | Q168: 0.2194278735 | R168: -2.305239478 | S168: 9 | T168: -1 | U168: 0 | V168: 0 | W168: 0
A169: 4 | B169: 0 | C169: 20 | D169: 1 | E169: 1 | F169: 5 | G169: 0.190351614 | H169: 10.81619039 | I169: 7.468806816 | J169: 11.69261571 | K169: 8.984137765 | L169: 9.146290583 | M169: 8.372119167 | N169: 9.331976669 | O169: 5.568600587 | P169: 8.414025317 | Q169: 4.451588162 | R169: -2.180544037 | S169: 11 | T169: 1 | U169: 0 | V169: 0 | W169: 0
A170: 4 | B170: 0 | C170: 20 | D170: 1 | E170: 2 | F170: 3 | G170: 0.7482287778 | H170: -0.6683557697 | I170: -1.514744696 | J170: -2.06877555 | K170: -0.9200671589 | L170: -0.5594571941 | M170: -0.1212152955 | N170: 0.1744957536 | O170: -0.1865777141 | P170: -0.3242661406 | Q170: 1.025016824 | R170: 0.282573206 | S170: 2 | T170: -1 | U170: 0 | V170: 0 | W170: 0
A171: 4 | B171: 0 | C171: 20 | D171: 1 | E171: 2 | F171: 3 | G171: 0.7560243175 | H171: -0.6791332123 | I171: -0.5821783057 | J171: -0.6217712156 | K171: 0.01505648177 | L171: -0.5428146758 | M171: 0.007132355206 | N171: -0.4760205635 | O171: 0.2660142855 | P171: 0.04986518346 | Q171: 1.476516893 | R171: -0.8815798369 | S171: 0 | T171: 0 | U171: 0 | V171: 0 | W171: 0
A172: 4 | B172: 0 | C172: 20 | D172: 1 | E172: 2 | F172: 3 | G172: 2.272566135 | H172: 3.13821992 | I172: 2.518643392 | J172: 3.333387974 | K172: 2.626743341 | L172: 4.796583186 | M172: 2.798344018 | N172: 2.653338712 | O172: 0.6925267001 | P172: 1.140459988 | Q172: 1.017818598 | R172: -2.476985721 | S172: 8 | T172: 1 | U172: 0 | V172: 0 | W172: 0
A173: 4 | B173: 0 | C173: 20 | D173: 1 | E173: 2 | F173: 3 | G173: 0.1242587655 | H173: 0.9509215661 | I173: 0.3247214526 | J173: 0.6676031857 | K173: 1.126500435 | L173: 1.269234883 | M173: 2.298239407 | N173: 1.770442356 | O173: 1.357365708 | P173: 1.025900454 | Q173: 2.300590335 | R173: -1.671655906 | S173: 2 | T173: 1 | U173: 0 | V173: 0 | W173: 1
A174: 4 | B174: 0 | C174: 20 | D174: 1 | E174: 2 | F174: 3 | G174: -0.3080823147 | H174: 0.9871372147 | I174: -0.733234028 | J174: -0.464496955 | K174: 0.5042601549 | L174: 0.623568449 | M174: 0.450282343 | N174: 0.7667203033 | O174: 1.030054949 | P174: 0.7487723376 | Q174: 0.5565026894 | R174: 0.4001850549 | S174: 0 | T174: 0 | U174: 1 | V174: 0 | W174: 0
A175: 4 | B175: 0 | C175: 20 | D175: 1 | E175: 1 | F175: 4 | G175: -2.044891779 | H175: -4.720100639 | I175: -3.903483629 | J175: -0.2698013442 | K175: 0.6295802783 | L175: 2.600440553 | M175: 3.342094994 | N175: 6.419050341 | O175: 7.694100109 | P175: 7.473371593 | Q175: 10.55660603 | R175: -2.269693703 | S175: 7 | T175: 1 | U175: 1 | V175: 0 | W175: 0
A176: 4 | B176: 0 | C176: 20 | D176: 1 | E176: 2 | F176: 1 | G176: 5.551303425 | H176: -0.3523231795 | I176: -1.079670189 | J176: -0.5454163179 | K176: 1.813222429 | L176: 2.240386903 | M176: 0.6957099206 | N176: 1.269352747 | O176: 4.209193226 | P176: 4.2852128 | Q176: 17.19741946 | R176: -1.568372428 | S176: 6 | T176: 1 | U176: 1 | V176: 0 | W176: 0
A177: 4 | B177: 0 | C177: 20 | D177: 1 | E177: 1 | F177: 4 | G177: -0.1024652423 | H177: -1.726903458 | I177: -1.511476808 | J177: -2.645068861 | K177: -2.128879931 | L177: -2.598959967 | M177: -2.452765546 | N177: -2.639386651 | O177: -2.986587338 | P177: -2.112223133 | Q177: -1.194983598 | R177: -2.25502998 | S177: 10 | T177: -1 | U177: 0 | V177: 1 | W177: 0
A178: 4 | B178: 0 | C178: 20 | D178: 1 | E178: 2 | F178: 1 | G178: 2.41149372 | H178: 0.3231195995 | I178: 1.366166286 | J178: 1.110349275 | K178: 3.029154255 | L178: 1.71218108 | M178: 1.799742835 | N178: 1.514941267 | O178: 0.4277490603 | P178: 0.3188773817 | Q178: 0.253511509 | R178: -0.3792315586 | S178: 2 | T178: 1 | U178: 0 | V178: 0 | W178: 0
A179: 4 | B179: 0 | C179: 20 | D179: 1 | E179: 2 | F179: 3 | G179: -0.8514536269 | H179: 0.5272609362 | I179: -1.26313958 | J179: -0.527381607 | K179: -0.1795748567 | L179: -0.3693748864 | M179: -0.8248010403 | N179: -1.062164479 | O179: 0.818062089 | P179: 0.343902165 | Q179: -0.04085768156 | R179: -0.9202838161 | S179: 2 | T179: -1 | U179: 0 | V179: 1 | W179: 0
A180: 4 | B180: 0 | C180: 20 | D180: 1 | E180: 2 | F180: 3 | G180: 0.3503553414 | H180: 0.6009497062 | I180: -0.282531656 | J180: -0.236042991 | K180: 1.346288431 | L180: 0.5815044829 | M180: 0.005646474938 | N180: 0.2030813358 | O180: 0.2323897495 | P180: -0.02656559744 | Q180: -0.6772456306 | R180: -0.7582118636 | S180: 0 | T180: 0 | U180: 0 | V180: 0 | W180: 0
A181: 4 | B181: 0 | C181: 20 | D181: 1 | E181: 1 | F181: 5 | G181: -0.4699868734 | H181: 14.27157778 | I181: 9.947526911 | J181: 10.46877988 | K181: 8.715342996 | L181: 9.048629474 | M181: 7.574900787 | N181: 9.308355515 | O181: 6.868370573 | P181: 6.288922139 | Q181: 2.832314289 | R181: -2.347298677 | S181: 11 | T181: 1 | U181: 0 | V181: 0 | W181: 0
A182: 5 | B182: 0 | C182: 20 | D182: 1 | E182: 2 | F182: 3 | G182: -0.06361358848 | H182: 0.4791164051 | I182: 0.1237529111 | J182: -0.2381833765 | K182: 0.3408534832 | L182: 0.4653738721 | M182: -0.007082595184 | N182: -0.6192823119 | O182: -0.1611606526 | P182: -0.155159681 | Q182: -0.1317428305 | R182: 0.8921595598 | S182: 0 | T182: 0 | U182: 0 | V182: 1 | W182: 0
A183: 5 | B183: 0 | C183: 20 | D183: 1 | E183: 1 | F183: 4 | G183: -0.4697856937 | H183: -1.696656342 | I183: -3.239507755 | J183: -3.160779144 | K183: -3.140245118 | L183: -2.167702887 | M183: -1.776480732 | N183: -2.673856882 | O183: -3.086349562 | P183: -2.58977332 | Q183: -4.132261061 | R183: -2.833506995 | S183: 10 | T183: -1 | U183: 0 | V183: 1 | W183: 0
A184: 5 | B184: 0 | C184: 20 | D184: 1 | E184: 2 | F184: 2 | G184: -0.9912587872 | H184: 0.538770826 | I184: -0.1454151717 | J184: 0.6482846386 | K184: -0.1502183849 | L184: 0.9157894969 | M184: 0.8046912677 | N184: 1.310973791 | O184: 1.143239973 | P184: 1.217933087 | Q184: 0.4375534005 | R184: 7.968466905 | S184: 1 | T184: 1 | U184: 1 | V184: 0 | W184: 0
A185: 5 | B185: 0 | C185: 20 | D185: 1 | E185: 2 | F185: 3 | G185: 0.3305321478 | H185: -0.4682799367 | I185: 0.06379936199 | J185: -0.8997427453 | K185: 0.04148671962 | L185: -0.3611202645 | M185: 0.1260428667 | N185: 0.1503885223 | O185: -0.333549671 | P185: -0.4075252736 | Q185: -0.4292825373 | R185: -0.1016867358 | S185: 1 | T185: -1 | U185: 0 | V185: 0 | W185: 0
A186: 5 | B186: 0 | C186: 20 | D186: 1 | E186: 1 | F186: 4 | G186: 0.5734067628 | H186: -1.078930388 | I186: -1.152214741 | J186: -2.123194978 | K186: -2.220753221 | L186: -1.67248212 | M186: -1.352926793 | N186: -1.465876974 | O186: -1.788183722 | P186: -1.668620249 | Q186: -1.729224769 | R186: -1.804702556 | S186: 10 | T186: -1 | U186: 0 | V186: 0 | W186: 0
A187: 5 | B187: 0 | C187: 10 | D187: 2 | E187: NaN | F187: 0 | G187: 2.199987259 | H187: 1.153029567 | I187: 2.406595746 | J187: 2.145613236 | K187: 2.065669827 | L187: 2.96215979 | M187: 1.167533664 | N187: 1.484429888 | O187: 1.991150858 | P187: 1.678573814 | Q187: 1.125758455 | R187: 2.739218797 | S187: 5 | T187: 1 | U187: 1 | V187: 0 | W187: 0
A188: 5 | B188: 0 | C188: 10 | D188: 0 | E188: NaN | F188: 0 | G188: -0.5304866934 | H188: 0.6847838137 | I188: -0.5651466962 | J188: -0.1447087589 | K188: -0.1586531129 | L188: -0.3978593381 | M188: -1.069504484 | N188: -0.8855888251 | O188: -0.9675866538 | P188: -0.0695123096 | Q188: -1.852036439 | R188: -1.589569553 | S188: 1 | T188: -1 | U188: 0 | V188: 0 | W188: 0
A189: 5 | B189: 0 | C189: 20 | D189: 1 | E189: 1 | F189: 4 | G189: -3.006862117 | H189: -3.123467225 | I189: -3.863557397 | J189: -3.347058016 | K189: -2.589599837 | L189: -2.180304407 | M189: -1.254197028 | N189: -0.4923838697 | O189: -0.6457850784 | P189: 0.2287538866 | Q189: -3.352093714 | R189: -3.578128571 | S189: 7 | T189: -1 | U189: 1 | V189: 1 | W189: 0
A190: 5 | B190: 0 | C190: 20 | D190: 1 | E190: 2 | F190: 3 | G190: 1.992619134 | H190: 1.357680036 | I190: 0.08535187601 | J190: -0.6368999896 | K190: 0.467711757 | L190: 0.893766551 | M190: -0.299616162 | N190: -0.4249970893 | O190: -0.9948910162 | P190: -0.4045202907 | Q190: -0.5374832081 | R190: -1.433002354 | S190: 1 | T190: -1 | U190: 0 | V190: 0 | W190: 0
A191: 5 | B191: 0 | C191: 20 | D191: 1 | E191: 2 | F191: 2 | G191: -0.6398084359 | H191: -0.02334709209 | I191: -0.5518703249 | J191: -0.915195714 | K191: -0.02824326332 | L191: 0.3484471237 | M191: 0.04388554204 | N191: 0.3924412517 | O191: 0.1085909193 | P191: 0.2472850613 | Q191: 0.4576952388 | R191: 1.854420957 | S191: 1 | T191: 1 | U191: 1 | V191: 0 | W191: 0
A192: 5 | B192: 0 | C192: 20 | D192: 1 | E192: 2 | F192: 3 | G192: 0.81208865 | H192: -0.9452282308 | I192: -0.2418030238 | J192: 1.200408144 | K192: -0.3726026315 | L192: -0.2160438117 | M192: -0.4278221534 | N192: -0.1203505915 | O192: -0.3198185685 | P192: -0.6487323374 | Q192: -0.8311814792 | R192: -1.208101328 | S192: 1 | T192: -1 | U192: 1 | V192: 0 | W192: 0
A193: 5 | B193: 0 | C193: 20 | D193: 1 | E193: 2 | F193: 3 | G193: 1.20294409 | H193: -2.356829419 | I193: -1.958495037 | J193: -1.757246638 | K193: -1.341844243 | L193: -0.7078373874 | M193: -1.08696871 | N193: -1.874668904 | O193: -1.543957427 | P193: -1.296144667 | Q193: -1.298683034 | R193: -0.0309202166 | S193: 3 | T193: -1 | U193: 0 | V193: 0 | W193: 0
A194: 5 | B194: 0 | C194: 20 | D194: 1 | E194: 2 | F194: 1 | G194: 2.787756013 | H194: -1.440489277 | I194: -0.08222542722 | J194: -0.6027575331 | K194: -1.205289649 | L194: -0.3004192965 | M194: -1.084900683 | N194: -1.567079817 | O194: -1.304596364 | P194: -1.344127875 | Q194: -0.887848813 | R194: 0.04225210044 | S194: 7 | T194: -1 | U194: 0 | V194: 0 | W194: 0
A195: 5 | B195: 0 | C195: 10 | D195: 0 | E195: NaN | F195: 0 | G195: -1.764041597 | H195: 1.744613034 | I195: 0.6627500628 | J195: 0.5635751066 | K195: -0.517292617 | L195: 0.1697106452 | M195: -0.9654714666 | N195: 0.3062036656 | O195: -0.6461084088 | P195: 1.041570347 | Q195: 0.9004948977 | R195: 0.3024521387 | S195: 1 | T195: 1 | U195: 0 | V195: 0 | W195: 0
A196: 5 | B196: 0 | C196: 20 | D196: 1 | E196: 2 | F196: 3 | G196: -1.797280367 | H196: -0.6586603287 | I196: -0.1690426383 | J196: 0.6100136071 | K196: 0.2879743804 | L196: 0.760427851 | M196: 0.4839134046 | N196: 1.382607904 | O196: 0.5482839057 | P196: 0.02763357363 | Q196: 1.814845765 | R196: -2.108713902 | S196: 3 | T196: 1 | U196: 0 | V196: 0 | W196: 0
A197: 5 | B197: 0 | C197: 10 | D197: 1 | E197: 2 | F197: 2 | G197: 0.02354339378 | H197: 0.6942438631 | I197: -0.4781710435 | J197: 0.008262126918 | K197: 1.735937041 | L197: 1.251549171 | M197: 0.9699927568 | N197: 0.7310696035 | O197: 1.417691231 | P197: 1.019363251 | Q197: 0.5256165216 | R197: 1.36782218 | S197: 2 | T197: 1 | U197: 0 | V197: 0 | W197: 0
A198: 5 | B198: 0 | C198: 20 | D198: 1 | E198: 2 | F198: 3 | G198: 0.754026773 | H198: -0.2709781537 | I198: -0.6295148754 | J198: -0.410613101 | K198: 0.5878765273 | L198: -0.3240502705 | M198: 0.7142580104 | N198: -0.08696716701 | O198: 0.02196346679 | P198: -0.1605913687 | Q198: 0.6737612889 | R198: 0.6927314092 | S198: 1 | T198: 1 | U198: 0 | V198: 1 | W198: 1
A199: 5 | B199: 0 | C199: 20 | D199: 1 | E199: 2 | F199: 2 | G199: 1.051333388 | H199: 0.1123269473 | I199: 0.2037785835 | J199: 0.2677599464 | K199: -0.9501672956 | L199: 0.09352192148 | M199: -1.48582733 | N199: -0.5850629777 | O199: -1.269152236 | P199: -0.8885833287 | Q199: -0.9589977293 | R199: 2.112003719 | S199: 2 | T199: -1 | U199: 0 | V199: 0 | W199: 1
A200: 5 | B200: 0 | C200: 20 | D200: 1 | E200: 2 | F200: 3 | G200: -1.11827819 | H200: 0.01816932216 | I200: -0.6408848499 | J200: -0.8566139439 | K200: 0.008635221208 | L200: 0.8322636326 | M200: -0.1070008942 | N200: -0.4285049297 | O200: 0.4368648734 | P200: 0.1901854165 | Q200: -1.321625363 | R200: -0.2356950912 | S200: 2 | T200: -1 | U200: 0 | V200: 0 | W200: 0
... 680 more rows

Sheet Early training table
A1: session ID | B1: habit profile | C1: region | D1: Celltype | E1: Phasic ID | F1: Class | G1: Win 1 | H1: Win 2 | I1: Win 3 | J1: Win 4 | K1: Win 5 | L1: Win 6 | M1: Win 7 | N1: Win 8 | O1: Win 9 | P1: Win 10 | Q1: Win 11 | R1: Win 12 | S1: TRN | T1: EXC-INH
A2: 4 | B2: 1 | C2: 10 | D2: 1 | E2: 2 | F2: 1 | G2: 0.9540527072 | H2: 1.537354842 | I2: 2.038807449 | J2: 2.957881184 | K2: 1.345484136 | L2: 2.329576022 | M2: 2.468071913 | N2: 2.436707369 | O2: 2.063865981 | P2: 0.8490014649 | Q2: 2.439420559 | R2: 1.782094689 | S2: 9 | T2: 1
A3: 4 | B3: 1 | C3: 20 | D3: 1 | E3: 2 | F3: 3 | G3: -0.201303476 | H3: 1.293176937 | I3: -0.9069123023 | J3: -1.379106191 | K3: -1.848139078 | L3: -1.014915067 | M3: -1.973189512 | N3: -0.739013381 | O3: -2.022392357 | P3: -1.297667026 | Q3: -1.76914929 | R3: -1.399257938 | S3: 7 | T3: -1
A4: 4 | B4: 1 | C4: 20 | D4: 1 | E4: 2 | F4: 1 | G4: 1.020941646 | H4: 1.039903716 | I4: -1.395633161 | J4: 0.7577129947 | K4: -0.06922463024 | L4: 0.96967453 | M4: -0.1557181741 | N4: 1.817945409 | O4: -0.3809491415 | P4: 0.8045319815 | Q4: 1.214584344 | R4: 1.014040368 | S4: 2 | T4: 1
A5: 4 | B5: 1 | C5: 20 | D5: 1 | E5: 1 | F5: 5 | G5: -0.3881283505 | H5: 3.645210461 | I5: 3.219795858 | J5: 3.425317178 | K5: 4.387648392 | L5: 3.035952762 | M5: 3.592736366 | N5: 3.12067739 | O5: 4.977164564 | P5: 2.217940054 | Q5: 2.229202398 | R5: 2.052596995 | S5: 11 | T5: 1
A6: 4 | B6: 1 | C6: 20 | D6: 1 | E6: 2 | F6: 3 | G6: 0.8600345661 | H6: 1.34407031 | I6: 3.162014034 | J6: 0.3373012265 | K6: 2.092800175 | L6: -0.217190971 | M6: 1.28225234 | N6: 0.1690307848 | O6: 1.466935819 | P6: 0.1605826355 | Q6: 0.8833725956 | R6: -2.043511133 | S6: 2 | T6: 1
A7: 4 | B7: 1 | C7: 20 | D7: 1 | E7: 1 | F7: 4 | G7: 0.06231408484 | H7: -0.7803910248 | I7: -0.7803910248 | J7: -0.91040102 | K7: -0.91040102 | L7: -0.7279661802 | M7: -0.7279661802 | N7: -0.7034648659 | O7: -0.7034648659 | P7: -0.7050870674 | Q7: -0.5374283172 | R7: -0.8286595793 | S7: 6 | T7: -1
A8: 4 | B8: 1 | C8: 20 | D8: 1 | E8: 2 | F8: 3 | G8: 0.7651292803 | H8: -0.9876534635 | I8: -1.237869904 | J8: -0.1793165858 | K8: -0.6468149874 | L8: 2.018169556 | M8: -0.7236127504 | N8: 0.8805261177 | O8: -0.1534079813 | P8: 0.731008579 | Q8: -0.3013315454 | R8: -0.50400618 | S8: 2 | T8: -1
A9: 4 | B9: 1 | C9: 20 | D9: 1 | E9: 2 | F9: 1 | G9: 2.081138182 | H9: -1.48496555 | I9: -1.593586316 | J9: -1.453419059 | K9: -1.591997424 | L9: -2.303927566 | M9: -2.071465441 | N9: -1.879121575 | O9: -2.084916167 | P9: -2.095415116 | Q9: -0.9313250232 | R9: -0.07382062907 | S9: 10 | T9: -1
A10: 4 | B10: 1 | C10: 20 | D10: 1 | E10: 2 | F10: 1 | G10: 5.180572059 | H10: -1.248895653 | I10: -1.24004253 | J10: -0.8949913592 | K10: 0.5284057477 | L10: -0.2348201456 | M10: -0.6801794527 | N10: -0.8143851536 | O10: -0.7764067713 | P10: -0.7939472145 | Q10: 0.8133208058 | R10: 2.504867466 | S10: 4 | T10: 1
A11: 4 | B11: 1 | C11: 20 | D11: 1 | E11: 2 | F11: 1 | G11: 1.815889132 | H11: 0.3550243644 | I11: -1.076885674 | J11: -0.7278492452 | K11: -0.9945221284 | L11: -0.2450305391 | M11: -0.8487162252 | N11: 0.008034272656 | O11: -0.669253075 | P11: -0.2787582407 | Q11: -0.4513351683 | R11: 8.866171005 | S11: 2 | T11: 1
A12: 4 | B12: 1 | C12: 20 | D12: 1 | E12: 1 | F12: 4 | G12: 0.6054353615 | H12: -1.004045284 | I12: -1.268601236 | J12: -1.104729535 | K12: -1.081955824 | L12: -1.201292204 | M12: -1.201292204 | N12: -0.4744303113 | O12: -0.9534500331 | P12: -1.126727228 | Q12: -1.126727228 | R12: -1.061480122 | S12: 10 | T12: -1
A13: 4 | B13: 1 | C13: 20 | D13: 1 | E13: 2 | F13: 3 | G13: 4.041395714 | H13: -1.318248214 | I13: -1.318248214 | J13: -1.05372501 | K13: -1.05372501 | L13: -0.9634962908 | M13: -0.9264983877 | N13: -1.156927368 | O13: -1.156927368 | P13: -1.307782081 | Q13: -1.144309321 | R13: -0.7435162534 | S13: 9 | T13: -1
A14: 4 | B14: 1 | C14: 20 | D14: 1 | E14: 1 | F14: 4 | G14: 1.670886206 | H14: -0.4205771745 | I14: -0.87614333 | J14: -0.8003861854 | K14: -1.204173099 | L14: -1.544331434 | M14: -1.821945373 | N14: -1.188166818 | O14: -0.8584010224 | P14: -1.33769368 | Q14: -1.044024235 | R14: -0.8148028485 | S14: 5 | T14: -1
A15: 4 | B15: 1 | C15: 20 | D15: 1 | E15: 2 | F15: 3 | G15: 0.933963488 | H15: -1.09813401 | I15: -0.7687618651 | J15: -1.010116149 | K15: -0.2600824522 | L15: -0.7804815373 | M15: -1.149807502 | N15: -0.8987858936 | O15: -1.091168929 | P15: -1.082363486 | Q15: -0.3166271464 | R15: -0.8092557775 | S15: 5 | T15: -1
A16: 4 | B16: 1 | C16: 20 | D16: 1 | E16: 2 | F16: 1 | G16: 1.435926765 | H16: -0.03664407515 | I16: -0.2926289514 | J16: -0.3754113836 | K16: 0.8066920707 | L16: -0.9388197452 | M16: -0.01090103206 | N16: 0.7592979736 | O16: -0.4162529682 | P16: -0.01190501956 | Q16: 2.027870176 | R16: -0.2128107299 | S16: 0 | T16: 1
A17: 4 | B17: 1 | C17: 20 | D17: 1 | E17: 2 | F17: 3 | G17: 0.1000288426 | H17: -0.8167544107 | I17: -1.184467852 | J17: -1.096676556 | K17: -0.6403497483 | L17: 0.09280966652 | M17: -0.08588561875 | N17: 0.2456076704 | O17: -0.5525664823 | P17: -0.8133179324 | Q17: 0.01494684903 | R17: -0.1694806342 | S17: 2 | T17: -1
A18: 4 | B18: 1 | C18: 20 | D18: 1 | E18: 2 | F18: 1 | G18: 3.245119551 | H18: -1.243322545 | I18: -1.778576487 | J18: -1.160478603 | K18: -1.417441997 | L18: -0.8759571548 | M18: -0.6796369733 | N18: 0.2670690151 | O18: -0.6025153716 | P18: -0.265481906 | Q18: 0.4584811 | R18: 0.1147592686 | S18: 3 | T18: -1
A19: 4 | B19: 1 | C19: 20 | D19: 1 | E19: 2 | F19: 1 | G19: 1.618812496 | H19: -0.2518987176 | I19: -0.2518987176 | J19: 0.1708075327 | K19: -0.7531463403 | L19: 0.1461614532 | M19: -0.3214461607 | N19: 0.1699292227 | O19: -0.2782954076 | P19: -0.0448030267 | Q19: -0.3662997456 | R19: 0.05237135426 | S19: 0 | T19: 1
A20: 4 | B20: 1 | C20: 20 | D20: 1 | E20: 1 | F20: 4 | G20: -0.7876859521 | H20: -0.8291589633 | I20: -1.240634121 | J20: -0.8508766388 | K20: -0.758446319 | L20: -1.043152781 | M20: -1.35009358 | N20: -1.633019619 | O20: -1.443239329 | P20: -0.9838544395 | Q20: -0.2201941986 | R20: -1.370702853 | S20: 7 | T20: -1
A21: 4 | B21: 1 | C21: 10 | D21: 1 | E21: 2 | F21: 3 | G21: 1.089684979 | H21: 2.989123578 | I21: 5.685109174 | J21: 1.199444108 | K21: 3.064597488 | L21: 0.5569352683 | M21: 1.582631934 | N21: -0.1008038811 | O21: 2.994615808 | P21: 1.65703906 | Q21: 2.334950596 | R21: -1.464427815 | S21: 6 | T21: 1
A22: 4 | B22: 1 | C22: 10 | D22: 1 | E22: 2 | F22: 3 | G22: -0.07229926053 | H22: 0.9294417706 | I22: 0.6295473655 | J22: 0.3788754317 | K22: 1.286461457 | L22: 1.781903313 | M22: 1.523590162 | N22: 2.187920083 | O22: 1.76685171 | P22: 0.8136198326 | Q22: 2.223921897 | R22: 0.579570583 | S22: 3 | T22: 1
A23: 4 | B23: 1 | C23: 0 | D23: 0 | E23: 0 | F23: 0 | G23: NaN | H23: NaN | I23: NaN | J23: NaN | K23: NaN | L23: NaN | M23: NaN | N23: NaN | O23: NaN | P23: NaN | Q23: NaN | R23: NaN | S23: 0 | T23: NaN
A24: 4 | B24: 1 | C24: 10 | D24: 1 | E24: 1 | F24: 5 | G24: -0.3589175356 | H24: 1.572514775 | I24: 2.777369275 | J24: 8.121948986 | K24: 4.362542518 | L24: 7.343344301 | M24: 5.339911784 | N24: 4.635854591 | O24: 1.739884994 | P24: 2.430325255 | Q24: 1.370208038 | R24: -1.44982644 | S24: 5 | T24: 1
A25: 4 | B25: 1 | C25: 10 | D25: 1 | E25: 2 | F25: 3 | G25: 1.551578104 | H25: -0.4587539545 | I25: -0.6623613834 | J25: -0.5270078363 | K25: -0.09914234204 | L25: 0.8578132571 | M25: 0.9597053329 | N25: -1.406954098 | O25: -0.6858299272 | P25: -0.8806856505 | Q25: 1.605666591 | R25: -0.5472983424 | S25: 0 | T25: -1
A26: 4 | B26: 1 | C26: 10 | D26: 1 | E26: 1 | F26: 5 | G26: 0.243266471 | H26: 4.796536856 | I26: 4.358771166 | J26: 3.720163366 | K26: 4.391413777 | L26: 4.786653263 | M26: 4.824874428 | N26: 4.829244472 | O26: 3.702812334 | P26: 3.340038079 | Q26: 3.857223579 | R26: 1.952390786 | S26: 10 | T26: 1
A27: 4 | B27: 1 | C27: 10 | D27: 1 | E27: 2 | F27: 3 | G27: 1.442838 | H27: 0.3445013694 | I27: -0.1562759151 | J27: -0.1145890169 | K27: 0.1725111247 | L27: 0.09636415559 | M27: 0.2185250539 | N27: 0.8418827611 | O27: 2.348658203 | P27: 0.817866212 | Q27: 0.8016521341 | R27: 0.5376287517 | S27: 0 | T27: 1
A28: 4 | B28: 1 | C28: 10 | D28: 1 | E28: 2 | F28: 3 | G28: 0.4213542859 | H28: 1.344042678 | I28: -0.07453203026 | J28: 0.5697706237 | K28: 2.095248686 | L28: -0.1728740089 | M28: 1.568310318 | N28: 0.2476649322 | O28: -0.7443485237 | P28: 0.4828824284 | Q28: 1.166381399 | R28: -0.121464244 | S28: 1 | T28: 1
A29: 4 | B29: 1 | C29: 10 | D29: 1 | E29: 2 | F29: 3 | G29: 1.450638467 | H29: -0.9923466215 | I29: -0.4942747814 | J29: -0.7236105892 | K29: 0.02418005682 | L29: -0.3643147893 | M29: 0.9159610729 | N29: 0.8109988335 | O29: 0.2989663656 | P29: 0.4873147881 | Q29: -0.6892939029 | R29: -0.2603753986 | S29: 2 | T29: 1
A30: 4 | B30: 1 | C30: 10 | D30: 1 | E30: 2 | F30: 2 | G30: 1.082704572 | H30: 0.2598505891 | I30: 0.04268955516 | J30: 0.1413914225 | K30: 0.2918365211 | L30: 0.1363153329 | M30: 0.4855885285 | N30: 1.376763855 | O30: 1.212974317 | P30: 0.4070001961 | Q30: 0.5129810164 | R30: 1.253921278 | S30: 0 | T30: 1
A31: 4 | B31: 1 | C31: 10 | D31: 1 | E31: 2 | F31: 3 | G31: 1.579271685 | H31: -0.374550159 | I31: -0.6591835863 | J31: -0.956760592 | K31: -0.5105751163 | L31: -0.5098804315 | M31: -0.8663224262 | N31: 0.2945760876 | O31: 0.5913804298 | P31: -0.6317265443 | Q31: 0.1348617923 | R31: 0.08258399007 | S31: 2 | T31: -1
A32: 4 | B32: 1 | C32: 20 | D32: 1 | E32: 2 | F32: 2 | G32: -0.7603286136 | H32: -1.529066034 | I32: -1.540583702 | J32: -0.1534376064 | K32: -0.6417175122 | L32: -1.535323692 | M32: -0.8282983334 | N32: -2.408391983 | O32: -1.688258913 | P32: -1.279437241 | Q32: -1.601616204 | R32: 0.0009954288983 | S32: 6 | T32: -1
A33: 4 | B33: 1 | C33: 20 | D33: 1 | E33: 2 | F33: 3 | G33: -0.09130786524 | H33: -0.7923225669 | I33: 0.03394636402 | J33: 0.004793703147 | K33: 1.327070928 | L33: -1.173998371 | M33: 0.1556953225 | N33: 0.0194761626 | O33: 0.6292084314 | P33: -0.8558277288 | Q33: 1.027790073 | R33: -2.338333478 | S33: 1 | T33: -1
A34: 4 | B34: 1 | C34: 20 | D34: 1 | E34: 2 | F34: 2 | G34: 1.303220219 | H34: -0.4424778625 | I34: 0.7617835464 | J34: 2.527310264 | K34: 0.7720843117 | L34: -0.3192377889 | M34: 2.079834194 | N34: 0.9451908805 | O34: 0.3735262722 | P34: -0.327575609 | Q34: 0.3625527777 | R34: 7.871486539 | S34: 1 | T34: 1
A35: 4 | B35: 1 | C35: 20 | D35: 1 | E35: 2 | F35: 3 | G35: 0.4092490743 | H35: -0.3277295647 | I35: 0.02955421953 | J35: 0.6237301051 | K35: -0.8885846718 | L35: -0.9650189515 | M35: -0.1819584983 | N35: -1.23802561 | O35: -0.6360073328 | P35: -0.5122488176 | Q35: 0.1015809788 | R35: 0.4308530936 | S35: 1 | T35: -1
A36: 4 | B36: 1 | C36: 20 | D36: 1 | E36: 2 | F36: 1 | G36: 2.738101552 | H36: -0.9131087431 | I36: -1.266784515 | J36: -1.775827175 | K36: -0.9133889905 | L36: -0.7914899761 | M36: -1.319484254 | N36: -1.006679809 | O36: -0.8535923649 | P36: -0.3631025978 | Q36: -0.4645014338 | R36: -0.6066119164 | S36: 2 | T36: -1
A37: 4 | B37: 1 | C37: 20 | D37: 1 | E37: 2 | F37: 3 | G37: 0.02107610961 | H37: -0.3038559555 | I37: 0.5129061443 | J37: -0.1664518522 | K37: -0.8149151335 | L37: 0.300853537 | M37: 0.5374886855 | N37: 0.2310462734 | O37: -1.002255524 | P37: -0.4989522256 | Q37: -0.6800148542 | R37: -0.9295698472 | S37: 1 | T37: -1
A38: 4 | B38: 1 | C38: 20 | D38: 1 | E38: 1 | F38: 5 | G38: 0.6031341349 | H38: -2.196682131 | I38: -1.378262042 | J38: -1.599461624 | K38: -1.428645504 | L38: -2.281839703 | M38: -2.4110459 | N38: -2.058972531 | O38: -1.843439217 | P38: -2.0939904 | Q38: -1.874951003 | R38: 1.204040241 | S38: 7 | T38: -1
A39: 4 | B39: 1 | C39: 20 | D39: 1 | E39: 1 | F39: 4 | G39: 1.929540588 | H39: -2.194527195 | I39: -2.194527195 | J39: -2.02759978 | K39: -2.02759978 | L39: -1.803751016 | M39: -1.803751016 | N39: -0.9390540471 | O39: -0.9390540471 | P39: -0.2926515893 | Q39: -0.2926515893 | R39: -0.2325577452 | S39: 4 | T39: -1
A40: 4 | B40: 1 | C40: 20 | D40: 1 | E40: 1 | F40: 4 | G40: -1.595405994 | H40: -2.182161492 | I40: -1.829147294 | J40: -1.869993934 | K40: -2.17022178 | L40: -1.806280272 | M40: -2.031204816 | N40: -1.758570315 | O40: -2.004123193 | P40: -1.342103353 | Q40: -1.504930276 | R40: -0.9229930943 | S40: 11 | T40: -1
A41: 4 | B41: 1 | C41: 20 | D41: 1 | E41: 2 | F41: 3 | G41: 2.08711769 | H41: -0.2651029015 | I41: -0.1854049995 | J41: -1.343046395 | K41: -1.124904314 | L41: -1.3565136 | M41: -0.2365079919 | N41: -1.15697338 | O41: -0.3155286925 | P41: -1.486880227 | Q41: -0.8008519775 | R41: -0.4614702823 | S41: 3 | T41: -1
A42: 4 | B42: 1 | C42: 20 | D42: 1 | E42: 2 | F42: 3 | G42: -0.9976515355 | H42: 3.177622531 | I42: 2.327193153 | J42: 3.071638587 | K42: 2.400681372 | L42: 1.565122532 | M42: 1.262328547 | N42: 1.371788731 | O42: 0.2082801388 | P42: 0.4289905665 | Q42: 0.2689824007 | R42: -0.359341351 | S42: 3 | T42: 1
A43: 4 | B43: 1 | C43: 20 | D43: 1 | E43: 2 | F43: 3 | G43: -0.3828825269 | H43: -0.5069214825 | I43: -0.5069214825 | J43: -0.3523603224 | K43: -0.3523603224 | L43: -0.3058055697 | M43: -0.3058055697 | N43: -0.2561035772 | O43: -0.2561035772 | P43: -0.1736240472 | Q43: 0.4062802705 | R43: -0.1902110347 | S43: 0 | T43: -1
A44: 4 | B44: 1 | C44: 20 | D44: 1 | E44: 2 | F44: 3 | G44: 1.271522268 | H44: 0.4304648943 | I44: 0.8465894602 | J44: -0.797567854 | K44: -0.1459566982 | L44: 0.01610611072 | M44: -0.04644089615 | N44: -1.034872364 | O44: -0.6419223487 | P44: -0.3221223187 | Q44: -0.5892687441 | R44: -0.6698079606 | S44: 2 | T44: -1
A45: 4 | B45: 1 | C45: 20 | D45: 1 | E45: 2 | F45: 3 | G45: 1.330223711 | H45: 1.541485171 | I45: -0.07766973602 | J45: 0.04204668763 | K45: 0.4562507664 | L45: -0.2843134733 | M45: -0.6011046146 | N45: 0.5424729748 | O45: -0.4510310226 | P45: -0.3262188553 | Q45: 0.09718955533 | R45: -0.2262851749 | S45: 0 | T45: 1
A46: 4 | B46: 0 | C46: 10 | D46: 1 | E46: 2 | F46: 1 | G46: 2.9207828 | H46: 0.5622159181 | I46: 0.7667459327 | J46: 1.965266954 | K46: 1.650727377 | L46: 1.312480016 | M46: -0.07439032289 | N46: 0.6587120247 | O46: 0.1647318639 | P46: 1.192000368 | Q46: 0.5012417951 | R46: 6.143465488 | S46: 2 | T46: 1
A47: 4 | B47: 0 | C47: 10 | D47: 1 | E47: 1 | F47: 5 | G47: 2.083237617 | H47: 4.81173923 | I47: 4.24769133 | J47: 7.418435126 | K47: 4.701022148 | L47: 5.740894184 | M47: 4.007018469 | N47: 4.142683818 | O47: 3.671459377 | P47: 3.345522299 | Q47: 2.043295873 | R47: 1.163175084 | S47: 10 | T47: 1
A48: 4 | B48: 0 | C48: 10 | D48: 1 | E48: 2 | F48: 1 | G48: 2.568727156 | H48: 0.0825385868 | I48: 0.8994465593 | J48: 0.5909339514 | K48: 0.5823636067 | L48: 1.83476316 | M48: 2.127402493 | N48: 0.5323396082 | O48: 1.112176256 | P48: 0.4345195821 | Q48: 2.042500914 | R48: 1.891186302 | S48: 2 | T48: 1
A49: 4 | B49: 0 | C49: 20 | D49: 1 | E49: 1 | F49: 4 | G49: 1.29970076 | H49: -0.7632501522 | I49: -0.938096209 | J49: -0.6057205855 | K49: -0.806028185 | L49: -0.8444323137 | M49: -0.9805259215 | N49: -1.221453291 | O49: -1.221453291 | P49: -0.8159876554 | Q49: -0.8159876554 | R49: -0.838905811 | S49: 8 | T49: -1
A50: 4 | B50: 0 | C50: 20 | D50: 1 | E50: 2 | F50: 1 | G50: 1.276541389 | H50: 0.1035139591 | I50: -0.4828897865 | J50: -0.077475398 | K50: -1.140549647 | L50: -0.7624832255 | M50: -0.2484914527 | N50: 0.8782843948 | O50: -0.2904056521 | P50: -0.5835534648 | Q50: 0.2412408002 | R50: 1.787452676 | S50: 0 | T50: 1
A51: 4 | B51: 0 | C51: 20 | D51: 1 | E51: 2 | F51: 1 | G51: 2.265068066 | H51: 5.037056156 | I51: 1.43260826 | J51: 2.680318627 | K51: 1.73562459 | L51: 0.9862456679 | M51: 0.841623381 | N51: -0.6007425959 | O51: -0.2861218505 | P51: 1.113661399 | Q51: 0.6278022414 | R51: -1.314234904 | S51: 4 | T51: 1
A52: 4 | B52: 0 | C52: 20 | D52: 1 | E52: 2 | F52: 3 | G52: 0.7680746902 | H52: 2.032056251 | I52: 0.2113787795 | J52: 0.7478149868 | K52: 0.49947743 | L52: 0.1986483565 | M52: -0.3403174645 | N52: 0.7800978793 | O52: 0.7202122822 | P52: 0.9379806698 | Q52: 0.309402534 | R52: -1.210989972 | S52: 0 | T52: 1
A53: 4 | B53: 0 | C53: 20 | D53: 1 | E53: 2 | F53: 3 | G53: 3.064484199 | H53: 0.1511978161 | I53: -1.01553602 | J53: -0.8338531032 | K53: -0.9547146685 | L53: 0.1215528715 | M53: -0.1579559689 | N53: -0.05493045117 | O53: -0.3014037158 | P53: 0.3886469421 | Q53: 0.002522316552 | R53: -0.8431643784 | S53: 3 | T53: -1
A54: 4 | B54: 0 | C54: 20 | D54: 1 | E54: 2 | F54: 1 | G54: 1.721059155 | H54: -1.488156764 | I54: -1.4055429 | J54: -0.5265031295 | K54: -0.4600425143 | L54: -0.7502911043 | M54: -0.9504519355 | N54: -0.7177280637 | O54: -1.343480873 | P54: -1.050428607 | Q54: -0.9284883535 | R54: 0.6521917715 | S54: 4 | T54: -1
A55: 4 | B55: 0 | C55: 20 | D55: 1 | E55: 2 | F55: 1 | G55: 1.744860078 | H55: -0.2250226835 | I55: -0.06804368951 | J55: -0.9012029226 | K55: -0.2823433945 | L55: -1.007759188 | M55: -1.209472074 | N55: -0.8587763471 | O55: -1.227416184 | P55: -0.9901621519 | Q55: -0.6260820929 | R55: 0.3758785242 | S55: 2 | T55: -1
A56: 4 | B56: 0 | C56: 20 | D56: 1 | E56: 2 | F56: 3 | G56: 1.347185555 | H56: -0.3552147205 | I56: -0.08995884994 | J56: -0.4028250336 | K56: -0.3407919747 | L56: -0.1789869229 | M56: 0.07491190134 | N56: 1.19856926 | O56: -0.4548386367 | P56: -0.3217439754 | Q56: -0.2860449265 | R56: 0.05044183586 | S56: 0 | T56: 1
A57: 4 | B57: 0 | C57: 20 | D57: 1 | E57: 2 | F57: 3 | G57: 0.944923905 | H57: -0.3358834749 | I57: -0.04362189924 | J57: -0.8587529578 | K57: 0.4047124241 | L57: -0.4584986795 | M57: -0.6800686849 | N57: 0.09788427417 | O57: 1.098158491 | P57: -0.9508500598 | Q57: 0.5273261545 | R57: 1.091251617 | S57: 0 | T57: 1
A58: 4 | B58: 0 | C58: 20 | D58: 1 | E58: 1 | F58: 4 | G58: -0.866703664 | H58: -1.006160779 | I58: -1.006160779 | J58: -1.130846626 | K58: -0.9879938378 | L58: -0.7639949209 | M58: -0.7639949209 | N58: -1.216876243 | O58: -1.216876243 | P58: -1.172596756 | Q58: -0.6207064727 | R58: -1.042096534 | S58: 3 | T58: -1
A59: 4 | B59: 0 | C59: 20 | D59: 1 | E59: 2 | F59: 3 | G59: 0.4082857878 | H59: 0.9706795408 | I59: 0.5088247503 | J59: -0.6694509235 | K59: 0.1064337611 | L59: 0.01611440631 | M59: 1.126424087 | N59: -0.400168707 | O59: 0.3299952255 | P59: -0.1541605378 | Q59: 1.710962263 | R59: 0.7650523573 | S59: 0 | T59: 1
A60: 4 | B60: 0 | C60: 20 | D60: 1 | E60: 2 | F60: 1 | G60: 2.538536896 | H60: -0.510124664 | I60: -1.03744586 | J60: -0.7055662978 | K60: -1.022109106 | L60: -0.9268105713 | M60: -1.320312348 | N60: -0.3283555072 | O60: -0.5200875691 | P60: -1.13842912 | Q60: 1.120978174 | R60: -0.1229417741 | S60: 6 | T60: -1
A61: 4 | B61: 0 | C61: 20 | D61: 1 | E61: 2 | F61: 3 | G61: 4.404548077 | H61: -0.4727101365 | I61: -0.9846245607 | J61: -0.5717327268 | K61: -0.9465020827 | L61: -0.6934567793 | M61: -1.323589003 | N61: -1.159542728 | O61: -0.9281368464 | P61: -1.107425709 | Q61: -0.3302611577 | R61: -0.4913124395 | S61: 6 | T61: -1
A62: 4 | B62: 0 | C62: 20 | D62: 1 | E62: 2 | F62: 2 | G62: -0.1673245081 | H62: 0.9315791675 | I62: 2.340194347 | J62: 1.120656111 | K62: 2.034595375 | L62: 0.5251196757 | M62: 0.3612273909 | N62: -0.1228744587 | O62: -0.9257004896 | P62: -0.3449329008 | Q62: 0.246655118 | R62: 0.7783814005 | S62: 1 | T62: 1
A63: 4 | B63: 0 | C63: 20 | D63: 1 | E63: 1 | F63: 4 | G63: -0.03601444237 | H63: -1.391829646 | I63: -1.670452252 | J63: -1.201368776 | K63: -1.201368776 | L63: -1.081707363 | M63: -1.042787451 | N63: -1.080170779 | O63: -1.08646753 | P63: -1.435780763 | Q63: -1.565291073 | R63: 1.495250585 | S63: 10 | T63: -1
A64: 4 | B64: 0 | C64: 20 | D64: 1 | E64: 1 | F64: 5 | G64: 4.582857434 | H64: 3.102500797 | I64: -0.3749214543 | J64: 0.07740419073 | K64: -0.1855563832 | L64: -0.7255483758 | M64: -0.0272962077 | N64: -0.4462343863 | O64: -1.030024336 | P64: -0.5665503325 | Q64: -0.7862420636 | R64: 6.166761477 | S64: 3 | T64: 1
A65: 4 | B65: 0 | C65: 20 | D65: 1 | E65: 2 | F65: 3 | G65: 0.5989872501 | H65: -1.021773066 | I65: -0.7215207342 | J65: -1.315297017 | K65: -1.914055378 | L65: -2.258949057 | M65: -1.346370421 | N65: -0.605159914 | O65: -0.9660254427 | P65: -1.39557624 | Q65: -1.258545583 | R65: 0.535408132 | S65: 5 | T65: -1
A66: 4 | B66: 0 | C66: 20 | D66: 1 | E66: 1 | F66: 4 | G66: 0.6167276763 | H66: -0.8393419125 | I66: -1.156827981 | J66: -0.5431954293 | K66: -1.232718359 | L66: -0.9532708797 | M66: -1.005941264 | N66: -1.338589133 | O66: -1.517173354 | P66: -1.292692063 | Q66: -1.368413702 | R66: -1.322502119 | S66: 8 | T66: -1
A67: 4 | B67: 0 | C67: 20 | D67: 1 | E67: 1 | F67: 4 | G67: 1.004961496 | H67: -1.490071533 | I67: -1.953976738 | J67: -1.353999419 | K67: -2.127503669 | L67: -0.9662612588 | M67: -2.027838293 | N67: -1.836564104 | O67: -1.482547769 | P67: -1.692307347 | Q67: -1.861899922 | R67: -1.615053608 | S67: 10 | T67: -1
A68: 4 | B68: 0 | C68: 20 | D68: 1 | E68: 1 | F68: 4 | G68: 1.078133337 | H68: -2.28829611 | I68: -2.333819736 | J68: -2.399526862 | K68: -2.76257727 | L68: -2.295424942 | M68: -1.968051416 | N68: -2.104227908 | O68: -2.04415028 | P68: -1.898556011 | Q68: -1.761347461 | R68: -1.660628172 | S68: 11 | T68: -1
A69: 4 | B69: 0 | C69: 20 | D69: 1 | E69: 2 | F69: 3 | G69: 5.03862998 | H69: 0.7102469281 | I69: 0.1123884577 | J69: 1.259886702 | K69: -0.7324344306 | L69: -1.526398811 | M69: -1.521956703 | N69: -0.1769541325 | O69: -0.2917566877 | P69: -1.025287962 | Q69: -1.261191853 | R69: -0.8616307501 | S69: 3 | T69: -1
A70: 4 | B70: 0 | C70: 20 | D70: 1 | E70: 1 | F70: 5 | G70: 0.3626155944 | H70: 2.379451518 | I70: 2.491414508 | J70: 0.8970453105 | K70: 1.18376878 | L70: 2.358814755 | M70: 3.05836352 | N70: 2.824837727 | O70: 3.993085122 | P70: 2.953122519 | Q70: 2.286494429 | R70: -1.192084409 | S70: 8 | T70: 1
A71: 4 | B71: 0 | C71: 20 | D71: 1 | E71: 2 | F71: 2 | G71: -0.2134033332 | H71: 0.1877964302 | I71: 0.7432232028 | J71: 0.7938379884 | K71: 0.9071337026 | L71: 0.468130221 | M71: 0.08594470091 | N71: -0.02841662425 | O71: -0.1267247711 | P71: 0.2515647023 | Q71: 0.1870470855 | R71: 0.7996213189 | S71: 0 | T71: 1
A72: 4 | B72: 0 | C72: 10 | D72: 1 | E72: 1 | F72: 5 | G72: 0.03520450843 | H72: 4.172672649 | I72: 2.176671062 | J72: 1.333414994 | K72: 2.386469184 | L72: 3.14235078 | M72: 5.75930089 | N72: 3.0379866 | O72: 1.465121783 | P72: 2.813469228 | Q72: 3.337911911 | R72: 2.052890926 | S72: 8 | T72: 1
A73: 4 | B73: 0 | C73: 10 | D73: 1 | E73: 2 | F73: 1 | G73: 2.184667747 | H73: 4.039547464 | I73: 3.326887543 | J73: 2.244047452 | K73: 2.204009139 | L73: 3.357731059 | M73: 3.333932524 | N73: 1.463906522 | O73: 2.046343585 | P73: 2.418337308 | Q73: 2.001495824 | R73: 2.306762417 | S73: 7 | T73: 1
A74: 4 | B74: 0 | C74: 10 | D74: 1 | E74: 2 | F74: 3 | G74: -0.04213370389 | H74: -0.3588378868 | I74: -0.9597326096 | J74: -0.7673219947 | K74: -0.9511710235 | L74: -0.8668009774 | M74: -1.056368411 | N74: -0.2179377611 | O74: -0.6456182089 | P74: -0.959397254 | Q74: -0.5872268906 | R74: -0.9021633055 | S74: 3 | T74: -1
A75: 4 | B75: 0 | C75: 10 | D75: 1 | E75: 2 | F75: 3 | G75: 1.214922885 | H75: 1.474506772 | I75: 1.598926736 | J75: 2.130316016 | K75: 0.8048458406 | L75: 0.3869757986 | M75: -0.4580129811 | N75: -0.5348165832 | O75: 0.8028681337 | P75: 1.851187433 | Q75: 2.395021295 | R75: 1.066062527 | S75: 0 | T75: 1
A76: 4 | B76: 0 | C76: 10 | D76: 1 | E76: 2 | F76: 2 | G76: -0.02688758 | H76: 1.95315841 | I76: 2.702093367 | J76: 1.365458408 | K76: 0.7614178481 | L76: 1.413267224 | M76: 1.099772188 | N76: 1.620955746 | O76: 2.560146003 | P76: 2.29983067 | Q76: 5.986545385 | R76: 2.108551433 | S76: 5 | T76: 1
A77: 4 | B77: 0 | C77: 10 | D77: 1 | E77: 2 | F77: 3 | G77: 1.024617244 | H77: 2.032636969 | I77: 3.846383645 | J77: 2.513445771 | K77: 2.622351756 | L77: 2.395293216 | M77: 3.230986969 | N77: 1.643761208 | O77: 1.131433402 | P77: 1.761833319 | Q77: 3.081401152 | R77: 0.4889283811 | S77: 6 | T77: 1
A78: 4 | B78: 0 | C78: 10 | D78: 1 | E78: 2 | F78: 3 | G78: 0.3480895387 | H78: -0.3457814151 | I78: 0.1540169557 | J78: 1.472735985 | K78: -0.06992397837 | L78: -0.3466365818 | M78: 0.3979334375 | N78: 1.518611114 | O78: 0.8373483115 | P78: 0.8461728917 | Q78: 0.4567892199 | R78: -1.203511149 | S78: 0 | T78: 1
A79: 4 | B79: 0 | C79: 10 | D79: 1 | E79: 1 | F79: 5 | G79: 3.577585808 | H79: 6.501745655 | I79: 6.554749315 | J79: 5.468431132 | K79: 7.558814217 | L79: 4.57857599 | M79: 5.403247985 | N79: 5.869680118 | O79: 5.345321909 | P79: 3.246483692 | Q79: 4.102465186 | R79: 4.520908764 | S79: 12 | T79: 1
A80: 4 | B80: 0 | C80: 10 | D80: 1 | E80: 2 | F80: 3 | G80: 0.3827897001 | H80: 0.4187240588 | I80: 1.545484812 | J80: 2.195807976 | K80: 1.775280531 | L80: 1.783794866 | M80: 1.699875051 | N80: 1.185331192 | O80: 1.936780896 | P80: 1.873754583 | Q80: 2.763164491 | R80: 0.03429697071 | S80: 3 | T80: 1
A81: 4 | B81: 0 | C81: 20 | D81: 1 | E81: 2 | F81: 1 | G81: 2.712834943 | H81: 0.5849225229 | I81: 1.167107542 | J81: 0.08631181448 | K81: 0.2488600654 | L81: 0.7819117841 | M81: 0.3054011507 | N81: 0.7817477209 | O81: 0.7607113256 | P81: 1.114557467 | Q81: 7.009726053 | R81: 1.38313514 | S81: 2 | T81: 1
A82: 4 | B82: 0 | C82: 20 | D82: 1 | E82: 2 | F82: 3 | G82: 1.560482265 | H82: 0.02240915951 | I82: 0.5953181201 | J82: 0.3440791053 | K82: 1.066679842 | L82: -0.5145995246 | M82: -0.09665119967 | N82: -0.04991067423 | O82: -0.5167577635 | P82: -0.7717133548 | Q82: 5.071720237 | R82: -0.9474264614 | S82: 1 | T82: 1
A83: 4 | B83: 0 | C83: 20 | D83: 1 | E83: 2 | F83: 1 | G83: 4.742913171 | H83: -0.3043631246 | I83: -0.9331710645 | J83: 0.001718876685 | K83: -0.5963069698 | L83: -0.5304586988 | M83: -0.2698058248 | N83: -0.07500575585 | O83: -0.164461602 | P83: -0.3832552436 | Q83: 7.614891389 | R83: -0.1647463841 | S83: 3 | T83: 1
A84: 4 | B84: 0 | C84: 20 | D84: 1 | E84: 2 | F84: 1 | G84: 3.354714496 | H84: 1.117563644 | I84: 1.113777375 | J84: 0.6125899793 | K84: 0.2396559705 | L84: 0.4901966742 | M84: 0.3339809776 | N84: 1.493053068 | O84: 0.225160373 | P84: 0.2454278093 | Q84: 4.018013071 | R84: -0.1790403158 | S84: 2 | T84: 1
A85: 4 | B85: 0 | C85: 20 | D85: 1 | E85: 2 | F85: 1 | G85: 2.86708557 | H85: -0.5359493576 | I85: -0.7674639534 | J85: -0.2002055813 | K85: -0.655094453 | L85: -0.5687884699 | M85: -0.09562446257 | N85: 1.09754613 | O85: 0.8227991885 | P85: -0.2631326891 | Q85: 0.3375624403 | R85: -0.1860479481 | S85: 0 | T85: 1
A86: 4 | B86: 0 | C86: 20 | D86: 1 | E86: 2 | F86: 3 | G86: 3.7587877 | H86: -0.5225532712 | I86: -1.049465158 | J86: -0.670527569 | K86: -1.309534111 | L86: -0.2971778184 | M86: -0.4677026169 | N86: -1.259026119 | O86: -1.483961867 | P86: -1.315871109 | Q86: -1.085922444 | R86: -0.546855124 | S86: 5 | T86: -1
A87: 4 | B87: 0 | C87: 20 | D87: 1 | E87: 2 | F87: 3 | G87: 2.461903109 | H87: -1.300901525 | I87: -1.610816724 | J87: -1.377400392 | K87: -1.131646262 | L87: -1.517899792 | M87: -1.517899792 | N87: -1.209500664 | O87: -1.006399518 | P87: -1.430804669 | Q87: 0.5926139401 | R87: -1.676540126 | S87: 5 | T87: -1
A88: 4 | B88: 0 | C88: 20 | D88: 1 | E88: 2 | F88: 1 | G88: 4.877108928 | H88: 0.1858748905 | I88: -0.396969933 | J88: -0.4097337114 | K88: -0.4493318189 | L88: 0.1855757959 | M88: -0.6368438039 | N88: -0.7049193223 | O88: -1.008499191 | P88: -0.113354936 | Q88: 0.2361611839 | R88: 0.4133319599 | S88: 2 | T88: 1
A89: 4 | B89: 0 | C89: 20 | D89: 1 | E89: 2 | F89: 1 | G89: 3.004992645 | H89: 0.5394283068 | I89: 1.713133134 | J89: 1.354616346 | K89: 0.9596436969 | L89: 0.4618622797 | M89: 1.785689475 | N89: 1.720492612 | O89: 0.9136950649 | P89: 1.427419998 | Q89: 9.474511316 | R89: 1.318116737 | S89: 2 | T89: 1
A90: 4 | B90: 0 | C90: 20 | D90: 1 | E90: 2 | F90: 3 | G90: -0.0973099846 | H90: -0.6725223365 | I90: -1.840293393 | J90: -1.647514833 | K90: -0.769709495 | L90: -1.274071271 | M90: 0.1522233313 | N90: -0.4654262206 | O90: -0.5606323446 | P90: 1.34375688 | Q90: 1.495565685 | R90: 0.01996853629 | S90: 1 | T90: -1
A91: 4 | B91: 0 | C91: 20 | D91: 1 | E91: 2 | F91: 3 | G91: 0.9992216433 | H91: 1.216347087 | I91: -0.004246004714 | J91: 0.2080474433 | K91: -0.9478391612 | L91: -0.1843322029 | M91: -0.1070791721 | N91: -0.3193707825 | O91: -0.5872271444 | P91: 0.04874286343 | Q91: -0.188617324 | R91: -1.574836467 | S91: 1 | T91: -1
A92: 4 | B92: 0 | C92: 20 | D92: 1 | E92: 2 | F92: 3 | G92: 4.57570507 | H92: -1.353425 | I92: -0.8331902842 | J92: -0.7841062922 | K92: -0.9017438721 | L92: -1.070517114 | M92: -0.1315656537 | N92: -0.6431381014 | O92: -0.7115544579 | P92: 0.1775438788 | Q92: 1.199951732 | R92: -0.9325754535 | S92: 3 | T92: -1
A93: 4 | B93: 0 | C93: 20 | D93: 1 | E93: 2 | F93: 1 | G93: 2.116428167 | H93: -0.2960065638 | I93: -0.5451636788 | J93: 0.3633300571 | K93: -0.7689995413 | L93: -0.4349821758 | M93: -0.4297575719 | N93: 1.490188563 | O93: 0.2905243547 | P93: 0.3919027765 | Q93: 1.530596319 | R93: 1.93273324 | S93: 2 | T93: 1
A94: 4 | B94: 0 | C94: 20 | D94: 1 | E94: 1 | F94: 5 | G94: 1.418506674 | H94: 1.666525443 | I94: 2.792732414 | J94: 3.460455185 | K94: 3.324096834 | L94: 3.667041702 | M94: 2.386254663 | N94: 2.67971619 | O94: 1.823194897 | P94: 0.8435094815 | Q94: 0.8407919976 | R94: 0.4148430948 | S94: 2 | T94: 1
A95: 4 | B95: 0 | C95: 20 | D95: 1 | E95: 1 | F95: 4 | G95: -0.01480558353 | H95: -1.121110391 | I95: -1.121110391 | J95: -0.8344697871 | K95: -0.8344697871 | L95: -1.022293764 | M95: -1.022293764 | N95: -0.7265411142 | O95: -0.6822753842 | P95: -0.8835547208 | Q95: -0.8835547208 | R95: -0.9864349121 | S95: 5 | T95: -1
A96: 4 | B96: 0 | C96: 20 | D96: 1 | E96: 2 | F96: 2 | G96: -0.1144179216 | H96: 0.8255251488 | I96: -0.5558646293 | J96: -0.4331827401 | K96: -0.2241438127 | L96: -0.3313473714 | M96: -0.5544724158 | N96: -0.2818903254 | O96: -0.2818903254 | P96: -0.4446226479 | Q96: -0.388583416 | R96: 1.125790188 | S96: 0 | T96: -1
A97: 4 | B97: 0 | C97: 20 | D97: 1 | E97: 2 | F97: 3 | G97: 2.332098295 | H97: 0.7152737282 | I97: -0.7075866896 | J97: 0.3365905883 | K97: -0.2711907712 | L97: 0.4681071347 | M97: -0.189922255 | N97: -0.3461471925 | O97: 0.6005887223 | P97: 0.2019058839 | Q97: -0.4253205011 | R97: -0.7195548156 | S97: 0 | T97: 1
A98: 4 | B98: 0 | C98: 20 | D98: 1 | E98: 2 | F98: 3 | G98: 0.2515045993 | H98: -0.4979828196 | I98: 0.03295170819 | J98: -0.8999228473 | K98: 0.03307752301 | L98: -1.071189817 | M98: 0.9219243599 | N98: 0.1656715878 | O98: -0.1598144511 | P98: -0.8185444546 | Q98: 0.8128661145 | R98: -0.4767724577 | S98: 0 | T98: -1
A99: 4 | B99: 0 | C99: 20 | D99: 1 | E99: 2 | F99: 3 | G99: -0.1494245739 | H99: -0.3397441983 | I99: -0.7666781948 | J99: -0.8950409404 | K99: -1.016267086 | L99: -0.9316026787 | M99: -0.7849420006 | N99: -1.229482379 | O99: -1.229482379 | P99: -0.4489969338 | Q99: -0.8761369479 | R99: -0.2663439896 | S99: 7 | T99: -1
A100: 4 | B100: 0 | C100: 20 | D100: 1 | E100: 2 | F100: 3 | G100: -1.129391567 | H100: 3.322556204 | I100: 5.140379937 | J100: 1.727195017 | K100: 1.523064811 | L100: 0.6755441837 | M100: 0.7941137424 | N100: 0.6629993599 | O100: 0.915439687 | P100: 0.4918391489 | Q100: 0.8433241624 | R100: -0.3088929624 | S100: 2 | T100: 1
A101: 4 | B101: 0 | C101: 20 | D101: 1 | E101: 2 | F101: 3 | G101: 0.4132126645 | H101: -0.7900715035 | I101: -0.907806996 | J101: -1.314208234 | K101: 0.6243498677 | L101: -0.4858303929 | M101: -1.171666878 | N101: 0.2095225277 | O101: 0.7288039304 | P101: -0.2581174295 | Q101: 0.3814249855 | R101: -0.5315117552 | S101: 1 | T101: -1
A102: 4 | B102: 1 | C102: 10 | D102: 1 | E102: 2 | F102: 2 | G102: -1.550653355 | H102: 1.212694891 | I102: 0.9608073741 | J102: 1.865317009 | K102: 2.098978881 | L102: 2.570774437 | M102: 2.980825904 | N102: 1.472597237 | O102: 3.115552481 | P102: 2.42846593 | Q102: -0.3443309111 | R102: 1.424991629 | S102: 6 | T102: 1
A103: 4 | B103: 1 | C103: 10 | D103: 1 | E103: 2 | F103: 1 | G103: 1.560527675 | H103: -0.01083002533 | I103: -0.2683954558 | J103: 0.2275632957 | K103: 1.43237078 | L103: -0.4732908282 | M103: 0.03231696512 | N103: 0.07506430462 | O103: 0.006935289014 | P103: 0.9905093885 | Q103: 0.6013081653 | R103: 0.3239274033 | S103: 0 | T103: 1
A104: 4 | B104: 1 | C104: 20 | D104: 1 | E104: 2 | F104: 2 | G104: -0.4329878062 | H104: -0.3971105949 | I104: -0.3971105949 | J104: -0.3918701155 | K104: -0.3918701155 | L104: -0.2977695721 | M104: -0.2977695721 | N104: -0.2354119884 | O104: -0.2354119884 | P104: -0.3202079678 | Q104: -0.3202079678 | R104: 2.376899752 | S104: 0 | T104: -1
A105: 4 | B105: 1 | C105: 20 | D105: 1 | E105: 2 | F105: 3 | G105: 0.577745013 | H105: 0.1911878915 | I105: 1.258093024 | J105: -0.09105615882 | K105: -1.290489759 | L105: -1.317915797 | M105: -0.6541871885 | N105: -0.9999179936 | O105: -1.272924778 | P105: -1.226541961 | Q105: -1.086662634 | R105: 0.3610838043 | S105: 5 | T105: -1
A106: 4 | B106: 1 | C106: 20 | D106: 1 | E106: 1 | F106: 4 | G106: -0.4945953261 | H106: -0.4928104529 | I106: -0.4928104529 | J106: -0.5153720081 | K106: -0.5153720081 | L106: -0.377423246 | M106: -0.377423246 | N106: -0.4701600728 | O106: -0.4701600728 | P106: -0.4634334833 | Q106: -0.4634334833 | R106: -0.5298970404 | S106: 0 | T106: -1
A107: 4 | B107: 1 | C107: 20 | D107: 1 | E107: 2 | F107: 3 | G107: 0.1432701004 | H107: 2.052520722 | I107: 2.131614302 | J107: -0.009882106494 | K107: 0.8983693102 | L107: -0.930183154 | M107: 0.8255286947 | N107: 1.461710135 | O107: 0.1056384942 | P107: -0.3485964273 | Q107: 2.579149052 | R107: 0.3802256805 | S107: 0 | T107: 1
A108: 4 | B108: 1 | C108: 20 | D108: 1 | E108: 2 | F108: 1 | G108: 2.921274159 | H108: -0.6033465249 | I108: -0.8212371914 | J108: -1.26491967 | K108: -0.9149712616 | L108: -1.187371167 | M108: -1.063985079 | N108: -1.282763655 | O108: -1.282763655 | P108: -0.6264705605 | Q108: -1.012783558 | R108: -0.03130365394 | S108: 8 | T108: -1
A109: 4 | B109: 1 | C109: 20 | D109: 1 | E109: 1 | F109: 5 | G109: 5.864390267 | H109: 0.6607205533 | I109: -1.027943968 | J109: -1.207270834 | K109: -1.692454981 | L109: -1.512464543 | M109: -1.741072043 | N109: -1.235861245 | O109: -1.733102903 | P109: -1.730000761 | Q109: -1.2914343 | R109: 4.621328406 | S109: 9 | T109: -1
A110: 4 | B110: 1 | C110: 20 | D110: 1 | E110: 2 | F110: 3 | G110: 1.362386333 | H110: -1.014155086 | I110: -1.014155086 | J110: -1.206163374 | K110: -1.206163374 | L110: -0.919282775 | M110: -1.126462564 | N110: -0.7353471388 | O110: -0.9934140272 | P110: -1.082370029 | Q110: -1.297299631 | R110: -0.4414151356 | S110: 7 | T110: -1
A111: 4 | B111: 1 | C111: 20 | D111: 1 | E111: 1 | F111: 5 | G111: 6.771580579 | H111: 0.7019779356 | I111: 4.449554558 | J111: 3.975832036 | K111: 7.122651166 | L111: 4.174806893 | M111: 4.656798731 | N111: 3.904811889 | O111: 3.313978089 | P111: 2.524494576 | Q111: 2.693913612 | R111: -0.9259842023 | S111: 10 | T111: 1
A112: 4 | B112: 1 | C112: 10 | D112: 1 | E112: 1 | F112: 4 | G112: -1.807013932 | H112: -1.876652857 | I112: -1.749093872 | J112: -2.702491502 | K112: -1.27941375 | L112: -1.258869086 | M112: -1.385851239 | N112: -0.5272312126 | O112: -1.313550387 | P112: -0.6402920233 | Q112: -0.6999114373 | R112: 2.835412192 | S112: 5 | T112: -1
A113: 4 | B113: 1 | C113: 10 | D113: 1 | E113: 1 | F113: 5 | G113: 3.501124286 | H113: 6.620131707 | I113: 5.39398091 | J113: 3.304346163 | K113: 5.71708161 | L113: 3.217972198 | M113: 2.356258878 | N113: 2.583662225 | O113: 3.517068276 | P113: 1.568025998 | Q113: 2.244561855 | R113: 0.8685203838 | S113: 9 | T113: 1
A114: 4 | B114: 1 | C114: 10 | D114: 1 | E114: 2 | F114: 3 | G114: 2.718014212 | H114: -1.005505236 | I114: -0.5545708548 | J114: -1.513902857 | K114: -0.5712389263 | L114: 0.7165102356 | M114: -0.65245224 | N114: -1.059026005 | O114: -0.3336411867 | P114: -0.9326653866 | Q114: -0.3977457773 | R114: -1.21252023 | S114: 2 | T114: -1
A115: 4 | B115: 1 | C115: 10 | D115: 1 | E115: 2 | F115: 3 | G115: -0.02227690614 | H115: 2.552804631 | I115: 1.672957997 | J115: 2.358301432 | K115: 2.180027037 | L115: 1.551172693 | M115: 1.300940279 | N115: 2.105487242 | O115: 0.259616124 | P115: 1.108905027 | Q115: 1.482622911 | R115: 0.323533075 | S115: 4 | T115: 1
A116: 4 | B116: 1 | C116: 10 | D116: 0 | E116: 0 | F116: 0 | G116: 1.748950089 | H116: 0.4786805608 | I116: 0.7480280783 | J116: 0.4287784689 | K116: 0.9103497705 | L116: 0.3822298734 | M116: 0.2734732172 | N116: -0.01630288055 | O116: 0.8592373893 | P116: -0.7256059468 | Q116: 2.12036945 | R116: -0.5301912774 | S116: 0 | T116: 1
A117: 5 | B117: 1 | C117: 10 | D117: 1 | E117: 1 | F117: 5 | G117: 0.9878544633 | H117: 2.898184154 | I117: 4.360889454 | J117: 3.399765712 | K117: 3.641275404 | L117: 3.556241352 | M117: 3.919688039 | N117: 3.911776195 | O117: 4.277252557 | P117: 3.364408148 | Q117: 4.247742467 | R117: 1.903199221 | S117: 10 | T117: 1
A118: 5 | B118: 1 | C118: 10 | D118: 1 | E118: 2 | F118: 3 | G118: 0.9417771292 | H118: 3.087045874 | I118: 2.872410631 | J118: 3.057951875 | K118: 4.521862379 | L118: 2.796958506 | M118: 1.958964169 | N118: 2.948792706 | O118: 4.775641714 | P118: 2.07620589 | Q118: 4.221606792 | R118: -1.06362353 | S118: 9 | T118: 1
A119: 5 | B119: 1 | C119: 10 | D119: 1 | E119: 1 | F119: 4 | G119: -0.959662333 | H119: -1.049271165 | I119: -1.049271165 | J119: -1.17473097 | K119: -0.869893151 | L119: -1.039449751 | M119: -0.8451347045 | N119: -1.081699327 | O119: -1.081699327 | P119: -0.8558782249 | Q119: -1.042912592 | R119: -1.01182118 | S119: 11 | T119: -1
A120: 5 | B120: 1 | C120: 10 | D120: 1 | E120: 2 | F120: 2 | G120: 0.3942002925 | H120: -0.2913127901 | I120: -0.1633464882 | J120: 0.6802372358 | K120: 0.9025610064 | L120: 0.0584200367 | M120: -0.04594179705 | N120: -0.0279150144 | O120: 0.2707061005 | P120: -0.2300031939 | Q120: 0.9189132267 | R120: 1.24113772 | S120: 0 | T120: 1
A121: 5 | B121: 1 | C121: 20 | D121: 1 | E121: 2 | F121: 3 | G121: 1.865702373 | H121: 0.418236971 | I121: -0.9069499608 | J121: -0.7909117029 | K121: -1.914725384 | L121: -1.459541618 | M121: -1.732616947 | N121: -1.202234337 | O121: -1.115217937 | P121: -1.726913512 | Q121: -1.63686412 | R121: -0.4652012298 | S121: 6 | T121: -1
A122: 5 | B122: 1 | C122: 20 | D122: 1 | E122: 2 | F122: 3 | G122: -0.019731191 | H122: 1.243976213 | I122: -0.4040463622 | J122: 2.096952124 | K122: 0.2189443673 | L122: 0.5411097318 | M122: -0.380502051 | N122: 0.3276936559 | O122: 0.5980948124 | P122: -0.3303161883 | Q122: -0.07109485058 | R122: 0.7477950446 | S122: 1 | T122: 1
A123: 5 | B123: 1 | C123: 20 | D123: 1 | E123: 2 | F123: 3 | G123: 0.3659818176 | H123: 2.333324079 | I123: 2.42143687 | J123: 0.9557272002 | K123: 0.08503433416 | L123: -0.07161005573 | M123: -0.7020914878 | N123: 0.1156818688 | O123: -0.3589146999 | P123: 0.2333929504 | Q123: -1.03937008 | R123: -0.4678205698 | S123: 2 | T123: 1
A124: 5 | B124: 1 | C124: 20 | D124: 1 | E124: 2 | F124: 3 | G124: 0.2742076173 | H124: 0.6232064886 | I124: 0.6155910214 | J124: 0.7227673622 | K124: -0.1258085243 | L124: 0.9817749663 | M124: 0.7516143459 | N124: 1.052712983 | O124: 0.9302705997 | P124: 0.3909945843 | Q124: 0.6412216099 | R124: 0.2628708332 | S124: 0 | T124: 1
A125: 5 | B125: 1 | C125: 20 | D125: 1 | E125: 1 | F125: 4 | G125: -0.9383777205 | H125: -0.5733314175 | I125: -1.198876689 | J125: -0.4750282402 | K125: -0.7383029086 | L125: -0.6567827281 | M125: -1.065284462 | N125: -0.1913770976 | O125: -0.1735736751 | P125: -1.273744545 | Q125: -1.473289891 | R125: -1.117988465 | S125: 5 | T125: -1
A126: 5 | B126: 1 | C126: 20 | D126: 1 | E126: 2 | F126: 3 | G126: 0.862955431 | H126: -0.404905599 | I126: -0.1187389115 | J126: -0.01714177215 | K126: 0.3101937386 | L126: -0.3597502429 | M126: 0.124891656 | N126: 0.3671868142 | O126: -0.1610928745 | P126: 0.1196074152 | Q126: -0.6022553363 | R126: 0.3825899136 | S126: 0 | T126: 1
A127: 5 | B127: 1 | C127: 20 | D127: 1 | E127: 1 | F127: 4 | G127: 0.3660355743 | H127: -1.811804403 | I127: -1.921913693 | J127: -1.642918042 | K127: -2.10227299 | L127: -1.812351384 | M127: -2.052632061 | N127: -1.838151716 | O127: -1.596223536 | P127: -1.815823406 | Q127: -1.569435934 | R127: 0.8709046343 | S127: 10 | T127: -1
A128: 5 | B128: 1 | C128: 20 | D128: 1 | E128: 2 | F128: 1 | G128: 7.78413702 | H128: -0.3669601271 | I128: -0.149942302 | J128: -0.8851003979 | K128: -0.8253171457 | L128: -1.334912765 | M128: -1.076384963 | N128: -1.18714461 | O128: -1.18714461 | P128: -1.100803042 | Q128: -0.9148866708 | R128: 0.7217228803 | S128: 7 | T128: -1
A129: 5 | B129: 1 | C129: 20 | D129: 1 | E129: 2 | F129: 2 | G129: 1.10279005 | H129: -0.1008548195 | I129: -0.5516952467 | J129: -0.8291439812 | K129: -0.9107979724 | L129: -0.5515060631 | M129: -1.055151995 | N129: -0.5849337371 | O129: -0.2326922592 | P129: -1.07701175 | Q129: -0.9641000697 | R129: 21.1050858 | S129: 2 | T129: 1
A130: 5 | B130: 1 | C130: 20 | D130: 1 | E130: 1 | F130: 4 | G130: -0.5019224505 | H130: -0.4870645064 | I130: -0.4870645064 | J130: -0.4714166908 | K130: -0.4714166908 | L130: -0.4506184806 | M130: -0.4506184806 | N130: -0.482274347 | O130: -0.482274347 | P130: -0.4774118222 | Q130: -0.4774118222 | R130: -0.5347793743 | S130: 0 | T130: -1
A131: 5 | B131: 1 | C131: 20 | D131: 1 | E131: 1 | F131: 4 | G131: -0.2420681202 | H131: -0.8901517718 | I131: -0.671540969 | J131: -1.08739136 | K131: -0.8545780813 | L131: -0.8871940665 | M131: -1.081221423 | N131: -0.759442844 | O131: -0.759442844 | P131: -1.083801551 | Q131: -1.083801551 | R131: -0.7096884842 | S131: 5 | T131: -1
A132: 5 | B132: 1 | C132: 20 | D132: 1 | E132: 2 | F132: 3 | G132: -0.0646097681 | H132: -0.8175933841 | I132: -1.278446114 | J132: -0.5486219642 | K132: -1.087980275 | L132: -0.7769276343 | M132: -0.6266537789 | N132: -0.5318184828 | O132: -1.009099436 | P132: -1.020096859 | Q132: -1.007929977 | R132: 0.4229779803 | S132: 4 | T132: -1
A133: 5 | B133: 1 | C133: 20 | D133: 1 | E133: 1 | F133: 4 | G133: -0.3910890923 | H133: -1.183557664 | I133: -1.069504502 | J133: -1.401973579 | K133: -1.071109821 | L133: -1.469810289 | M133: -1.469810289 | N133: -1.486346982 | O133: -1.659563972 | P133: -1.663754173 | Q133: -1.316129467 | R133: -1.51043279 | S133: 11 | T133: -1
A134: 5 | B134: 1 | C134: 20 | D134: 1 | E134: 2 | F134: 3 | G134: 1.007590395 | H134: -0.1055214228 | I134: -0.4945386541 | J134: 0.03085341229 | K134: -0.4846339371 | L134: -0.6696055487 | M134: -0.4918247432 | N134: -0.2472815995 | O134: -0.004846164138 | P134: -0.02759452383 | Q134: 0.03592965475 | R134: -0.2659736 | S134: 0 | T134: -1
A135: 5 | B135: 1 | C135: 20 | D135: 1 | E135: 2 | F135: 3 | G135: 0.6873901646 | H135: -0.8752589923 | I135: -1.015313061 | J135: -1.087798389 | K135: -1.059607463 | L135: -1.230960271 | M135: -0.8478147093 | N135: -1.356129093 | O135: -1.040178258 | P135: -1.032697192 | Q135: -0.8671245819 | R135: -0.838981992 | S135: 10 | T135: -1
A136: 5 | B136: 1 | C136: 20 | D136: 1 | E136: 2 | F136: 3 | G136: 0.1764844718 | H136: 0.4697914623 | I136: -0.6373505276 | J136: 0.02981460632 | K136: -0.1573692554 | L136: 0.5102956981 | M136: 0.1091464385 | N136: -0.09027605823 | O136: 0.5445071723 | P136: -0.6836150506 | Q136: -0.2555090512 | R136: -0.8419127283 | S136: 0 | T136: -1
A137: 5 | B137: 1 | C137: 20 | D137: 1 | E137: 1 | F137: 4 | G137: -0.6817871885 | H137: -1.080371064 | I137: -1.117548474 | J137: -1.114427818 | K137: -1.04336616 | L137: -1.533812958 | M137: -1.050777573 | N137: -1.133584465 | O137: -1.222267579 | P137: -1.011293799 | Q137: -1.268148104 | R137: 1.432231781 | S137: 9 | T137: -1
A138: 5 | B138: 1 | C138: 20 | D138: 1 | E138: 1 | F138: 4 | G138: 0.00135105502 | H138: -1.402720792 | I138: -1.58832312 | J138: -1.066609975 | K138: -1.34340937 | L138: -1.086084692 | M138: -1.140263966 | N138: -1.799748974 | O138: -1.294890874 | P138: -1.28700447 | Q138: -1.595115924 | R138: -1.288513391 | S138: 10 | T138: -1
A139: 5 | B139: 1 | C139: 10 | D139: 1 | E139: 2 | F139: 3 | G139: 0.4407917625 | H139: 2.410524351 | I139: 2.591317964 | J139: 0.7991055639 | K139: 1.472728052 | L139: 1.176986564 | M139: 2.270913893 | N139: 1.234230607 | O139: 1.18553205 | P139: 2.315229927 | Q139: 1.216188301 | R139: -0.3592011734 | S139: 3 | T139: 1
A140: 5 | B140: 1 | C140: 0 | D140: 0 | E140: 0 | F140: 0 | G140: NaN | H140: NaN | I140: NaN | J140: NaN | K140: NaN | L140: NaN | M140: NaN | N140: NaN | O140: NaN | P140: NaN | Q140: NaN | R140: NaN | S140: 0 | T140: NaN
A141: 5 | B141: 1 | C141: 10 | D141: 1 | E141: 2 | F141: 3 | G141: 1.114214138 | H141: 0.01326839206 | I141: -0.6263396705 | J141: 0.7970840204 | K141: 0.6038736608 | L141: 1.152817642 | M141: 0.2922477581 | N141: -0.2941265658 | O141: 0.3982068946 | P141: 0.3209024355 | Q141: 0.7087299184 | R141: -1.096670902 | S141: 1 | T141: 1
A142: 5 | B142: 1 | C142: 10 | D142: 1 | E142: 2 | F142: 3 | G142: 1.781561174 | H142: -0.9001232044 | I142: -0.5273505444 | J142: 0.9825572186 | K142: 0.964302533 | L142: 0.3826203041 | M142: 1.031939918 | N142: -0.4399844781 | O142: 0.01302465625 | P142: -0.9738708563 | Q142: 0.8326893146 | R142: -0.8038498013 | S142: 0 | T142: 1
A143: 5 | B143: 1 | C143: 10 | D143: 1 | E143: 2 | F143: 2 | G143: 0.2084733729 | H143: 2.550524263 | I143: 2.530311982 | J143: 1.945954153 | K143: 3.341080004 | L143: 2.162728317 | M143: 2.887287161 | N143: 1.356737818 | O143: 3.632933695 | P143: 2.127098492 | Q143: 1.350706832 | R143: 1.511649354 | S143: 5 | T143: 1
A144: 5 | B144: 1 | C144: 10 | D144: 1 | E144: 2 | F144: 1 | G144: 1.248228129 | H144: 0.8019493509 | I144: -0.04996424913 | J144: 1.047550676 | K144: -0.0551776728 | L144: 1.957960215 | M144: 1.440729422 | N144: 0.4214232186 | O144: 0.824983418 | P144: 0.5437358896 | Q144: 1.969276178 | R144: 0.8301009972 | S144: 1 | T144: 1
A145: 5 | B145: 1 | C145: 10 | D145: 1 | E145: 2 | F145: 1 | G145: 1.641051486 | H145: -0.1435068087 | I145: 0.520601206 | J145: -0.7990902874 | K145: -0.2418639575 | L145: -0.1192574945 | M145: 0.1549637977 | N145: 0.6538958442 | O145: 0.8598456137 | P145: -0.152986509 | Q145: 0.1057349797 | R145: -0.8496181754 | S145: 1 | T145: 1
A146: 5 | B146: 1 | C146: 10 | D146: 1 | E146: 2 | F146: 3 | G146: 0.06564216742 | H146: 0.3927900791 | I146: 0.7465639908 | J146: 1.643448987 | K146: 0.2052517076 | L146: 0.9072457194 | M146: 0.1477312822 | N146: 0.2849322345 | O146: -0.4009504464 | P146: 0.187471009 | Q146: 0.9124381552 | R146: -0.2991620392 | S146: 0 | T146: 1
A147: 5 | B147: 1 | C147: 10 | D147: 1 | E147: 2 | F147: 3 | G147: 0.7246368582 | H147: -0.9897477475 | I147: -0.4779149425 | J147: -0.4986582654 | K147: -0.2274798684 | L147: 0.5086662074 | M147: -0.403973815 | N147: -0.4471546876 | O147: -0.342592949 | P147: -0.2974631719 | Q147: -0.5276594171 | R147: 0.2902458313 | S147: 1 | T147: -1
A148: 5 | B148: 1 | C148: 10 | D148: 1 | E148: 2 | F148: 2 | G148: 0.4013312159 | H148: 1.405673831 | I148: 1.282344625 | J148: 2.114099402 | K148: 2.487762104 | L148: 0.8685440012 | M148: 2.160221913 | N148: 0.8815484777 | O148: 3.214152052 | P148: 0.8677939445 | Q148: 2.31965142 | R148: 1.234337797 | S148: 5 | T148: 1
A149: 5 | B149: 1 | C149: 10 | D149: 1 | E149: 2 | F149: 3 | G149: -0.08692022346 | H149: 0.01821587769 | I149: 0.278559717 | J149: 0.09224129704 | K149: 0.3009005579 | L149: 0.1483704457 | M149: 0.3549083632 | N149: -0.3169900467 | O149: 0.2476851543 | P149: -1.071799591 | Q149: 0.7511880701 | R149: 0.3267084324 | S149: 1 | T149: 1
A150: 5 | B150: 1 | C150: 20 | D150: 1 | E150: 2 | F150: 3 | G150: 0.3680666398 | H150: 1.315280414 | I150: 0.5834116169 | J150: 0.6474669599 | K150: -0.09020656787 | L150: 1.173123536 | M150: -0.1929651689 | N150: 0.7496245476 | O150: 1.072588008 | P150: 0.5612577606 | Q150: 2.846848166 | R150: -0.5630301494 | S150: 0 | T150: 1
A151: 5 | B151: 1 | C151: 20 | D151: 1 | E151: 2 | F151: 3 | G151: 1.480991903 | H151: -0.9433912199 | I151: -1.285755946 | J151: -0.7828146306 | K151: -0.3656848746 | L151: -0.9812567906 | M151: -1.316712029 | N151: -1.080035795 | O151: -1.243692122 | P151: -0.9052851255 | Q151: 4.897869276 | R151: -0.8209734357 | S151: 5 | T151: -1
A152: 5 | B152: 1 | C152: 20 | D152: 1 | E152: 2 | F152: 1 | G152: 2.171282425 | H152: 0.8534092487 | I152: 1.037400881 | J152: 1.324294931 | K152: 2.334852389 | L152: 1.049633164 | M152: 1.031365301 | N152: -0.3026433209 | O152: 0.2623811016 | P152: 0.7256176978 | Q152: 0.7670496951 | R152: 2.591277586 | S152: 1 | T152: 1
A153: 5 | B153: 1 | C153: 20 | D153: 1 | E153: 1 | F153: 5 | G153: -0.778271807 | H153: -1.525128249 | I153: -2.332912251 | J153: -1.351171095 | K153: -1.410713404 | L153: -1.028077046 | M153: -1.062821327 | N153: 0.4494577902 | O153: 0.4834752164 | P153: -0.7753858052 | Q153: 1.086267037 | R153: 4.836567522 | S153: 3 | T153: -1
A154: 5 | B154: 1 | C154: 20 | D154: 1 | E154: 1 | F154: 4 | G154: 0.3695259859 | H154: -1.90216776 | I154: -1.853428651 | J154: -1.947915584 | K154: -1.947915584 | L154: -1.579933056 | M154: -1.630430438 | N154: -1.172345332 | O154: -1.172345332 | P154: -1.340500415 | Q154: -1.268896152 | R154: -0.920641676 | S154: 10 | T154: -1
A155: 5 | B155: 1 | C155: 20 | D155: 1 | E155: 1 | F155: 4 | G155: -1.220343916 | H155: -2.502368719 | I155: -2.365908565 | J155: -1.338841215 | K155: -0.8426908937 | L155: -0.8521384817 | M155: -1.942232904 | N155: -1.935813886 | O155: -1.974947366 | P155: -1.647831087 | Q155: -1.875447126 | R155: -1.603945395 | S155: 8 | T155: -1
A156: 5 | B156: 1 | C156: 20 | D156: 1 | E156: 1 | F156: 5 | G156: 0.0425796459 | H156: 22.00374281 | I156: 20.73365037 | J156: 15.24645871 | K156: 16.99397472 | L156: 9.173250925 | M156: 9.842326599 | N156: 8.10826672 | O156: 7.990302375 | P156: 14.89799134 | Q156: 13.1925791 | R156: -0.6106201868 | S156: 10 | T156: 1
A157: 5 | B157: 1 | C157: 20 | D157: 1 | E157: 2 | F157: 3 | G157: 1.15347672 | H157: 0.2399198086 | I157: -0.6372341336 | J157: -0.6938299451 | K157: 0.03377581088 | L157: -1.02469581 | M157: -0.833346551 | N157: -0.117416654 | O157: 0.1867344352 | P157: 0.7017141666 | Q157: 0.3829450846 | R157: -1.321079867 | S157: 1 | T157: -1
A158: 5 | B158: 1 | C158: 20 | D158: 1 | E158: 2 | F158: 1 | G158: 2.688029502 | H158: 0.3321052962 | I158: 0.1782718587 | J158: -0.1916059584 | K158: -0.04194201387 | L158: 0.2004492363 | M158: -0.2991779646 | N158: -0.1078475809 | O158: 1.698156433 | P158: 0.4799565749 | Q158: 5.062261332 | R158: 0.4205879899 | S158: 0 | T158: 1
A159: 5 | B159: 0 | C159: 10 | D159: 1 | E159: 1 | F159: 5 | G159: 2.875627571 | H159: 6.619191381 | I159: 6.138778482 | J159: 6.506799219 | K159: 4.005114718 | L159: 3.750792726 | M159: 3.596119853 | N159: 3.278935268 | O159: 3.992662535 | P159: 3.449830407 | Q159: 4.618094418 | R159: 1.438203603 | S159: 11 | T159: 1
A160: 5 | B160: 0 | C160: 10 | D160: 1 | E160: 1 | F160: 5 | G160: -0.5129234073 | H160: 1.121842296 | I160: 2.772600302 | J160: 3.24548058 | K160: 4.0424922 | L160: 2.488976653 | M160: 3.838355974 | N160: 3.586004816 | O160: 3.153576063 | P160: 3.911876338 | Q160: 1.431542155 | R160: 1.923857982 | S160: 6 | T160: 1
A161: 5 | B161: 0 | C161: 20 | D161: 1 | E161: 2 | F161: 1 | G161: 6.941584111 | H161: -0.7101097196 | I161: -0.9192602014 | J161: -0.9451007275 | K161: -1.031881968 | L161: -0.9503932718 | M161: -1.105023262 | N161: -0.6386670258 | O161: -0.7177017745 | P161: -0.1565337545 | Q161: 1.332290398 | R161: -0.2700959181 | S161: 5 | T161: 1
A162: 5 | B162: 0 | C162: 20 | D162: 1 | E162: 2 | F162: 1 | G162: 7.236646198 | H162: -0.1412300454 | I162: -0.7554206056 | J162: 0.5370083892 | K162: -0.2517677414 | L162: -0.4045190608 | M162: -0.4818127486 | N162: -0.6950995332 | O162: -0.6110278567 | P162: -0.0994180891 | Q162: 1.677949329 | R162: -0.7097522762 | S162: 1 | T162: 1
A163: 5 | B163: 0 | C163: 20 | D163: 1 | E163: 2 | F163: 1 | G163: 6.624395015 | H163: 2.56418743 | I163: 0.4482563796 | J163: -0.5030707889 | K163: -0.1765885877 | L163: -0.3036304591 | M163: -0.3374205798 | N163: -0.2158566302 | O163: -0.4512766218 | P163: -0.3693762497 | Q163: 0.3277181721 | R163: -0.1124714174 | S163: 2 | T163: 1
A164: 5 | B164: 0 | C164: 20 | D164: 1 | E164: 2 | F164: 3 | G164: 1.053918933 | H164: 1.390361904 | I164: -0.04578280727 | J164: 0.8473120622 | K164: -0.09389094413 | L164: 0.5747012967 | M164: 0.4906968183 | N164: 0.3512411801 | O164: -0.0964089734 | P164: -0.006984199657 | Q164: 1.25002239 | R164: -0.3054920652 | S164: 0 | T164: 1
A165: 5 | B165: 0 | C165: 20 | D165: 1 | E165: 2 | F165: 1 | G165: 6.710806367 | H165: -0.2798051224 | I165: -1.293190798 | J165: -0.9063172084 | K165: -0.3856448878 | L165: 0.645595043 | M165: -0.9176417594 | N165: -0.3882406001 | O165: 0.4537101514 | P165: 0.1929389183 | Q165: 0.8334565204 | R165: -0.4138027112 | S165: 3 | T165: 1
A166: 5 | B166: 0 | C166: 20 | D166: 1 | E166: 2 | F166: 1 | G166: 20.47448107 | H166: -0.9766332182 | I166: -0.3679030407 | J166: -0.4216900185 | K166: -0.7729231012 | L166: -0.7321475061 | M166: -1.142720486 | N166: -1.04018037 | O166: -0.5184078228 | P166: -0.4142336424 | Q166: 1.20208201 | R166: 1.218382803 | S166: 3 | T166: 1
A167: 5 | B167: 0 | C167: 20 | D167: 1 | E167: 2 | F167: 1 | G167: 4.256690193 | H167: -0.62262939 | I167: -0.9741904304 | J167: -1.350831313 | K167: -0.9548900639 | L167: -0.7610274423 | M167: -0.1111551529 | N167: -0.7270256959 | O167: -0.5764255786 | P167: -0.3781862153 | Q167: 0.2697117941 | R167: 3.270325201 | S167: 5 | T167: 1
A168: 5 | B168: 0 | C168: 20 | D168: 1 | E168: 2 | F168: 1 | G168: 6.182021741 | H168: -0.01797278422 | I168: -0.7010154839 | J168: 0.1189515388 | K168: -0.9004427806 | L168: -1.095644576 | M168: -0.9992773025 | N168: -1.200373491 | O168: -0.6185435999 | P168: -1.130525629 | Q168: 2.832758251 | R168: 2.326091703 | S168: 7 | T168: 1
A169: 5 | B169: 0 | C169: 20 | D169: 1 | E169: 2 | F169: 1 | G169: 3.008685556 | H169: -0.9462150124 | I169: -1.423201463 | J169: -0.9441762731 | K169: -1.096567257 | L169: -1.561341814 | M169: -0.9343647586 | N169: -0.6092031865 | O169: -1.296720467 | P169: -0.849473159 | Q169: -0.8439159526 | R169: -0.1784049445 | S169: 4 | T169: -1
A170: 5 | B170: 0 | C170: 20 | D170: 1 | E170: 2 | F170: 3 | G170: 0.3358656705 | H170: -1.101071723 | I170: -1.298695998 | J170: -0.6852331561 | K170: -1.362943917 | L170: -1.28340317 | M170: -1.772091697 | N170: -1.500283391 | O170: -1.374405514 | P170: -1.11374786 | Q170: -1.3475919 | R170: -0.9397679734 | S170: 10 | T170: -1
A171: 5 | B171: 0 | C171: 20 | D171: 1 | E171: 2 | F171: 2 | G171: 1.858946313 | H171: -0.7852711281 | I171: -0.7852711281 | J171: -0.8951569063 | K171: -0.8951569063 | L171: -0.7291680223 | M171: -0.7291680223 | N171: -0.6559626137 | O171: -0.6559626137 | P171: -0.6115625282 | Q171: -0.6115625282 | R171: 6.710152897 | S171: 0 | T171: 1
A172: 5 | B172: 0 | C172: 20 | D172: 1 | E172: 1 | F172: 4 | G172: -0.05385236868 | H172: -1.304626512 | I172: -1.383007297 | J172: -1.354763257 | K172: -1.354763257 | L172: -1.328812028 | M172: -1.328812028 | N172: -1.29285868 | O172: -1.29285868 | P172: -1.128600342 | Q172: -0.7139525763 | R172: 0.9222866628 | S172: 8 | T172: -1
A173: 5 | B173: 0 | C173: 20 | D173: 1 | E173: 2 | F173: 3 | G173: 0.9798898226 | H173: -0.1467961403 | I173: -0.5677360047 | J173: 0.03543996459 | K173: -0.178472861 | L173: -0.05659770767 | M173: -0.7228050861 | N173: -0.9880017077 | O173: -0.5471544188 | P173: -0.656998242 | Q173: 0.6369099195 | R173: 0.6502468292 | S173: 0 | T173: -1
A174: 5 | B174: 0 | C174: 20 | D174: 1 | E174: 1 | F174: 4 | G174: 0.003145224428 | H174: -2.151314402 | I174: -2.265381793 | J174: -1.787650003 | K174: -1.738190001 | L174: -2.323703434 | M174: -2.244462547 | N174: -1.703827074 | O174: -1.277922976 | P174: -1.373055392 | Q174: -1.437609613 | R174: -2.023798277 | S174: 8 | T174: -1
A175: 5 | B175: 0 | C175: 20 | D175: 1 | E175: 1 | F175: 5 | G175: 1.504792384 | H175: -1.625487626 | I175: -1.611184443 | J175: -1.941355945 | K175: -1.820275944 | L175: -1.24229296 | M175: -1.284313891 | N175: -1.762300503 | O175: -2.389156261 | P175: -1.088005694 | Q175: -1.648202545 | R175: 1.857560844 | S175: 10 | T175: -1
A176: 5 | B176: 0 | C176: 20 | D176: 1 | E176: 2 | F176: 3 | G176: 0.3628009653 | H176: -0.5843753282 | I176: -0.8591926368 | J176: 0.8804248339 | K176: 1.288098125 | L176: 0.7049817205 | M176: -0.9836034594 | N176: -0.276605254 | O176: -0.7264216763 | P176: -0.1889522392 | Q176: -0.2508770862 | R176: -1.356384569 | S176: 2 | T176: -1
A177: 5 | B177: 0 | C177: 20 | D177: 1 | E177: 2 | F177: 2 | G177: 1.941483585 | H177: -0.273849583 | I177: -1.132213651 | J177: -0.8272059847 | K177: -0.8345125703 | L177: -0.3385516147 | M177: -0.6031621809 | N177: -1.410823522 | O177: -1.735274722 | P177: -0.8117909446 | Q177: -0.6816112944 | R177: 2.507061143 | S177: 3 | T177: -1
A178: 5 | B178: 0 | C178: 20 | D178: 1 | E178: 2 | F178: 3 | G178: -0.09652698609 | H178: 0.9808072008 | I178: 2.69129995 | J178: 2.540436994 | K178: 1.617799256 | L178: 2.110112005 | M178: 0.8589605906 | N178: 2.278945608 | O178: 2.978800096 | P178: 1.02476256 | Q178: 1.320574108 | R178: -1.256112585 | S178: 6 | T178: 1
A179: 5 | B179: 0 | C179: 10 | D179: 1 | E179: 2 | F179: 2 | G179: 0.2370140379 | H179: 1.772527835 | I179: 0.5213961471 | J179: 1.300828804 | K179: 3.464001644 | L179: 1.514441735 | M179: 2.100164767 | N179: 1.013866272 | O179: 1.115008463 | P179: 2.556712173 | Q179: 2.289980267 | R179: 1.675027145 | S179: 2 | T179: 1
A180: 5 | B180: 0 | C180: 10 | D180: 1 | E180: 2 | F180: 3 | G180: 0.5550063713 | H180: 8.002036996 | I180: 7.825855034 | J180: 8.151489062 | K180: 12.04564164 | L180: 2.752844184 | M180: 1.893196954 | N180: 2.925722156 | O180: 8.919904982 | P180: 2.649190269 | Q180: 3.154229966 | R180: -0.48752963 | S180: 0 | T180: 1
A181: 5 | B181: 0 | C181: 10 | D181: 1 | E181: 2 | F181: 3 | G181: 0.599591995 | H181: 1.671510696 | I181: 2.211507274 | J181: 1.581439873 | K181: 1.285838246 | L181: 1.221342921 | M181: 0.9109050914 | N181: 0.4743766272 | O181: 0.2743033491 | P181: -0.01117166195 | Q181: 2.009679653 | R181: -0.6184242089 | S181: 1 | T181: 1
A182: 5 | B182: 0 | C182: 10 | D182: 1 | E182: 2 | F182: 1 | G182: 1.268214112 | H182: 1.113059893 | I182: 1.106805492 | J182: 0.7628195102 | K182: 0.7355261589 | L182: 0.277238297 | M182: -0.1475272799 | N182: 0.6231907358 | O182: 0.8344548909 | P182: -0.1441270722 | Q182: 1.179711972 | R182: 0.9359281739 | S182: 0 | T182: 1
A183: 5 | B183: 0 | C183: 10 | D183: 1 | E183: 2 | F183: 3 | G183: 0.3670772983 | H183: 0.0708888676 | I183: -0.1305413306 | J183: -0.3341212375 | K183: -0.7676740477 | L183: -0.8903460732 | M183: -0.4117372935 | N183: -0.2389319204 | O183: -0.6952327983 | P183: -1.049735385 | Q183: 1.100200957 | R183: -1.386338745 | S183: 1 | T183: -1
A184: 5 | B184: 0 | C184: 10 | D184: 1 | E184: 1 | F184: 5 | G184: 2.228161549 | H184: 3.851799388 | I184: 2.02390907 | J184: 1.907586313 | K184: 2.741520437 | L184: 2.415428308 | M184: 2.218349223 | N184: 2.449157643 | O184: 1.634038637 | P184: 2.939370864 | Q184: 5.799400928 | R184: 2.096583896 | S184: 12 | T184: 1
A185: 5 | B185: 0 | C185: 10 | D185: 1 | E185: 1 | F185: 5 | G185: 1.81631403 | H185: 1.74218303 | I185: 3.472266387 | J185: 3.123213469 | K185: 1.775050894 | L185: 2.110195811 | M185: 2.104040883 | N185: 2.376352575 | O185: 2.84593359 | P185: 3.016113106 | Q185: 4.887526512 | R185: 2.756875129 | S185: 9 | T185: 1
A186: 5 | B186: 0 | C186: 10 | D186: 1 | E186: 2 | F186: 1 | G186: 3.606256057 | H186: 1.639439191 | I186: 2.665254473 | J186: 2.292368491 | K186: 3.476496172 | L186: 1.57211212 | M186: 1.086383339 | N186: 0.6383003803 | O186: 1.105314951 | P186: 1.627373562 | Q186: 2.806522772 | R186: 0.8637814901 | S186: 7 | T186: 1
A187: 5 | B187: 0 | C187: 10 | D187: 1 | E187: 2 | F187: 3 | G187: 0.3173630012 | H187: -0.01532984428 | I187: 0.4355468484 | J187: 0.936085721 | K187: 0.4218071527 | L187: 0.4381012995 | M187: 0.1265167679 | N187: 1.536911335 | O187: 0.07430225312 | P187: 0.06126625654 | Q187: 0.6171802583 | R187: -0.7909847359 | S187: 0 | T187: 1
A188: 5 | B188: 0 | C188: 10 | D188: 1 | E188: 2 | F188: 3 | G188: 1.342293037 | H188: 1.913515541 | I188: 4.012953697 | J188: 2.298671193 | K188: 2.133227726 | L188: 0.4468452995 | M188: 2.01342548 | N188: 2.169714274 | O188: 1.680750832 | P188: 1.869791757 | Q188: 1.954813146 | R188: -0.07653358681 | S188: 2 | T188: 1
A189: 5 | B189: 0 | C189: 10 | D189: 1 | E189: 2 | F189: 3 | G189: -0.1379630487 | H189: 0.5210383182 | I189: 0.8489206263 | J189: 1.352690772 | K189: 1.719138897 | L189: 3.213762374 | M189: 1.542959825 | N189: 2.304655666 | O189: 2.914239868 | P189: 2.836396755 | Q189: 2.349176969 | R189: -1.270984194 | S189: 2 | T189: 1
A190: 5 | B190: 0 | C190: 10 | D190: 0 | E190: 0 | F190: 0 | G190: 4.97179844 | H190: 4.993682238 | I190: 5.153345114 | J190: 5.254573165 | K190: 5.183493136 | L190: 3.272373144 | M190: 4.315321702 | N190: 2.848454606 | O190: 3.751659347 | P190: 3.311743584 | Q190: 2.906126826 | R190: 6.16010393 | S190: 12 | T190: 1
A191: 5 | B191: 0 | C191: 10 | D191: 0 | E191: 0 | F191: 0 | G191: -1.792385575 | H191: 1.992656119 | I191: 3.40970907 | J191: 3.883911218 | K191: 3.714513596 | L191: 2.031103948 | M191: 3.771441775 | N191: 3.621086888 | O191: 3.789732272 | P191: 2.38836914 | Q191: 2.333123933 | R191: 0.1209111106 | S191: 8 | T191: 1
A192: 5 | B192: 0 | C192: 20 | D192: 1 | E192: 2 | F192: 3 | G192: -0.235114615 | H192: 0.1019743893 | I192: 0.2230108038 | J192: -0.7508724509 | K192: 0.3085183736 | L192: -0.04678496287 | M192: 0.2031602535 | N192: -0.5321181744 | O192: 0.16649707 | P192: -0.707090265 | Q192: -0.8882345462 | R192: -0.2101525064 | S192: 1 | T192: -1
A193: 5 | B193: 0 | C193: 20 | D193: 1 | E193: 2 | F193: 3 | G193: 2.664085314 | H193: -0.9108029837 | I193: -0.8845600406 | J193: -0.917355192 | K193: -1.012430689 | L193: -1.043569661 | M193: -0.2160560509 | N193: 0.3218576602 | O193: -0.3318613442 | P193: -0.7245120145 | Q193: -0.5923142373 | R193: -0.766332502 | S193: 2 | T193: -1
A194: 5 | B194: 0 | C194: 20 | D194: 1 | E194: 1 | F194: 4 | G194: -0.7526782622 | H194: -1.73650512 | I194: -1.73650512 | J194: -1.547054743 | K194: -1.547054743 | L194: -1.354992599 | M194: -1.354992599 | N194: -1.191404152 | O194: -1.191404152 | P194: -1.483397528 | Q194: -1.356617903 | R194: -1.105798124 | S194: 0 | T194: -1
A195: 5 | B195: 0 | C195: 20 | D195: 1 | E195: 2 | F195: 2 | G195: 2.069592785 | H195: -1.573705224 | I195: -1.314162366 | J195: -1.355310055 | K195: -0.8233545865 | L195: 0.654739094 | M195: -1.048301764 | N195: -1.212840516 | O195: -0.6853116118 | P195: -0.1530161312 | Q195: -0.8145342378 | R195: 1.756849562 | S195: 3 | T195: -1
A196: 5 | B196: 0 | C196: 20 | D196: 1 | E196: 2 | F196: 1 | G196: 1.929079745 | H196: 0.4133893921 | I196: -0.3493237506 | J196: -0.9677659697 | K196: 0.1439324737 | L196: 0.5083897015 | M196: -0.7236479014 | N196: -0.7261410069 | O196: 0.655046877 | P196: -0.0588842344 | Q196: 0.3079176371 | R196: 0.8394045193 | S196: 0 | T196: 1
A197: 5 | B197: 0 | C197: 20 | D197: 1 | E197: 1 | F197: 4 | G197: 0.3452971003 | H197: -2.274287324 | I197: -2.557968787 | J197: -2.391641074 | K197: -2.808554574 | L197: -1.385460465 | M197: -1.564674703 | N197: -1.028288967 | O197: -1.651068342 | P197: 0.005722325466 | Q197: -0.2400478085 | R197: 1.637357047 | S197: 5 | T197: -1
A198: 5 | B198: 0 | C198: 20 | D198: 1 | E198: 2 | F198: 3 | G198: -0.20194103 | H198: -0.2754596358 | I198: -1.048200715 | J198: -0.3448384128 | K198: -1.122135051 | L198: -0.07036240628 | M198: 0.1519002578 | N198: -0.8632885422 | O198: 0.4293463443 | P198: 0.8348104862 | Q198: -0.4239527875 | R198: -0.1106548223 | S198: 0 | T198: -1
A199: 5 | B199: 0 | C199: 20 | D199: 1 | E199: 2 | F199: 3 | G199: 0.03966662365 | H199: 0.1767753742 | I199: -0.5486183838 | J199: -0.7948838423 | K199: -0.7973281717 | L199: -1.056971662 | M199: -0.5201045063 | N199: -0.4987821233 | O199: 0.01448762432 | P199: 0.5967704688 | Q199: 1.615101869 | R199: 0.0758487747 | S199: 0 | T199: -1
A200: 5 | B200: 0 | C200: 20 | D200: 1 | E200: 2 | F200: 3 | G200: 2.018928843 | H200: -1.003462597 | I200: -0.5243771393 | J200: -0.9626825561 | K200: -0.766671843 | L200: 0.04495165719 | M200: -0.1472298453 | N200: 0.1088658395 | O200: 0.8809874777 | P200: 0.3878505458 | Q200: -0.5235225123 | R200: -0.7751876712 | S200: 2 | T200: -1
... 989 more rows
